Workbook

Sheet Main Menu
B1: Copyright © 1999-2023, Schott, all rights reserved. (707/576-2732)
B3: Main Menu
B5: ChemRate version 3.20
D9: For determining chemical dose based on chemical solution
D10: characteristics, feed rate and plant flow.
D11: Also for calculating new solution crock strength and specific gravity.
D14: For determining chemical dose based on chemical solution
D15: characteristics, chemical feed pump settings and plant flow.
D16: Also for calculating new solution crock strength and specific gravity.
D19: Table that list the volumetric amount of chemical to be added
D20: for making 0.1, 0.15, 1 or 2% stock solutions used for jar testing.
D23: Calculates the volumetric amount of chemical required based
D24: on user targeted stock solution and chemical characteristics
D25: used for jar testing.
D26: Also will calculate dose based on mL injected for each jar.
C29: Contact: | D29: Guy Schott, P.E.
D30: Email: Guy Schott | F30: guy.schott@waterboards.ca.gov
D31: Office Number: 707-576-2732

Sheet ChemDose(FR)
B1: ='Main Menu'!B1 -> Copyright © 1999-2023, Schott, all rights reserved. (707/576-2732)
B2: ChemDose!Pro
B3: Chemical Feed Dose Calculator (pump rate) for the Water and Wastewater Industry
Z4: Mix 1 | AA4: =IF(OR(C13=0, C13="-"),"-",IF(D13="gal",C13,IF(D13="L",C13/3.785,IF(D13="mL",C13/3785,IF(D13="cc",C13/3785,IF(D13="oz",C13/128,"-")))))) -> 10 | AB4: gal | AD4: Mix 2 | AE4: =IF(OR(G13=0, G13="-"),"-",IF(H13="gal",G13,IF(H13="L",G13/3.785,IF(H13="mL",G13/3785,IF(H13="cc",G13/3785,IF(H13="oz",G13/128,"-")))))) -> 0.3170409511 | AF4: gal
B5: Solution Crock Mixing (1) | F5: Solution Crock Mixing (2) | AA5: =IF(C14="-","-",IF(D14="gal",C14,IF(D14="L",C14/3.785,IF(D14="mL",C14/3785,IF(D14="cc",C14/3785,IF(D14="oz",C14/128,IF(D14="lbs.",C14/8.337,"-"))))))) -> 0 | AB5: gal | AE5: =IF(G14="-","-",IF(H14="gal",G14,IF(H14="L",G14/3.785,IF(H14="mL",G14/3785,IF(H14="cc",G14/3785,IF(H14="oz",G14/128,IF(H14="lbs.",G14/8.337,"-"))))))) -> 4.683 | AF5: gal
B6: Solution Strength, Specific Gravity and | F6: Solution Strength, Specific Gravity and | Z6: Sum: | AA6: =IF(OR(D14="gal", D14="lbs."),SUM(AA4:AA5),IF(D14="L",SUM(AA4:AA5)*3.785,IF(D14="mL",SUM(AA4:AA5)*3785,IF(D14="oz",SUM(AA4:AA5)*128,IF(D14="cc",SUM(AA4:AA5)*3785,"-"))))) -> 10 | AB6: =D14 -> gal | AD6: Sum: | AE6: =IF(OR(H14="gal", H14="lbs."),SUM(AE4:AE5),IF(H14="L",SUM(AE4:AE5)*3.785,IF(H14="mL",SUM(AE4:AE5)*3785,IF(H14="oz",SUM(AE4:AE5)*128,IF(H14="cc",SUM(AE4:AE5)*3785,"-"))))) -> 5.000040951 | AF6: =IF(H14="lbs.","gal",H14) -> gal
B7: Chemical Dose Calculations | F7: Chemical Dose Calculations | Z7: Sum: | AA7: =SUM(AA4:AA5)*3785 -> 37850 | AB7: mL | AD7: Sum: | AE7: =SUM(AE4:AE5)*3785 -> 18925.155 | AF7: mL
B8: Enter Characteristics of Solution & Mixing Parameters | F8: Enter Characteristics of Solution & Mixing Parameters
B9: Name of liquid product: | C9: Polymer Blend 960 | F9: Name of liquid product: | G9: Zeta Floc 20, pDADMAC | Z9: Feedrate: | AA9: =IF(C20="-","-",IF(D20="mL/min",C20,IF(D20="L/min",C20*1000,IF(D20="L/hr",C20/60*1000,IF(D20="L/day",C20/60/24*1000,IF(D20="gal/hr",C20/(60)*3.785*1000,IF(OR(D20="gal/day",D20="Gallons"),C20/(24*60)*3.785*1000,"-"))))))) -> 9 | AB9: mL/min | AD9: Feedrate: | AE9: =IF(G20="-","-",IF(H20="mL/min",G20,IF(H20="L/min",G20*1000,IF(H20="L/hr",G20/60*1000,IF(H20="L/day",G20/60/24*1000,IF(H20="gal/hr",G20/(60)*3.785*1000,IF(OR(H20="gal/day",H20="Gallons"),G20/(24*60)*3.785*1000,"-"))))))) -> 6.5 | AF9: mL/min
B10: Specific gravity of product: | C10: 1.29 | F10: Specific gravity of product: | G10: 1.03 | AA10: =IF(D20="lbs/day",1,IF(D20="Kg/day",2,0)) -> 0 | AB10: =IF(AA10=1,"lbs/day","Kg/day") -> Kg/day | AE10: =IF(H20="lbs/day",1,IF(H20="Kg/day",2,0)) -> 0 | AF10: =IF(AE10=1,"lbs/day","Kg/day") -> Kg/day
B11: Product solution strength: | C11: 100 | D11: % | F11: Product solution strength: | G11: 100 | H11: % | Z11: Flowrate | AA11: =IF(C21="-","-",IF(D21="gpm",C21,IF(D21="Liters/min",C21/3.785,IF(D21="m3/hr",C21/3.78/60*1000,IF(D21="MGD",C21*1000000/60/24,C21/24/60))))) -> 24 | AB11: gpm | AD11: Flowrate | AE11: =IF(G21="-","-",IF(H21="gpm",G21,IF(H21="Liters/min",G21/3.785,IF(H21="m3/hr",G21/3.78/60*1000,IF(H21="MGD",G21*1000000/60/24,G21/24/60))))) -> 24 | AF11: gpm
B12: Chemical product cost ($) per pound: | C12: 2.03 | D12: =IF(C100=1,"$/lb", "$/gal") -> $/lb | F12: Chemical product cost ($) per pound: | G12: 2.1 | H12: =IF(G100=1,"$/lb", "$/gal") -> $/lb | AA12: =IF(OR(C40=0,C40="-"),0,IF(D40="gal",C40,IF(D40="L",C40/3.785,"-"))) -> 20 | AB12: gal | AE12: =IF(OR(G40=0,G40="-"),0,IF(H40="gal",G40,IF(H40="L",G40/3.785,"-"))) -> 5 | AF12: gal
B13: Volume of liquid product mixed: | C13: 10 | D13: gal | F13: Volume of liquid product mixed: | G13: 1200 | H13: mL | AA13: =IF(OR(C45=0,C45="-"),0,IF(D45="gal",C45,IF(D45="L",C45/3.785,"-"))) -> 1.2 | AB13: gal | AE13: =IF(OR(G45=0,G45="-"),0,IF(H45="gal",G45,IF(H45="L",G45/3.785,"-"))) -> 22 | AF13: gal
B14: Volume of water mixed with liquid product: | C14: 0 | D14: gal | F14: Volume of water mixed with liquid product: | G14: 4.683 | H14: gal | Z14: Sum: | AA14: =AA12+AA13 -> 21.2 | AB14: gal | AD14: Sum: | AE14: =AE12+AE13 -> 27 | AF14: gal
B15: Mixing Results | F15: Mixing Results | Z15: Sum: | AA15: =AA14*3.785 -> 80.242 | AB15: L | AD15: Sum: | AE15: =AE14*3.785 -> 102.195 | AF15: L
B16: Total solution volume: | C16: =IF(AA6=0,"-",AA6) -> 10 | D16: =IF(D14="lbs.","gal",D14) -> gal | F16: Total solution volume: | G16: =IF(AE6=0,"-",AE6) -> 5.000040951 | H16: =IF(H14="lbs.","gal",H14) -> gal | AA16: =IF(C48="-",0,C48*C49/100*8.337) -> 3.187065214 | AB16: lbs/gal | AE16: =IF(G48="-",0,G48*G49/100*8.337) -> 3.64049 | AF16: lbs/gal
B17: Specific gravity of solution mix: | C17: =IF(OR(C10=0,C10="-",C11="-",C13=0,C13="-",C14="-"),"-",IF((C10*AA4+AA5*1)/(AA4+AA5)>1.1,ROUND((C10*AA4+AA5*1)/(AA4+AA5),3),ROUND((C10*AA4+AA5*1)/(AA4+AA5),3))) -> 1.29 | F17: Specific gravity of solution mix: | G17: =IF(OR(G10=0,G10="-",G11="-",G13=0,G13="-",G14="-"),"-",IF((G10*AE4+AE5*1)/(AE4+AE5)>1.1,ROUND((G10*AE4+AE5*1)/(AE4+AE5),3),ROUND((G10*AE4+AE5*1)/(AE4+AE5),3))) -> 1.002 | AA17: =IF(C48="-",0,C48*C49/100*1000) -> 382.2796226 | AB17: g/L | AE17: =IF(G48="-",0,G48*G49/100*1000) -> 436.6666667 | AF17: g/L
B18: Chemical solution strength of mix: | C18: =IF(OR(C10=0,C10="-",C11="-",C13=0,C13="-",C14="-"),"-",IF((AA4*C11/100*C10)/((AA4+AA5)*C17)*100>1,ROUND((AA4*C11/100*C10)/((AA4+AA5)*C17)*100,2),ROUND((AA4*C11/100*C10)/((AA4+AA5)*C17)*100,3))) -> 100 | D18: =IF(D11="%","%","NTU") -> % | F18: Chemical solution strength of mix: | G18: =IF(OR(G10=0,G10="-",G11="-",G13=0,G13="-",G14="-"),"-",IF((AE4*G11/100*G10)/((AE4+AE5)*G17)*100>1,ROUND((AE4*G11/100*G10)/((AE4+AE5)*G17)*100,2),ROUND((AE4*G11/100*G10)/((AE4+AE5)*G17)*100,3))) -> 6.52 | H18: =IF(H11="%","%","NTU") -> % | Z18: Sum: | AA18: =IF(D45="gal",SUM(AA12:AA13),IF(D45="L",SUM(AA12:AA13)*3.785,IF(D43="mL",SUM(AA12:AA13)*3785,IF(D43="oz",SUM(AA12:AA13)*124,IF(D43="cc",SUM(AA12:AA13)*3785,"-"))))) -> 21.2 | AB18: =D45 -> gal | AD18: Sum: | AE18: =IF(H45="gal",SUM(AE12:AE13),IF(H45="L",SUM(AE12:AE13)*3.785,IF(H43="mL",SUM(AE12:AE13)*3785,IF(H43="oz",SUM(AE12:AE13)*124,IF(H43="cc",SUM(AE12:AE13)*3785,"-"))))) -> 27 | AF18: =H45 -> gal
B19: Enter Feed Pump Rate, Plant Production and Hrs. Operated | F19: Enter Feed Pump Rate, Plant Production and Hrs. Operated
B20: Chemical feed pump rate or usage: | C20: 9 | D20: mL/min | F20: Chemical feed pump rate or usage: | G20: 6.5 | H20: mL/min
B21: Plant flow rate or production: | C21: 24 | D21: gpm | F21: Plant flow rate or production: | G21: 24 | H21: gpm
B22: Hours operated: | C22: 21 | D22: hours | F22: Hours operated: | G22: 21 | H22: hours
B23: ="Results - Chemical Dose Calculations for "&C9 -> Results - Chemical Dose Calculations for Polymer Blend 960 | F23: ="Results - Chemical Dose Calculations for "&G9 -> Results - Chemical Dose Calculations for Zeta Floc 20, pDADMAC
B24: Chemical Feed Dose: | C24: =IF(OR(C20=0,C21=0,C20="-",C21="-"),"-",IF(AND(AA10=0,C17="-"),"-",IF(AND(AA10=0,C18="-"),"-",IF(OR(D20="mL/min",D20="L/min",D20="L/hr",D20="L/day",D20="gal/hr",D20="gal/day",D20="Gallons"),AA9/AA11/3.785*1000*C17*C18/100,IF(AA10=1,C20/AA11/(60*24)/3.785*453600,C20/AA11/(60*24)/3.785*1000000))))) -> 127.8071334 | D24: mg/L | F24: Chemical Feed Dose: | G24: =IF(OR(G20=0,G21=0,G20="-",G21="-"),"-",IF(AND(AE10=0,G17="-"),"-",IF(AND(AE10=0,G18="-"),"-",IF(OR(H20="mL/min",H20="L/min",H20="L/hr",H20="L/day",H20="gal/hr",H20="gal/day",H20="Gallons"),AE9/AE11/3.785*1000*G17*G18/100,IF(AE10=1,G20/AE11/(60*24)/3.785*453600,G20/AE11/(60*24)/3.785*1000000))))) -> 4.674676354 | H24: mg/L
B25: Chemical Feed Dose: | C25: =IF(C24="-","-",C24*3.785/453600*1000000) -> 1066.468254 | D25: lbs/MG | F25: Chemical Feed Dose: | G25: =IF(G24="-","-",G24*3.785/453600*1000000) -> 39.0071649 | H25: lbs/MG
B26: ="Solution Used ("&C18&"% Strength):" -> Solution Used (100% Strength): | C26: =IF(D20="mL/min",C20*1440/1000/3.785,IF(D20="L/min",C20*1440/3.785,IF(D20="L/hr",C20*24/3.785,IF(D20="L/day",C20/3.785,IF(D20="gal/hr",24*C20,IF(D20="gal/day",C20,IF(D20="gallon",C20,C20)))))))*C22/24 -> 2.996036988 | D26: =IF(D20="gallons","gallons",IF(D20="lbs/day","lbs/day",IF(D20="Kg/day","Kg/day","gal/day"))) -> gal/day | F26: ="Solution Used ("&G18&"% Strength):" -> Solution Used (6.52% Strength): | G26: =IF(H20="mL/min",G20*1440/1000/3.785,IF(H20="L/min",G20*1440/3.785,IF(H20="L/hr",G20*24/3.785,IF(H20="L/day",G20/3.785,IF(H20="gal/hr",24*G20,IF(H20="gal/day",G20,IF(H20="gallon",G20,G20)))))))*G22/24 -> 2.163804491 | H26: =IF(H20="gallons","gallons",IF(H20="lbs/day","lbs/day",IF(H20="Kg/day","Kg/day","gal/day"))) -> gal/day
B27: ="Solution Used ("&C18&"% Strength):" -> Solution Used (100% Strength): | C27: =C26*7 -> 20.97225892 | D27: =IF(D20="gallons","gallons/week",IF(D20="lbs/day","lbs/week",IF(D20="Kg/day","Kg/week","gal/week"))) -> gal/week | F27: ="Solution Used ("&G18&"% Strength):" -> Solution Used (6.52% Strength): | G27: =G26*7 -> 15.14663144 | H27: =IF(H20="gallons","gallons/week",IF(H20="lbs/day","lbs/week",IF(H20="Kg/day","Kg/week","gal/week"))) -> gal/week
B28: ="Liquid Product Used ("&C9&"):" -> Liquid Product Used (Polymer Blend 960): | C28: =C25/(C10*8.345)*AA11/1000000*60*24/C11*100*C22/24 -> 2.995805872 | D28: =IF(D20<>"gallons","gal/day","gallons") -> gal/day | F28: ="Liquid Product Used ("&G9&"):" -> Liquid Product Used (Zeta Floc 20, pDADMAC): | G28: =G25/(G10*8.345)*AE11/1000000*60*24/G11*100*G22/24 -> 0.1372342798 | H28: =IF(H20<>"gallons","gal/day","gallons") -> gal/day
B29: ="Liquid Product Used ("&C9&"):" -> Liquid Product Used (Polymer Blend 960): | C29: =C28*7 -> 20.9706411 | D29: gal/week | F29: ="Liquid Product Used ("&G9&"):" -> Liquid Product Used (Zeta Floc 20, pDADMAC): | G29: =G28*7 -> 0.9606399584 | H29: gal/week
B30: Plant production per day: | C30: =IF(D21="gpm",C21*1440*C22/24, IF(D21="gallons",C21*C22/24,IF(D21="gal/day",C21*C22/24,IF(D21="Liters/min",C21/3.785*1440*C22/24, IF(D21="MGD",C21*C22/24, IF(D21="m3/hr",C21*1000/3.785/60*1440*C22/24,"-")))))) -> 30240 | D30: =IF(D21="MGD","MGD", "gal/day") -> gal/day | F30: Plant production per day: | G30: =IF(H21="gpm",G21*1440*G22/24, IF(H21="gallons",G21*G22/24,IF(H21="gal/day",G21*G22/24,IF(H21="Liters/min",G21/3.785*1440*G22/24, IF(H21="MGD",G21*G22/24, IF(H21="m3/hr",G21*1000/3.785/60*1440*G22/24,"-")))))) -> 30240 | H30: =IF(H21="MGD","MGD", "gal/day") -> gal/day
B31: ="Chemical cost per day"&" ("&C9&"):" -> Chemical cost per day (Polymer Blend 960): | C31: =IF(C100=2,C12*C28, C12*C28*C10*8.345) -> 65.4675 | D31: $/day | F31: ="Chemical cost per day"&" ("&G9&"):" -> Chemical cost per day (Zeta Floc 20, pDADMAC): | G31: =IF(G100=2,G12*G28, G12*G28*G10*8.345) -> 2.477111 | H31: $/day
B32: Cost per gallon of treated water: | C32: =IF(D30="MGD", C31*100/(1000000*C30),C31*100/C30) -> 0.2164930556 | D32: cent/gal | F32: Cost per gallon of treated water: | G32: =IF(H30="MGD", G31*100/(1000000*G30),G31*100/G30) -> 0.00819150463 | H32: cent/gal
B34: Solution Crock Mixing Modification (1) | F34: Solution Crock Mixing Modification (2)
B35: Modifying Existing Solution Strength and | F35: Modifying Existing Solution Strength and
B36: Specific Gravity (mixing in new solution with old) | F36: Specific Gravity (mixing in new solution with old)
B37: Enter characteristics of existing old solution | F37: Enter characteristics of existing old solution
B38: Specific gravity of solution: | C38: 1.082 | F38: Specific gravity of solution: | G38: 1.038
B39: Chemical solution strength: | C39: 30.02 | D39: % | F39: Chemical solution strength: | G39: 100 | H39: %
B40: Volume of solution remaining: | C40: 20 | D40: gal | F40: Volume of solution remaining: | G40: 5 | H40: gal
B41: Enter characteristics of added new solution | F41: Enter characteristics of added new solution
B42: Name of liquid product: | C42: 9810 | F42: Name of liquid product: | G42: NaOCl
B43: Specific gravity of solution added: | C43: 1.34 | F43: Specific gravity of solution added: | G43: 1.2
B44: Chemical solution strength added: | C44: 100 | D44: % | F44: Chemical solution strength added: | G44: 25 | H44: %
B45: Volume of new solution added to old: | C45: 1.2 | D45: gal | F45: Volume of new solution added to old: | G45: 22 | H45: gal
B46: Blended Results | F46: Blended Results
B47: Total solution volume: | C47: =IF(AA18=0,"-",AA18) -> 21.2 | D47: =D45 -> gal | F47: Total solution volume: | G47: =IF(AE18=0,"-",AE18) -> 27 | H47: =H45 -> gal
B48: Specific gravity of mix: | C48: =IF(OR(C38=0,C38="-",C39="-",C43=0,C43="-",C44="-",C40="-",C45="-",C45=0),"-",(C38*AA12+C43*AA13)/(AA12+AA13)) -> 1.096603774 | F48: Specific gravity of mix: | G48: =IF(OR(G38=0,G38="-",G39="-",G43=0,G43="-",G44="-",G40="-",G45="-",G45=0),"-",(G38*AE12+G43*AE13)/(AE12+AE13)) -> 1.17
B49: Chemical solution strength of mix: | C49: =IF(C48="-","-",(C38*C39*AA12+C43*C44*AA13)/(C48*(AA12+AA13))) -> 34.86032347 | D49: % | F49: Chemical solution strength of mix: | G49: =IF(G48="-","-",(G38*G39*AE12+G43*G44*AE13)/(G48*(AE12+AE13))) -> 37.32193732 | H49: %
CF51: -
B100: Chemical product cost ($) per pound: | C100: =IF(B100=B12,1,2) -> 1 | F100: Chemical product cost ($) per pound: | G100: =IF(F100=F12,1,2) -> 1
B101: Chemical product cost ($) per gallon: | F101: Chemical product cost ($) per gallon:

Sheet ChemDose(PS)
B1: ='ChemDose(FR)'!B1 -> Copyright © 1999-2023, Schott, all rights reserved. (707/576-2732)
B2: ChemDose!Pro
B3: Chemical Feed Dose Calculator (pump settings) for the Water and Wastewater Industry
Z4: Mix 1 | AA4: =IF(OR(C13=0, C13="-"),"-",IF(D13="gal",C13,IF(D13="L",C13/3.785,IF(D13="mL",C13/3785,IF(D13="cc",C13/3785,IF(D13="oz",C13/128,"-")))))) -> 1 | AB4: gal | AD4: Mix 2 | AE4: =IF(OR(G13=0, G13="-"),"-",IF(H13="gal",G13,IF(H13="L",G13/3.785,IF(H13="mL",G13/3785,IF(H13="cc",G13/3785,IF(H13="oz",G13/128,"-")))))) -> 1 | AF4: gal
B5: Solution Crock Mixing (1) | F5: Solution Crock Mixing (2) | AA5: =IF(C14="-","-",IF(D14="gal",C14,IF(D14="L",C14/3.785,IF(D14="mL",C14/3785,IF(D14="cc",C14/3785,IF(D14="oz",C14/128,"-")))))) -> 0 | AB5: gal | AE5: =IF(G14="-","-",IF(H14="gal",G14,IF(H14="L",G14/3.785,IF(H14="mL",G14/3785,IF(H14="cc",G14/3785,IF(H14="oz",G14/128,"-")))))) -> 4 | AF5: gal
B6: Solution Strength, Specific Gravity and | F6: Solution Strength, Specific Gravity and | Z6: Sum: | AA6: =IF(D14="gal",SUM(AA4:AA5),IF(D14="L",SUM(AA4:AA5)*3.785,IF(D14="mL",SUM(AA4:AA5)*3785,IF(D14="oz",SUM(AA4:AA5)*128,IF(D14="cc",SUM(AA4:AA5)*3785,"-"))))) -> 1 | AB6: =D14 -> gal | AD6: Sum: | AE6: =IF(H14="gal",SUM(AE4:AE5),IF(H14="L",SUM(AE4:AE5)*3.785,IF(H14="mL",SUM(AE4:AE5)*3785,IF(H14="oz",SUM(AE4:AE5)*128,IF(H14="cc",SUM(AE4:AE5)*3785,"-"))))) -> 5 | AF6: =H14 -> gal
B7: Chemical Dose Calculations | F7: Chemical Dose Calculations | Z7: Sum: | AA7: =SUM(AA4:AA5)*3785 -> 3785 | AB7: mL | AD7: Sum: | AE7: =SUM(AE4:AE5)*3785 -> 18925 | AF7: mL
B8: Enter Characteristics of Solution & Mixing Parameters | F8: Enter Characteristics of Solution & Mixing Parameters
B9: Name of liquid product: | C9: Polymer Blend 960 | F9: Name of liquid product: | G9: Zeta Floc 20, pDADMAC | Z9: Feedrate: | AA9: =IF(C26="-","-",IF(D26="mL/min",C26,IF(D26="L/min",C26*1000,IF(D26="L/hr",C26*1000/60,IF(D26="L/day",C26/60/24*1000,IF(D26="gal/hr",C26/(60)*3.785*1000,IF(OR(D26="gal/day",D26="Gallons"),C26/(24*60)*3.785*1000,"-"))))))) -> 7.00225 | AB9: mL/min | AD9: Feedrate: | AE9: =IF(G26="-","-",IF(H26="mL/min",G26,IF(H26="L/min",G26*1000,IF(H26="L/hr",G26*1000/60,IF(H26="L/day",G26/60/24*1000,IF(H26="gal/hr",G26/(60)*3.785*1000,IF(OR(H26="gal/day",H26="Gallons"),G26/(24*60)*3.785*1000,"-"))))))) -> 1.577083333 | AF9: mL/min
B10: Specific gravity of product: | C10: 1.29 | F10: Specific gravity of product: | G10: 1.03 | AA10: =IF(D26="lbs/day",1,IF(D26="Kg/day",2,0)) -> 0 | AB10: =IF(AA10=1,"lbs/day","Kg/day") -> Kg/day | AE10: =IF(H26="lbs/day",1,IF(H26="Kg/day",2,0)) -> 0 | AF10: =IF(AE10=1,"lbs/day","Kg/day") -> Kg/day
B11: Product solution strength: | C11: 100 | D11: % | F11: Product solution strength: | G11: 100 | H11: % | Z11: Flowrate | AA11: =IF(C23="-","-",IF(D23="gpm",C23,IF(D23="Liters/min",C23/3.785,IF(D23="MGD",C23*1000000/60/24,C23/24/60)))) -> 24 | AB11: gpm | AD11: Flowrate | AE11: =IF(G23="-","-",IF(H23="gpm",G23,IF(H23="Liters/min",G23/3.785,IF(H23="MGD",G23*1000000/60/24,G23/24/60)))) -> 24 | AF11: gpm
B12: Chemical product cost ($) per pound: | C12: 2 | D12: =IF(C101=1,"$/lb", "$/gal") -> $/lb | F12: Chemical product cost ($) per pound: | G12: 2 | H12: =IF(G101=1,"$/lb", "$/gal") -> $/lb | AA12: =IF(OR(C43=0,C43="-"),0,IF(D43="gal",C43,IF(D43="L",C43/3.785,"-"))) -> 5 | AB12: gal | AE12: =IF(OR(G43=0,G43="-"),0,IF(H43="gal",G43,IF(H43="L",G43/3.785,"-"))) -> 5 | AF12: gal
B13: Volume of liquid product mixed: | C13: 1 | D13: gal | F13: Volume of liquid product mixed: | G13: 1 | H13: gal | AA13: =IF(OR(C48=0,C48="-"),0,IF(D48="gal",C48,IF(D48="L",C48/3.785,"-"))) -> 22 | AB13: gal | AE13: =IF(OR(G48=0,G48="-"),0,IF(H48="gal",G48,IF(H48="L",G48/3.785,"-"))) -> 22 | AF13: gal
B14: Volume of water mixed with liquid product: | C14: 0 | D14: gal | F14: Volume of water mixed with liquid product: | G14: 4 | H14: gal | Z14: Sum: | AA14: =AA12+AA13 -> 27 | AB14: gal | AD14: Sum: | AE14: =AE12+AE13 -> 27 | AF14: gal
B15: Mixing Results | F15: Mixing Results | Z15: Sum: | AA15: =AA14*3.785 -> 102.195 | AB15: L | AD15: Sum: | AE15: =AE14*3.785 -> 102.195 | AF15: L
B16: Total solution volume: | C16: =IF(AA6=0,"-",AA6) -> 1 | D16: =D14 -> gal | F16: Total solution volume: | G16: =IF(AE6=0,"-",AE6) -> 5 | H16: =H14 -> gal | AA16: =IF(C51="-",0,C51*C52/100*8.337) -> 2.269516667 | AB16: lbs/gal | AE16: =IF(G51="-",0,G51*G52/100*8.337) -> 2.152836646 | AF16: lbs/gal
B17: Specific gravity of solution mix: | C17: =IF(OR(C10=0,C10="-",C11="-",C13=0,C13="-",C14="-"),"-",IF((C10*AA4+AA5*1)/(AA4+AA5)>1.1,ROUND((C10*AA4+AA5*1)/(AA4+AA5),2),ROUND((C10*AA4+AA5*1)/(AA4+AA5),3))) -> 1.29 | F17: Specific gravity of solution mix: | G17: =IF(OR(G10=0,G10="-",G11="-",G13=0,G13="-",G14="-"),"-",IF((G10*AE4+AE5*1)/(AE4+AE5)>1.1,ROUND((G10*AE4+AE5*1)/(AE4+AE5),2),ROUND((G10*AE4+AE5*1)/(AE4+AE5),3))) -> 1.006 | AA17: =IF(C51="-",0,C51*C52/100*1000) -> 272.2222222 | AB17: g/L | AE17: =IF(G51="-",0,G51*G52/100*1000) -> 258.2267778 | AF17: g/L
B18: Chemical solution strength of mix: | C18: =IF(OR(C10=0,C10="-",C11="-",C13=0,C13="-",C14="-"),"-",IF((AA4*C11/100*C10)/((AA4+AA5)*C17)*100>1,ROUND((AA4*C11/100*C10)/((AA4+AA5)*C17)*100,2),ROUND((AA4*C11/100*C10)/((AA4+AA5)*C17)*100,3))) -> 100 | D18: =IF(D11="%","%","NTU") -> % | F18: Chemical solution strength of mix: | G18: =IF(OR(G10=0,G10="-",G11="-",G13=0,G13="-",G14="-"),"-",IF((AE4*G11/100*G10)/((AE4+AE5)*G17)*100>1,ROUND((AE4*G11/100*G10)/((AE4+AE5)*G17)*100,2),ROUND((AE4*G11/100*G10)/((AE4+AE5)*G17)*100,3))) -> 20.48 | H18: =IF(H11="%","%","NTU") -> % | Z18: Sum: | AA18: =IF(D48="gal",SUM(AA12:AA13),IF(D48="L",SUM(AA12:AA13)*3.785,IF(D46="mL",SUM(AA12:AA13)*3785,IF(D46="oz",SUM(AA12:AA13)*124,IF(D46="cc",SUM(AA12:AA13)*3785,"-"))))) -> 27 | AB18: =D48 -> gal | AD18: Sum: | AE18: =IF(H48="gal",SUM(AE12:AE13),IF(H48="L",SUM(AE12:AE13)*3.785,IF(H46="mL",SUM(AE12:AE13)*3785,IF(H46="oz",SUM(AE12:AE13)*124,IF(H46="cc",SUM(AE12:AE13)*3785,"-"))))) -> 27 | AF18: =H48 -> gal
B19: Enter Feed Pump Settings, Plant Production and Hrs. Operated | F19: Enter Feed Pump Settings, Plant Production and Hrs. Operated | AA19: =IF(AND(D20="gal/day",D26="L/hr"),3.785/24,IF(AND(D20="L/hr",D26="L/day"),24,IF(AND(D20="L/day",D26="L/day"),1,IF(AND(D20="gal/hr",D26="L/day"),24*3.785,IF(AND(D20="gal/day",D26="L/day"),3.785,IF(AND(D20="L/hr",D26="gal/hr"),1/3.785,IF(AND(D20="L/day",D26="gal/hr"),1/3.785/24,AA20))))))) -> 1 | AE19: =IF(AND(H20="gal/day",H26="L/hr"),3.785/24,IF(AND(H20="L/hr",H26="L/day"),24,IF(AND(H20="L/day",H26="L/day"),1,IF(AND(H20="gal/hr",H26="L/day"),24*3.785,IF(AND(H20="gal/day",H26="L/day"),3.785,IF(AND(H20="L/hr",H26="gal/hr"),1/3.785,IF(AND(H20="L/day",H26="gal/hr"),1/3.785/24,AE20))))))) -> 1
B20: Chemical feed pump capacity rating: | C20: 30 | D20: gal/day | F20: Chemical feed pump capacity rating: | G20: 15 | H20: gal/day | AA20: =IF(AND(D20="gal/hr",D26="gal/hr"),1,IF(AND(D20="gal/day",D26="gal/hr"),1/24,IF(AND(D20="L/hr",D26="gal/day"),24/3.785,IF(AND(D20="L/day",D26="gal/day"),1/3.785,IF(AND(D20="gal/hr",D26="gal/day"),24,1))))) -> 1 | AE20: =IF(AND(H20="gal/hr",H26="gal/hr"),1,IF(AND(H20="gal/day",H26="gal/hr"),1/24,IF(AND(H20="L/hr",H26="gal/day"),24/3.785,IF(AND(H20="L/day",H26="gal/day"),1/3.785,IF(AND(H20="gal/hr",H26="gal/day"),24,1))))) -> 1
B21: Chemical feed pump stroke setting: | C21: 29.6 | D21: % | F21: Chemical feed pump stroke setting: | G21: 20 | H21: %
B22: Chemical feed pump speed setting: | C22: 30 | D22: % | F22: Chemical feed pump speed setting: | G22: 20 | H22: %
B23: Plant flow rate or production: | C23: 24 | D23: gpm | F23: Plant flow rate or production: | G23: 24 | H23: gpm
B24: Hours operated: | C24: 15 | D24: hours | F24: Hours operated: | G24: 20 | H24: hours
B25: ="Results - Chemical Dose Calculations for "&C9 -> Results - Chemical Dose Calculations for Polymer Blend 960 | F25: ="Results - Chemical Dose Calculations for "&G9 -> Results - Chemical Dose Calculations for Zeta Floc 20, pDADMAC
B26: Chemical feed pump rate (calculated): | C26: =C20*(C21*C22)/10000*IF(AND(D20="L/hr",D26="mL/min"),1000/60,IF(AND(D20="L/day",D26="mL/min"),1000/1440,IF(AND(D20="gal/hr",D26="mL/min"),3785/60,IF(AND(D20="gal/day",D26="mL/min"),3785/1440,IF(AND(D20="L/hr",D26="L/hr"),1,IF(AND(D20="L/day",D26="L/hr"),1/24,IF(AND(D20="gal/hr",D26="L/hr"),3.785,AA19))))))) -> 7.00225 | D26: mL/min | F26: Chemical feed pump rate or usage: | G26: =G20*(G21*G22)/10000*IF(AND(H20="L/hr",H26="mL/min"),1000/60,IF(AND(H20="L/day",H26="mL/min"),1000/1440,IF(AND(H20="gal/hr",H26="mL/min"),3785/60,IF(AND(H20="gal/day",H26="mL/min"),3785/1440,IF(AND(H20="L/hr",H26="L/hr"),1,IF(AND(H20="L/day",H26="L/hr"),1/24,IF(AND(H20="gal/hr",H26="L/hr"),3.785,AE19))))))) -> 1.577083333 | H26: mL/min
B27: Chemical Feed Dose: | C27: =IF(OR(C26=0,C23=0,C26="-",C23="-"),"-",IF(AND(AA10=0,C17="-"),"-",IF(AND(AA10=0,C18="-"),"-",IF(OR(D26="mL/min",D26="L/min",D26="L/hr",D26="L/day",D26="gal/hr",D26="gal/day",D26="Gallons"),AA9/AA11/3.785*1000*C17*C18/100,IF(AA10=1,C26/AA11/(60*24)/3.785*453600,C26/AA11/(60*24)/3.785*1000000))))) -> 99.4375 | D27: mg/L | F27: Chemical Feed Dose: | G27: =IF(OR(G26=0,G23=0,G26="-",G23="-"),"-",IF(AND(AE10=0,G17="-"),"-",IF(AND(AE10=0,G18="-"),"-",IF(OR(H26="mL/min",H26="L/min",H26="L/hr",H26="L/day",H26="gal/hr",H26="gal/day",H26="Gallons"),AE9/AE11/3.785*1000*G17*G18/100,IF(AE10=1,G26/AE11/(60*24)/3.785*453600,G26/AE11/(60*24)/3.785*1000000))))) -> 3.576888889 | H27: mg/L
B28: Chemical Feed Dose: | C28: =IF(C27="-","-",C27*3.785/453600*1000000) -> 829.7419257 | D28: lbs/MG | F28: Chemical Feed Dose: | G28: =IF(G27="-","-",G27*3.785/453600*1000000) -> 29.84683519 | H28: lbs/MG
B29: ="Solution Used ("&C18&"% Strength):" -> Solution Used (100% Strength): | C29: =IF(D26="L/hr",C26*24/3.785,IF(D26="L/day",C26/3.785,IF(D26="gal/hr",24*C26,IF(D26="mL/min",C26*1440/1000/3.785,C26))))*C24/24 -> 1.665 | D29: gal/day | F29: ="Solution Used ("&G18&"% Strength):" -> Solution Used (20.48% Strength): | G29: =IF(H26="L/hr",G26*24/3.785,IF(H26="L/day",G26/3.785,IF(H26="gal/hr",24*G26,IF(H26="mL/min",G26*1440/1000/3.785,G26))))*G24/24 -> 0.5 | H29: gal/day
B30: ="Solution Used ("&C18&"% Strength):" -> Solution Used (100% Strength): | C30: =C29*7 -> 11.655 | D30: gal/week | F30: ="Solution Used ("&G18&"% Strength):" -> Solution Used (20.48% Strength): | G30: =G29*7 -> 3.5 | H30: gal/week
B31: ="Liquid Product Used ("&C9&"):" -> Liquid Product Used (Polymer Blend 960): | C31: =C28/(C10*8.337)*AA11/1000000*60*24/C11*100*C24/24 -> 1.666469135 | D31: =IF(D26<>"gallons","gal/day","gallons") -> gal/day | F31: ="Liquid Product Used ("&G9&"):" -> Liquid Product Used (Zeta Floc 20, pDADMAC): | G31: =G28/(G10*8.337)*AE11/1000000*60*24/G11*100*G24/24 -> 0.1001022292 | H31: =IF(H26<>"gallons","gal/day","gallons") -> gal/day
B32: ="Liquid Product Used ("&C9&"):" -> Liquid Product Used (Polymer Blend 960): | C32: =C31*7 -> 11.66528394 | D32: gal/week | F32: ="Liquid Product Used ("&G9&"):" -> Liquid Product Used (Zeta Floc 20, pDADMAC): | G32: =G31*7 -> 0.7007156046 | H32: gal/week
B33: Plant production per day: | C33: =IF(D23="gpm",C23*1440*C24/24, IF(D23="gallons",C23*C24/24,IF(D23="gal/day",C23*C24/24,IF(D23="Liters/min",C23/3.785*1440*C24/24, IF(D23="MGD",C23*C24/24, IF(D23="m3/hr",C23*1000/3.785/60*1440*C24/24,"-")))))) -> 21600 | D33: =IF(D23="MGD","MGD", "gal/day") -> gal/day | F33: Plant production per day: | G33: =IF(H23="gpm",G23*1440*G24/24, IF(H23="gallons",G23*G24/24,IF(H23="gal/day",G23*G24/24,IF(H23="Liters/min",G23/3.785*1440*G24/24, IF(H23="MGD",G23*G24/24, IF(H23="m3/hr",G23*1000/3.785/60*1440*G24/24,"-")))))) -> 28800 | H33: =IF(H23="MGD","MGD", "gal/day") -> gal/day
B34: ="Chemical cost per day"&" ("&C9&"):" -> Chemical cost per day (Polymer Blend 960): | C34: =IF(C101=2,C12*C31, C12*C31*C10*8.345) -> 35.87924711 | D34: $/day | F34: ="Chemical cost per day"&" ("&G9&"):" -> Chemical cost per day (Zeta Floc 20, pDADMAC): | G34: =IF(G101=2,G12*G31, G12*G31*G10*8.345) -> 1.720827392 | H34: $/day
B35: Cost per gallon of treated water: | C35: =IF(D33="MGD", C34*100/(1000000*C33),C34*100/C33) -> 0.1661076255 | D35: cent/gal | F35: Cost per gallon of treated water: | G35: =IF(H33="MGD", G34*100/(1000000*G33),G34*100/G33) -> 0.005975095111 | H35: cent/gal
B37: Solution Crock Mixing Modification (1) | F37: Solution Crock Mixing Modification (2)
B38: Modifying Existing Solution Strength and | F38: Modifying Existing Solution Strength and
B39: Specific Gravity (mixing in new solution with old) | F39: Specific Gravity (mixing in new solution with old)
B40: Enter characteristics of existing old solution | F40: Enter characteristics of existing old solution
B41: Specific gravity of solution: | C41: 1.2 | F41: Specific gravity of solution: | G41: 1.038
B42: Chemical solution strength: | C42: 12.5 | D42: % | F42: Chemical solution strength: | G42: 7.17 | H42: %
B43: Volume of solution remaining: | C43: 5 | D43: gal | F43: Volume of solution remaining: | G43: 5 | H43: gal
B44: Enter characteristics of added new solution | F44: Enter characteristics of added new solution
B45: Name of Liquid Chemical: | C45: NaOCl | F45: Name of Liquid Chemical: | G45: NaOCl
B46: Specific gravity of solution added: | C46: 1.2 | F46: Specific gravity of solution added: | G46: 1.2
B47: Chemical solution strength added: | C47: 25 | D47: % | F47: Chemical solution strength added: | G47: 25 | H47: %
B48: Volume of new solution added to old: | C48: 22 | D48: gal | F48: Volume of new solution added to old: | G48: 22 | H48: gal
B49: Blended Results | F49: Blended Results
B50: Total solution volume: | C50: =IF(AA18=0,"-",AA18) -> 27 | D50: =D48 -> gal | F50: Total solution volume: | G50: =IF(AE18=0,"-",AE18) -> 27 | H50: =H48 -> gal
B51: Specific gravity of mix: | C51: =IF(OR(C41=0,C41="-",C42="-",C46=0,C46="-",C47="-",C43="-",C48="-",C48=0),"-",(C41*AA12+C46*AA13)/(AA12+AA13)) -> 1.2 | F51: Specific gravity of mix: | G51: =IF(OR(G41=0,G41="-",G42="-",G46=0,G46="-",G47="-",G43="-",G48="-",G48=0),"-",(G41*AE12+G46*AE13)/(AE12+AE13)) -> 1.17
B52: Chemical solution strength of mix: | C52: =IF(C51="-","-",(C41*C42*AA12+C46*C47*AA13)/(C51*(AA12+AA13))) -> 22.68518519 | D52: % | F52: Chemical solution strength of mix: | G52: =IF(G51="-","-",(G41*G42*AE12+G46*G47*AE13)/(G51*(AE12+AE13))) -> 22.07066477 | H52: %
CF54: -
B101: Chemical product cost ($) per pound: | C101: =IF(B101=B12,1,2) -> 1 | F101: Chemical product cost ($) per pound: | G101: =IF(F101=F12,1,2) -> 1
B102: Chemical product cost ($) per gallon: | F102: Chemical product cost ($) per gallon:

Sheet Feed Rate (hidden)
W1: 4 hrs
BM2: %NaOCl based on Volume of 12.5% NaOCl added to 10 gallons of water | CR2: %NaOCl based on Volume of 12.5% NaOCl added to 10 gallons of water | DO2: %NaOCl (wt/vol) based on Volume of 12.5% NaOCl added to 10 gallons of water | EP2: Table 1: %NaOCl (w/v) based on volume of 12.5% NaOCl added to 10 gallons of water | FD2: Table 2:
E4: Dosage | F4: Flow | G4: oz | H4: Feed rate | I4: Feed rate | AZ4: oz | BA4: cups | BB4: L | BC4: Gal | BD4: % NaOCl | BM4: oz. | BN4: cups | BO4: L | BP4: Gal | BQ4: % NaOCl | BS4: oz. | BT4: cups | BU4: L | BV4: Gal | BW4: % NaOCl | BY4: oz. | BZ4: cups | CA4: L | CB4: Gal | CC4: % NaOCl | CR4: oz | CS4: cups | CT4: L | CU4: Gal | CV4: % NaOCl | CX4: oz | CY4: cups | CZ4: L | DA4: Gal | DB4: % NaOCl | DD4: below if based of wt/wt | DO4: oz | DP4: cups | DQ4: L | DR4: Gal | DS4: % NaOCl | DV4: oz | DW4: cups | DX4: L | DY4: Gal | DZ4: % NaOCl | EP4: oz | EQ4: cups | ER4: L | ES4: Gal | ET4: % w/v NaOCl | EV4: oz | EW4: cups | EX4: L | EY4: Gal | EZ4: % w/v NaOCl | FE4: Chemical Feed Rate (mL/min) for a Target Dose of 1 mg/L as Cl2
E5: 1 | F5: 10 | G5: 32 | H5: =33.173*G5^(-0.985)*(F5)*E5 -> 10.91973301 | I5: =33.173/G5*F5*E5 -> 10.3665625 | BM5: 4 | BN5: =BM5/8 -> 0.5 | BO5: =BM5*29.5735/1000 -> 0.118294 | BP5: =BO5/3.785 -> 0.03125336856 | BQ5: 0.047 | BS5: 18 | BT5: =BS5/8 -> 2.25 | BU5: =BS5*29.5735/1000 -> 0.532323 | BV5: =BU5/3.785 -> 0.1406401585 | BW5: 0.207 | BY5: 48 | BZ5: =BY5/8 -> 6 | CA5: =BY5*29.5735/1000 -> 1.419528 | CB5: =CA5/3.785 -> 0.3750404227 | CC5: 0.538 | CR5: 4 | CS5: =CR5/8 -> 0.5 | CT5: =CR5*29.5735/1000 -> 0.118294 | CU5: =CT5/3.785 -> 0.03125336856 | CV5: 0.047 | CX5: 51 | CY5: =CX5/8 -> 6.375 | CZ5: =CX5*29.5735/1000 -> 1.5082485 | DA5: =CZ5/3.785 -> 0.3984804491 | DB5: 0.57 | DO5: 4 | DP5: =DO5/8 -> 0.5 | DQ5: =DO5*29.5735/1000 -> 0.118294 | DR5: =DQ5/3.785 -> 0.03125336856 | DS5: 0.047047 | DV5: 4 | DW5: =DV5/8 -> 0.5 | DX5: =DV5*29.5735/1000 -> 0.118294 | DY5: =DX5/3.785 -> 0.03125336856 | DZ5: 0.047047 | EA5: =105.82*DZ5-11.35 -> -6.37148646 | EB5: =6.1691*DZ5^2+85.19*DZ5 -> 4.021588741 | ED5: =91.69*DZ5-1.2326 -> 3.08113943 | EN5: 1 | EP5: 4 | EQ5: =EP5/8 -> 0.5 | ER5: =EP5*29.5735/1000 -> 0.118294 | ES5: =ER5/3.785 -> 0.03125336856 | ET5: 0.047047 | EV5: 142 | EW5: =EV5/8 -> 17.75 | EX5: =EV5*29.5735/1000 -> 4.199437 | EY5: =EX5/3.785 -> 1.109494584 | EZ5: 1.4994 | FB5: 1 | FD5: Flow | FE5: Based on %NaOCl Solution Strength (w/v)
E6: Dosage | F6: Flow | G6: % NaOCl | H6: Feed rate | I6: Feed rate | BM6: 5 | BN6: 0.625 | BO6: =BM6*29.5735/1000 -> 0.1478675 | BP6: =BO6/3.785 -> 0.0390667107 | BQ6: 0.058 | BS6: 20 | BT6: 2.5 | BU6: =BS6*29.5735/1000 -> 0.59147 | BV6: =BU6/3.785 -> 0.1562668428 | BW6: 0.23 | BY6: 52 | BZ6: 6.5 | CA6: =BY6*29.5735/1000 -> 1.537822 | CB6: =CA6/3.785 -> 0.4062937913 | CC6: 0.581 | CR6: 5 | CS6: 0.625 | CT6: =CR6*29.5735/1000 -> 0.1478675 | CU6: =CT6/3.785 -> 0.0390667107 | CV6: 0.058 | CX6: 52 | CY6: 6.5 | CZ6: =CX6*29.5735/1000 -> 1.537822 | DA6: =CZ6/3.785 -> 0.4062937913 | DB6: 0.581 | DO6: 5 | DP6: 0.625 | DQ6: =DO6*29.5735/1000 -> 0.1478675 | DR6: =DQ6/3.785 -> 0.0390667107 | DS6: 0.058 | DV6: 5 | DW6: =DV6/8 -> 0.625 | DX6: =DV6*29.5735/1000 -> 0.1478675 | DY6: =DX6/3.785 -> 0.0390667107 | DZ6: 0.058058 | EB6: =6.1691*DZ6^2+85.19*DZ6 -> 4.966755399 | ED6: 4.09073802 | EP6: 6 | EQ6: 0.75 | ER6: =EP6*29.5735/1000 -> 0.177441 | ES6: =ER6/3.785 -> 0.04688005284 | ET6: 0.07007 | EV6: 146 | EW6: 18.25 | EX6: 4.317731 | EY6: 1.140747952 | EZ6: 1.5402 | FD6: gpm | FE6: 0.04705% 4 oz | FF6: 0.09309% 8 oz | FG6: 0.13928% 12 oz | FH6: 0.1854% 16 oz | FI6: 0.2307% 20 oz | FJ6: 0.2761% 24 oz | FK6: 0.3213% 28 oz | FL6: 0.3658% 32 oz | FM6: 0.4100% 36 oz | FN6: 0.45471% 40 oz | FO6: 0.4985% 44 oz
E7: 1 | F7: 10 | G7: 0.151 | H7: =F7*E7*0.39509*G7^(-1.004) -> 26.36350705 | I7: =F7*E7*0.39509/G7 -> 26.16490066 | BM7: 6 | BN7: 0.75 | BO7: 0.177441 | BP7: 0.04688005284 | BQ7: 0.07 | BS7: 22 | BT7: 2.75 | BU7: 0.650617 | BV7: 0.1718935271 | BW7: 0.253 | BY7: 56 | BZ7: 7 | CA7: 1.656116 | CB7: 0.4375471598 | CC7: 0.624 | CR7: 6 | CS7: 0.75 | CT7: 0.177441 | CU7: 0.04688005284 | CV7: 0.07 | CX7: 53 | CY7: 6.625 | CZ7: 1.5673955 | DA7: 0.4141071334 | DB7: 0.592 | DO7: 6 | DP7: 0.75 | DQ7: 0.177441 | DR7: 0.04688005284 | DS7: 0.07 | DV7: 6 | DW7: 0.75 | DX7: 0.177441 | DY7: 0.04688005284 | DZ7: 0.07007 | EB7: 5.999552377 | ED7: 5.1921183 | EN7: 1 | EP7: 8 | EQ7: 1 | ER7: 0.236588 | ES7: 0.06250673712 | ET7: 0.093093 | EV7: 150 | EW7: 18.75 | EX7: 4.436025 | EY7: 1.172001321 | EZ7: 1.57234 | FD7: 10 | FE7: 84.47 | FF7: 42.69 | FG7: 28.54 | FH7: 21.44 | FI7: 17.23 | FJ7: 14.4 | FK7: 12.37 | FL7: 10.87 | FM7: 9.7 | FN7: 8.74 | FO7: 7.98
BM8: 7 | BN8: 0.875 | BO8: 0.2070145 | BP8: 0.05469339498 | BQ8: 0.082 | BS8: 24 | BT8: 3 | BU8: 0.709764 | BV8: 0.1875202114 | BW8: 0.275 | BY8: 60 | BZ8: 7.5 | CA8: 1.77441 | CB8: 0.4688005284 | CC8: 0.666 | CR8: 7 | CS8: 0.875 | CT8: 0.2070145 | CU8: 0.05469339498 | CV8: 0.082 | CX8: 54 | CY8: 6.75 | CZ8: 1.596969 | DA8: 0.4219204756 | DB8: 0.602 | DO8: 7 | DP8: 0.875 | DQ8: 0.2070145 | DR8: 0.05469339498 | DS8: 0.082 | DV8: 7 | DW8: 0.875 | DX8: 0.2070145 | DY8: 0.05469339498 | DZ8: 0.082082 | EB8: 7.034129612 | ED8: 6.29349858 | EP8: 10 | EQ8: 1.25 | ER8: 0.295735 | ES8: 0.0781334214 | ET8: 0.116232 | EV8: 154 | EW8: 19.25 | EX8: 4.554319 | EY8: 1.20325469 | EZ8: 1.61318 | FB8: 1 | FD8: 15 | FE8: 126.7 | FF8: 64.03 | FG8: 42.8 | FH8: 32.16 | FI8: 25.84 | FJ8: 21.59 | FK8: 18.56 | FL8: 16.3 | FM8: 14.54 | FN8: 13.11 | FO8: 11.96
BM9: 8 | BN9: 1 | BO9: 0.236588 | BP9: 0.06250673712 | BQ9: 0.093 | BS9: 26 | BT9: 3.25 | BU9: 0.768911 | BV9: 0.2031468956 | BW9: 0.297 | BY9: 64 | BZ9: 8 | CA9: 1.892704 | CB9: 0.500053897 | CC9: 0.707 | CR9: 8 | CS9: 1 | CT9: 0.236588 | CU9: 0.06250673712 | CV9: 0.093 | CX9: 55 | CY9: 6.875 | CZ9: 1.6265425 | DA9: 0.4297338177 | DB9: 0.613 | DO9: 8 | DP9: 1 | DQ9: 0.236588 | DR9: 0.06250673712 | DS9: 0.093 | DV9: 8 | DW9: 1 | DX9: 0.236588 | DY9: 0.06250673712 | DZ9: 0.093093 | EB9: 7.984055982 | ED9: 7.30309717 | EN9: 1 | EP9: 12 | EQ9: 1.5 | ER9: 0.354882 | ES9: 0.09376010568 | ET9: 0.139278 | EV9: 158 | EW9: 19.75 | EX9: 4.672613 | EY9: 1.234508058 | EZ9: 1.64542 | FD9: 20 | FE9: 168.93 | FF9: 85.38 | FG9: 57.07 | FH9: 42.88 | FI9: 34.46 | FJ9: 28.79 | FK9: 24.74 | FL9: 21.73 | FM9: 19.39 | FN9: 17.48 | FO9: 15.95
BM10: 9 | BN10: 1.125 | BO10: 0.2661615 | BP10: 0.07032007926 | BQ10: 0.105 | BS10: 28 | BT10: 3.5 | BU10: 0.828058 | BV10: 0.2187735799 | BW10: 0.32 | BY10: 68 | BZ10: 8.5 | CA10: 2.010998 | CB10: 0.5313072655 | CC10: 0.749 | CR10: 9 | CS10: 1.125 | CT10: 0.2661615 | CU10: 0.07032007926 | CV10: 0.105 | CX10: 56 | CY10: 7 | CZ10: 1.656116 | DA10: 0.4375471598 | DB10: 0.624 | DO10: 9 | DP10: 1.125 | DQ10: 0.2661615 | DR10: 0.07032007926 | DS10: 0.105 | DV10: 9 | DW10: 1.125 | DX10: 0.2661615 | DY10: 0.07032007926 | DZ10: 0.105105 | EB10: 9.022045374 | ED10: 8.40447745 | EP10: 14 | EQ10: 1.75 | ER10: 0.414029 | ES10: 0.10938679 | ET10: 0.162324 | EV10: 162 | EW10: 20.25 | EX10: 4.790907 | EY10: 1.265761427 | EZ10: 1.6863 | FD10: 25 | FE10: 211.16 | FF10: 106.72 | FG10: 71.33 | FH10: 53.6 | FI10: 43.07 | FJ10: 35.99 | FK10: 30.93 | FL10: 27.16 | FM10: 24.23 | FN10: 21.85 | FO10: 19.93
BM11: 10 | BN11: 1.25 | BO11: 0.295735 | BP11: 0.0781334214 | BQ11: 0.116 | BS11: 30 | BT11: 3.75 | BU11: 0.887205 | BV11: 0.2344002642 | BW11: 0.342 | BY11: 72 | BZ11: 9 | CA11: 2.129292 | CB11: 0.5625606341 | CC11: 0.79 | CR11: 10 | CS11: 1.25 | CT11: 0.295735 | CU11: 0.0781334214 | CV11: 0.116 | CX11: 57 | CY11: 7.125 | CZ11: 1.6856895 | DA11: 0.445360502 | DB11: 0.634 | DO11: 10 | DP11: 1.25 | DQ11: 0.295735 | DR11: 0.0781334214 | DS11: 0.116 | DV11: 10 | DW11: 1.25 | DX11: 0.295735 | DY11: 0.0781334214 | DZ11: 0.116232 | EB11: 9.985147867 | ED11: 9.42471208 | EN11: 1 | EP11: 16 | EQ11: 2 | ER11: 0.473176 | ES11: 0.1250134742 | ET11: 0.18537 | EV11: 166 | EW11: 20.75 | EX11: 4.909201 | EY11: 1.297014795 | EZ11: 1.71864 | FB11: 1 | FD11: 30 | FE11: 253.4 | FF11: 128.06 | FG11: 85.6 | FH11: 64.32 | FI11: 51.68 | FJ11: 43.18 | FK11: 37.11 | FL11: 32.59 | FM11: 29.08 | FN11: 26.22 | FO11: 23.92
BM12: 11 | BN12: 1.375 | BO12: 0.3253085 | BP12: 0.08594676354 | BQ12: 0.128 | BS12: 32 | BT12: 4 | BU12: 0.946352 | BV12: 0.2500269485 | BW12: 0.364 | BY12: 76 | BZ12: 9.5 | CA12: 2.247586 | CB12: 0.5938140026 | CC12: 0.832 | CR12: 11 | CS12: 1.375 | CT12: 0.3253085 | CU12: 0.08594676354 | CV12: 0.128 | CX12: 58 | CY12: 7.25 | CZ12: 1.715263 | DA12: 0.4531738441 | DB12: 0.644 | DO12: 11 | DP12: 1.375 | DQ12: 0.3253085 | DR12: 0.08594676354 | DS12: 0.128 | DV12: 11 | DW12: 1.375 | DX12: 0.3253085 | DY12: 0.08594676354 | DZ12: 0.128256 | EB12: 11.02760788 | ED12: 10.52719264 | EP12: 18 | EQ12: 2.25 | ER12: 0.532323 | ES12: 0.1406401585 | ET12: 0.207621 | EV12: 170 | EW12: 21.25 | EX12: 5.027495 | EY12: 1.328268164 | EZ12: 1.75956 | FD12: 35 | FE12: 295.63 | FF12: 149.41 | FG12: 99.86 | FH12: 75.03 | FI12: 60.29 | FJ12: 50.38 | FK12: 43.29 | FL12: 38.02 | FM12: 33.92 | FN12: 30.59 | FO12: 27.91
E13: 10 gallons of water at 10 gpm | BM13: 12 | BN13: 1.5 | BO13: 0.354882 | BP13: 0.09376010568 | BQ13: 0.139 | BS13: 34 | BT13: 4.25 | BU13: 1.005499 | BV13: 0.2656536328 | BW13: 0.386 | BY13: 80 | BZ13: 10 | CA13: 2.36588 | CB13: 0.6250673712 | CC13: 0.872 | CR13: 12 | CS13: 1.5 | CT13: 0.354882 | CU13: 0.09376010568 | CV13: 0.139 | CX13: 59 | CY13: 7.375 | CZ13: 1.7448365 | DA13: 0.4609871863 | DB13: 0.655 | DO13: 12 | DP13: 1.5 | DQ13: 0.354882 | DR13: 0.09376010568 | DS13: 0.139 | DV13: 12 | DW13: 1.5 | DX13: 0.354882 | DY13: 0.09376010568 | DZ13: 0.139278 | EB13: 11.98476325 | ED13: 11.53779982 | EN13: 1 | EP13: 20 | EQ13: 2.5 | ER13: 0.59147 | ES13: 0.1562668428 | ET13: 0.23069 | EV13: 174 | EW13: 21.75 | EX13: 5.145789 | EY13: 1.359521532 | EZ13: 1.792 | FD13: 40 | FE13: 337.86 | FF13: 170.75 | FG13: 114.13 | FH13: 85.75 | FI13: 68.91 | FJ13: 57.57 | FK13: 49.48 | FL13: 43.46 | FM13: 38.77 | FN13: 34.96 | FO13: 31.89
BM14: 14 | BN14: =BM14/8 -> 1.75 | BO14: =BM14*29.5735/1000 -> 0.414029 | BP14: =BO14/3.785 -> 0.10938679 | BQ14: 0.162 | BS14: 36 | BT14: 4.5 | BU14: 1.064646 | BV14: 0.281280317 | BW14: 0.408 | BY14: 84 | BZ14: 10.5 | CA14: 2.484174 | CB14: 0.6563207398 | CC14: 0.913 | CR14: 13 | CS14: 1.625 | CT14: 0.3844555 | CU14: 0.1015734478 | CV14: 0.151 | CX14: 60 | CY14: 7.5 | CZ14: 1.77441 | DA14: 0.4688005284 | DB14: 0.666 | DO14: 13 | DP14: 1.625 | DQ14: 0.3844555 | DR14: 0.1015734478 | DS14: 0.151 | DV14: 13 | DW14: 1.625 | DX14: 0.3844555 | DY14: 0.1015734478 | DZ14: 0.151302 | EB14: 13.03064224 | ED14: 12.64028038 | EP14: 22 | EQ14: 2.75 | ER14: 0.650617 | ES14: 0.1718935271 | ET14: 0.253759 | EV14: 178 | EW14: 22.25 | EX14: 5.264083 | EY14: 1.390774901 | EZ14: 1.83296 | FB14: 1 | FD14: 45 | FE14: 380.09 | FF14: 192.09 | FG14: 128.4 | FH14: 96.47 | FI14: 77.52 | FJ14: 64.77 | FK14: 55.66 | FL14: 48.89 | FM14: 43.62 | FN14: 39.33 | FO14: 35.88
B15: Volume amount of 12.5% NaOCl to 10 gallons of water | AC15: %NaOCl based of Volume of 12.5% NaOCl added to 10 gallons of water | BM15: 16 | BN15: =BM15/8 -> 2 | BO15: =BM15*29.5735/1000 -> 0.473176 | BP15: =BO15/3.785 -> 0.1250134742 | BQ15: 0.185 | BS15: 44 | BT15: =BS15/8 -> 5.5 | BU15: =BS15*29.5735/1000 -> 1.301234 | BV15: =BU15/3.785 -> 0.3437870542 | BW15: 0.495 | BY15: 93 | BZ15: =BY15/8 -> 11.625 | CA15: =BY15*29.5735/1000 -> 2.7503355 | CB15: =CA15/3.785 -> 0.726640819 | CC15: 1 | CR15: 14 | CS15: 1.75 | CT15: 0.414029 | CU15: 0.10938679 | CV15: 0.162 | CX15: 61 | CY15: 7.625 | CZ15: 1.8039835 | DA15: 0.4766138705 | DB15: 0.676 | DO15: 14 | DP15: 1.75 | DQ15: 0.414029 | DR15: 0.10938679 | DS15: 0.162 | DV15: 14 | DW15: 1.75 | DX15: 0.414029 | DY15: 0.10938679 | DZ15: 0.162324 | EB15: 13.99093168 | ED15: 13.65088756 | EN15: 1 | EP15: 24 | EQ15: 3 | ER15: 0.709764 | ES15: 0.1875202114 | ET15: 0.2761 | EV15: 182 | EW15: 22.75 | EX15: 5.382377 | EY15: 1.422028269 | EZ15: 1.8655 | FD15: 50 | FE15: 422.32 | FF15: 213.43 | FG15: 142.66 | FH15: 107.19 | FI15: 86.13 | FJ15: 71.97 | FK15: 61.85 | FL15: 54.32 | FM15: 48.46 | FN15: 43.7 | FO15: 39.86
B16: oz | C16: cups | D16: mL | E16: L | F16: Gal | G16: % NaOCl | H16: mL/min | CR16: 15 | CS16: 1.875 | CT16: 0.4436025 | CU16: 0.1172001321 | CV16: 0.173 | CX16: 62 | CY16: 7.75 | CZ16: 1.833557 | DA16: 0.4844272127 | DB16: 0.687 | DO16: 15 | DP16: 1.875 | DQ16: 0.4436025 | DR16: 0.1172001321 | DS16: 0.173 | DV16: 15 | DW16: 1.875 | DX16: 0.4436025 | DY16: 0.1172001321 | DZ16: 0.173346 | EB16: 14.95272001 | ED16: 14.66149474 | EP16: 26 | EQ16: 3.25 | ER16: 0.768911 | ES16: 0.2031468956 | ET16: 0.298188 | EV16: 186 | EW16: 23.25 | EX16: 5.500671 | EY16: 1.453281638 | EZ16: 1.9065 | FD16: 55 | FE16: 464.56 | FF16: 234.78 | FG16: 156.93 | FH16: 117.91 | FI16: 94.75 | FJ16: 79.16 | FK16: 68.03 | FL16: 59.75 | FM16: 53.31 | FN16: 48.07 | FO16: 43.85
B17: 4 | C17: =B17/8 -> 0.5 | D17: =B17*29.5735 -> 118.294 | E17: =D17/1000 -> 0.118294 | F17: =E17/3.785 -> 0.03125336856 | G17: 0.047 | H17: 85 | I17: 4 | AC17: oz | AD17: cups | AE17: mL | AF17: L | AG17: Gal | AH17: % NaOCl | AJ17: oz | AK17: cups | AL17: mL | AM17: L | AN17: Gal | AO17: % NaOCl | CR17: 16 | CS17: =CR17/8 -> 2 | CT17: 0.473176 | CU17: 0.1250134742 | CV17: 0.185 | CX17: 63 | CY17: =CX17/8 -> 7.875 | CZ17: 1.8631305 | DA17: 0.4922405548 | DB17: 0.697 | DO17: 16 | DP17: 2 | DQ17: 0.473176 | DR17: 0.1250134742 | DS17: 0.185 | DV17: 16 | DW17: 2 | DX17: 0.473176 | DY17: 0.1250134742 | DZ17: 0.18537 | EB17: 16.00365314 | ED17: 15.7639753 | EN17: 1 | EP17: 28 | EQ17: 3.5 | ER17: 0.828058 | ES17: 0.2187735799 | ET17: 0.32128 | EV17: 190 | EW17: 23.75 | EX17: 5.618965 | EY17: 1.484535007 | EZ17: 1.93914 | FB17: 1 | FD17: 60 | FE17: 506.79 | FF17: 256.12 | FG17: 171.19 | FH17: 128.63 | FI17: 103.36 | FJ17: 86.36 | FK17: 74.22 | FL17: 65.18 | FM17: 58.15 | FN17: 52.44 | FO17: 47.84
B18: 5 | C18: =B18/8 -> 0.625 | D18: 147.8675 | E18: =D18/1000 -> 0.1478675 | F18: =E18/3.785 -> 0.0390667107 | G18: 0.058 | H18: 68.5 | I18: 5 | AA18: 1 | AC18: 4 | AD18: =AC18/8 -> 0.5 | AE18: =AC18*29.5735 -> 118.294 | AF18: =AE18/1000 -> 0.118294 | AG18: =AF18/3.785 -> 0.03125336856 | AH18: 0.047 | AJ18: 32 | AK18: =AJ18/8 -> 4 | AL18: =AJ18*29.5735 -> 946.352 | AM18: =AL18/1000 -> 0.946352 | AN18: =AM18/3.785 -> 0.2500269485 | AO18: 0.364 | AR18: 1 | CR18: 17 | CS18: 2.125 | CT18: =CR18*29.5735/1000 -> 0.5027495 | CU18: =CT18/3.785 -> 0.1328268164 | CV18: 0.196 | CX18: 64 | CY18: 8 | CZ18: 1.892704 | DA18: 0.500053897 | DB18: 0.707 | DO18: 17 | DP18: 2.125 | DQ18: 0.5027495 | DR18: 0.1328268164 | DS18: 0.196 | DV18: 17 | DW18: 2.125 | DX18: 0.5027495 | DY18: 0.1328268164 | DZ18: 0.196588 | EB18: 16.98574795 | ED18: 16.79255372 | EP18: 30 | EQ18: 3.75 | ER18: 0.887205 | ES18: 0.2344002642 | ET18: 0.34371 | EV18: 194 | EW18: 24.25 | EX18: 5.737259 | EY18: 1.515788375 | EZ18: 1.96992
B19: 6 | C19: 0.75 | D19: 177.441 | E19: 0.177441 | F19: 0.04688005284 | G19: 0.07 | H19: 56.8 | I19: 6 | AA19: 2 | AC19: 5 | AD19: 0.625 | AE19: 147.8675 | AF19: 0.1478675 | AG19: 0.0390667107 | AH19: 0.058 | AJ19: 34 | AK19: =AJ19/8 -> 4.25 | AL19: 1005.499 | AM19: =AL19/1000 -> 1.005499 | AN19: =AM19/3.785 -> 0.2656536328 | AO19: 0.386 | AR19: 2 | CR19: 18 | CS19: 2.25 | CT19: 0.532323 | CU19: 0.1406401585 | CV19: 0.207 | CX19: 65 | CY19: 8.125 | CZ19: =CX19*29.5735/1000 -> 1.9222775 | DA19: =CZ19/3.785 -> 0.5078672391 | DB19: 0.718 | DO19: 18 | DP19: 2.25 | DQ19: 0.532323 | DR19: 0.1406401585 | DS19: 0.207 | DV19: 18 | DW19: 2.25 | DX19: 0.532323 | DY19: 0.1406401585 | DZ19: 0.207621 | EB19: 17.95316117 | ED19: =91.69*DZ19-1.2326 -> 17.80416949 | EN19: 1 | EP19: 32 | EQ19: 4 | ER19: 0.946352 | ES19: 0.2500269485 | ET19: 0.36582 | EV19: 198 | EW19: 24.75 | EX19: 5.855553 | EY19: 1.547041744 | EZ19: 2.01292
B20: 7 | C20: 0.875 | D20: 207.0145 | E20: 0.2070145 | F20: 0.05469339498 | G20: 0.082 | H20: 48.5 | I20: 7 | AA20: 3 | AC20: 6 | AD20: 0.75 | AE20: 177.441 | AF20: 0.177441 | AG20: 0.04688005284 | AH20: 0.07 | AJ20: 36 | AK20: 4.5 | AL20: 1064.646 | AM20: 1.064646 | AN20: 0.281280317 | AO20: 0.408 | AR20: 3 | CR20: 19 | CS20: 2.375 | CT20: 0.5618965 | CU20: 0.1484535007 | CV20: 0.219 | CX20: 66 | CY20: 8.25 | CZ20: 1.951851 | DA20: 0.5156805812 | DB20: 0.728 | DO20: 19 | DP20: 2.375 | DQ20: 0.5618965 | DR20: 0.1484535007 | DS20: 0.219 | DV20: 19 | DW20: 2.375 | DX20: 0.5618965 | DY20: 0.1484535007 | DZ20: 0.219657 | EB20: 19.01023396 | ED20: =91.69*DZ20-1.2326 -> 18.90775033 | EP20: 34 | EQ20: 4.25 | ER20: 1.005499 | ES20: 0.2656536328 | ET20: 0.38793 | EV20: 204 | EW20: 25.5 | EX20: 6.032994 | EY20: 1.593921797 | EZ20: 2.06427 | FB20: 1 | FE20: Chemical Feed Rate (mL/min) for a Target Dose of 1 mg/L as Cl2
B21: 8 | C21: 1 | D21: 236.588 | E21: 0.236588 | F21: 0.06250673712 | G21: 0.093 | H21: 42.7 | I21: 8 | AA21: 4 | AC21: 7 | AD21: 0.875 | AE21: 207.0145 | AF21: 0.2070145 | AG21: 0.05469339498 | AH21: 0.082 | AJ21: 38 | AK21: 4.75 | AL21: 1123.793 | AM21: 1.123793 | AN21: 0.2969070013 | AO21: 0.43 | AR21: 4 | CR21: 20 | CS21: 2.5 | CT21: 0.59147 | CU21: 0.1562668428 | CV21: 0.23 | CX21: 68 | CY21: 8.5 | CZ21: 2.010998 | DA21: 0.5313072655 | DB21: 0.749 | DO21: 20 | DP21: 2.5 | DQ21: 0.59147 | DR21: 0.1562668428 | DS21: 0.23 | DV21: 20 | DW21: 2.5 | DX21: 0.59147 | DY21: 0.1562668428 | DZ21: 0.23069 | EB21: 19.9807875 | ED21: 19.9193661 | EN21: 1 | EP21: 36 | EQ21: 4.5 | ER21: 1.064646 | ES21: 0.281280317 | ET21: 0.41004 | EV21: 210 | EW21: 26.25 | EX21: 6.210435 | EY21: 1.640801849 | EZ21: 2.11768 | FD21: Flow | FE21: Based on %NaOCl Solution Strength (w/v)
B22: 9 | C22: 1.125 | D22: 266.1615 | E22: 0.2661615 | F22: 0.07032007926 | G22: 0.105 | H22: 38.8 | I22: 9 | AA22: 5 | AC22: 8 | AD22: 1 | AE22: 236.588 | AF22: 0.236588 | AG22: 0.06250673712 | AH22: 0.093 | AJ22: 40 | AK22: =AJ22/8 -> 5 | AL22: 1182.94 | AM22: =AL22/1000 -> 1.18294 | AN22: =AM22/3.785 -> 0.3125336856 | AO22: 0.452 | AR22: 5 | CR22: 21 | CS22: 2.625 | CT22: 0.6210435 | CU22: 0.1640801849 | CV22: 0.241 | CX22: 70 | CY22: 8.75 | CZ22: 2.070145 | DA22: 0.5469339498 | DB22: 0.77 | DO22: 21 | DP22: 2.625 | DQ22: 0.6210435 | DR22: 0.1640801849 | DS22: 0.241 | DV22: 21 | DW22: 2.625 | DX22: 0.6210435 | DY22: 0.1640801849 | DZ22: 0.241723 | EB22: 20.95284294 | ED22: 20.93098187 | EP22: 38 | EQ22: 4.75 | ER22: 1.123793 | ES22: 0.2969070013 | ET22: 0.43258 | EV22: 216 | EW22: 27 | EX22: 6.387876 | EY22: 1.687681902 | EZ22: 2.1609 | FD22: gpm | FE22: 0.54177% 48 oz | FF22: 0.6498% 58 oz | FG22: 0.7777% 70 oz | FH22: 0.9027% 82 oz | FI22: 1.024% 94 oz | FJ22: 1.147% 106 oz | FK22: 1.261% 118 oz | FL22: 1.384% 130 oz | FM22: 1.499% 142 oz | FN22: 1.613% 154 oz | FO22: 1.719% 166 oz
B23: 10 | C23: 1.25 | D23: 295.735 | E23: 0.295735 | F23: 0.0781334214 | G23: 0.116 | H23: 34.2 | I23: 10 | AA23: 6 | AC23: 9 | AD23: 1.125 | AE23: 266.1615 | AF23: 0.2661615 | AG23: 0.07032007926 | AH23: 0.105 | AJ23: 44 | AK23: 5.5 | AL23: 1301.234 | AM23: 1.301234 | AN23: 0.3437870542 | AO23: 0.495 | AR23: 6 | CR23: 22 | CS23: 2.75 | CT23: 0.650617 | CU23: 0.1718935271 | CV23: 0.253 | CX23: 72 | CY23: 9 | CZ23: 2.129292 | DA23: 0.5625606341 | DB23: 0.79 | DO23: 22 | DP23: 2.75 | DQ23: 0.650617 | DR23: 0.1718935271 | DS23: 0.253 | DV23: 22 | DW23: 2.75 | DX23: 0.650617 | DY23: 0.1718935271 | DZ23: 0.253759 | EB23: 22.01497995 | ED23: 22.03456271 | EN23: 1 | EP23: 40 | EQ23: 5 | ER23: 1.18294 | ES23: 0.3125336856 | ET23: 0.454712 | EV23: 222 | EW23: 27.75 | EX23: 6.565317 | EY23: 1.734561955 | EZ23: 2.2145 | FB23: 1 | FD23: 10 | FE23: 7.34 | FF23: 6.12 | FG23: 5.11 | FH23: 4.41 | FI23: 3.89 | FJ23: 3.47 | FK23: 3.16 | FL23: 2.88 | FM23: 2.66 | FN23: 2.47 | FO23: 2.32
B24: 11 | C24: 1.375 | D24: 325.3085 | E24: 0.3253085 | F24: 0.08594676354 | G24: 0.128 | H24: 31 | I24: 11 | AA24: 7 | AC24: 10 | AD24: 1.25 | AE24: 295.735 | AF24: 0.295735 | AG24: 0.0781334214 | AH24: 0.116 | AJ24: 48 | AK24: 6 | AL24: 1419.528 | AM24: 1.419528 | AN24: 0.3750404227 | AO24: 0.538 | AR24: 7 | CR24: 23 | CS24: 2.875 | CT24: 0.6801905 | CU24: 0.1797068692 | CV24: 0.264 | CX24: 74 | CY24: 9.25 | CZ24: 2.188439 | DA24: 0.5781873184 | DB24: 0.811 | DO24: 23 | DP24: 2.875 | DQ24: 0.6801905 | DR24: 0.1797068692 | DS24: 0.264 | DV24: 23 | DW24: 2.875 | DX24: 0.6801905 | DY24: 0.1797068692 | DZ24: 0.265056 | EB24: 23.01352881 | ED24: 23.07038464 | EP24: 42 | EQ24: 5.25 | ER24: 1.242087 | ES24: 0.3281603699 | ET24: 0.476844 | EV24: 228 | EW24: 28.5 | EX24: 6.742758 | EY24: 1.781442008 | EZ24: 2.266 | FD24: 15 | FE24: 11.01 | FF24: 9.18 | FG24: 7.67 | FH24: 6.61 | FI24: 5.83 | FJ24: 5.2 | FK24: 4.73 | FL24: 4.31 | FM24: 3.98 | FN24: 3.7 | FO24: 3.47
B25: 12 | C25: 1.5 | D25: 354.882 | E25: 0.354882 | F25: 0.09376010568 | G25: 0.139 | H25: 28.6 | I25: 12 | AA25: 8 | AC25: 11 | AD25: 1.375 | AE25: 325.3085 | AF25: 0.3253085 | AG25: 0.08594676354 | AH25: 0.128 | AJ25: 52 | AK25: 6.5 | AL25: 1537.822 | AM25: 1.537822 | AN25: 0.4062937913 | AO25: 0.581 | AR25: 8 | CR25: 24 | CS25: 3 | CT25: 0.709764 | CU25: 0.1875202114 | CV25: 0.275 | CX25: 76 | CY25: 9.5 | CZ25: 2.247586 | DA25: 0.5938140026 | DB25: 0.832 | DO25: 24 | DP25: 3 | DQ25: 0.709764 | DR25: 0.1875202114 | DS25: 0.275 | DV25: 24 | DW25: 3 | DX25: 0.709764 | DY25: 0.1875202114 | DZ25: 0.2761 | EB25: 23.99123696 | ED25: 24.083009 | EN25: 1 | EP25: 44 | EQ25: 5.5 | ER25: 1.301234 | ES25: 0.3437870542 | ET25: 0.498465 | EV25: 234 | EW25: 29.25 | EX25: 6.920199 | EY25: 1.828322061 | EZ25: 2.31975 | FD25: 20 | FE25: 14.67 | FF25: 12.24 | FG25: 10.22 | FH25: 8.81 | FI25: 7.77 | FJ25: 6.93 | FK25: 6.31 | FL25: 5.75 | FM25: 5.31 | FN25: 4.93 | FO25: 4.63
B26: 13 | C26: 1.625 | D26: 384.4555 | E26: 0.3844555 | F26: 0.1015734478 | G26: 0.151 | H26: 26.3 | I26: 13 | AA26: 9 | AC26: 12 | AD26: 1.5 | AE26: 354.882 | AF26: 0.354882 | AG26: 0.09376010568 | AH26: 0.139 | AJ26: 56 | AK26: 7 | AL26: 1656.116 | AM26: 1.656116 | AN26: 0.4375471598 | AO26: 0.624 | AR26: 9 | CR26: 25 | CS26: 3.125 | CT26: 0.7393375 | CU26: 0.1953335535 | CV26: 0.286 | CX26: 78 | CY26: 9.75 | CZ26: 2.306733 | DA26: 0.6094406869 | DB26: 0.852 | DO26: 25 | DP26: 3.125 | DQ26: 0.7393375 | DR26: 0.1953335535 | DS26: 0.286 | DV26: 25 | DW26: 3.125 | DX26: 0.7393375 | DY26: 0.1953335535 | DZ26: 0.287144 | EB26: 24.97045 | ED26: 25.09563336 | EP26: 46 | EQ26: 5.75 | ER26: 1.360381 | ES26: 0.3594137384 | ET26: 0.520619 | EV26: 240 | EW26: 30 | EX26: 7.09764 | EY26: 1.875202114 | EZ26: 2.36328 | FB26: 1 | FD26: 25 | FE26: 18.34 | FF26: 15.29 | FG26: 12.78 | FH26: 11.01 | FI26: 9.71 | FJ26: 8.67 | FK26: 7.88 | FL26: 7.18 | FM26: 6.63 | FN26: 6.16 | FO26: 5.79
B27: 14 | C27: 1.75 | D27: 414.029 | E27: 0.414029 | F27: 0.10938679 | G27: 0.162 | H27: 24.5 | I27: 14 | AA27: 10 | AC27: 13 | AD27: 1.625 | AE27: 384.4555 | AF27: 0.3844555 | AG27: 0.1015734478 | AH27: 0.151 | AJ27: 60 | AK27: 7.5 | AL27: 1774.41 | AM27: 1.77441 | AN27: 0.4688005284 | AO27: 0.666 | AR27: 10 | CR27: 26 | CS27: 3.25 | CT27: 0.768911 | CU27: 0.2031468956 | CV27: 0.297 | CX27: 80 | CY27: 10 | CZ27: 2.36588 | DA27: 0.6250673712 | DB27: 0.872 | DO27: 26 | DP27: 3.25 | DQ27: 0.768911 | DR27: 0.2031468956 | DS27: 0.297 | DV27: 26 | DW27: 3.25 | DX27: 0.768911 | DY27: 0.2031468956 | DZ27: 0.298188 | EB27: 25.95116793 | ED27: 26.10825772 | EN27: 1 | EP27: 48 | EQ27: 6 | ER27: 1.419528 | ES27: 0.3750404227 | ET27: 0.541766 | EV27: 246 | EW27: 30.75 | EX27: 7.275081 | EY27: 1.922082166 | EZ27: 2.41488 | FD27: 30 | FE27: 22.01 | FF27: 18.35 | FG27: 15.33 | FH27: 13.21 | FI27: 11.65 | FJ27: 10.4 | FK27: 9.46 | FL27: 8.62 | FM27: 7.96 | FN27: 7.39 | FO27: 6.94
B28: 15 | C28: 1.875 | D28: 443.6025 | E28: 0.4436025 | F28: 0.1172001321 | G28: 0.173 | H28: 23 | I28: 15 | AA28: 11 | AC28: 14 | AD28: 1.75 | AE28: 414.029 | AF28: 0.414029 | AG28: 0.10938679 | AH28: 0.162 | AJ28: 64 | AK28: =AJ28/8 -> 8 | AL28: =AJ28*29.5735 -> 1892.704 | AM28: =AL28/1000 -> 1.892704 | AN28: =AM28/3.785 -> 0.500053897 | AO28: 0.707 | AR28: 11 | CR28: 27 | CS28: 3.375 | CT28: 0.7984845 | CU28: 0.2109602378 | CV28: 0.309 | CX28: 82 | CY28: 10.25 | CZ28: 2.425027 | DA28: 0.6406940555 | DB28: 0.892 | DO28: 27 | DP28: 3.375 | DQ28: 0.7984845 | DR28: 0.2109602378 | DS28: 0.309 | DV28: 27 | DW28: 3.375 | DX28: 0.7984845 | DY28: 0.2109602378 | DZ28: 0.310236 | EB28: 27.02275836 | ED28: 27.21293884 | EP28: 50 | EQ28: 6.25 | ER28: 1.478675 | ES28: 0.390667107 | ET28: 0.563472 | EV28: 252 | EW28: 31.5 | EX28: 7.452522 | EY28: 1.968962219 | EZ28: 2.46887 | FD28: 35 | FE28: 25.68 | FF28: 21.41 | FG28: 17.89 | FH28: 15.41 | FI28: 13.59 | FJ28: 12.13 | FK28: 11.03 | FL28: 10.05 | FM28: 9.28 | FN28: 8.63 | FO28: 8.1
B29: 16 | C29: 2 | D29: 473.176 | E29: 0.473176 | F29: 0.1250134742 | G29: 0.185 | H29: 21.5 | I29: 16 | AA29: 12 | AC29: 15 | AD29: 1.875 | AE29: 443.6025 | AF29: 0.4436025 | AG29: 0.1172001321 | AH29: 0.173 | AJ29: 68 | AK29: 8.5 | AL29: 2010.998 | AM29: 2.010998 | AN29: 0.5313072655 | AO29: 0.749 | AR29: 12 | CR29: 28 | CS29: 3.5 | CT29: 0.828058 | CU29: 0.2187735799 | CV29: 0.32 | CX29: 84 | CY29: 10.5 | CZ29: 2.484174 | DA29: 0.6563207398 | DB29: 0.913 | DO29: 28 | DP29: 3.5 | DQ29: 0.828058 | DR29: 0.2187735799 | DS29: 0.32 | DV29: 28 | DW29: 3.5 | DX29: 0.828058 | DY29: 0.2187735799 | DZ29: 0.32128 | EB29: 28.00662287 | EC29: =9.2551*DZ29^2+77.091*DZ29+5.6136 -> 31.33671566 | ED29: 28.2255632 | EP29: 54 | EQ29: 6.75 | ER29: 1.596969 | ES29: 0.4219204756 | ET29: 0.606816 | EV29: 258 | EW29: 32.25 | EX29: 7.629963 | EY29: 2.015842272 | EZ29: 2.51262 | FB29: 1 | FD29: 40 | FE29: 29.34 | FF29: 24.47 | FG29: 20.44 | FH29: 17.61 | FI29: 15.53 | FJ29: 13.86 | FK29: 12.61 | FL29: 11.49 | FM29: 10.61 | FN29: 9.86 | FO29: 9.25
B30: 18 | C30: 2.25 | D30: 532.323 | E30: 0.532323 | F30: 0.1406401585 | G30: 0.207 | H30: 19.2 | I30: 18 | AA30: 13 | AC30: 16 | AD30: 2 | AE30: 473.176 | AF30: 0.473176 | AG30: 0.1250134742 | AH30: 0.185 | AJ30: 72 | AK30: 9 | AL30: 2129.292 | AM30: 2.129292 | AN30: 0.5625606341 | AO30: 0.79 | AR30: 13 | CR30: 29 | CS30: 3.625 | CT30: 0.8576315 | CU30: 0.2265869221 | CV30: 0.331 | CX30: 86 | CY30: 10.75 | CZ30: 2.543321 | DA30: 0.671947424 | DB30: 0.932 | DO30: 29 | DP30: 3.625 | DQ30: 0.8576315 | DR30: 0.2265869221 | DS30: 0.331 | DV30: 29 | DW30: 3.625 | DX30: 0.8576315 | DY30: 0.2265869221 | DZ30: 0.332324 | EB30: 28.99199228 | ED30: 29.23818756 | EN30: 1 | EP30: 58 | EQ30: 7.25 | ER30: 1.715263 | ES30: 0.4531738441 | ET30: 0.649796 | EV30: 264 | EW30: 33 | EX30: 7.807404 | EY30: 2.062722325 | EZ30: 2.56432 | FD30: 45 | FE30: 33.01 | FF30: 27.52 | FG30: 23 | FH30: 19.81 | FI30: 17.47 | FJ30: 15.6 | FK30: 14.18 | FL30: 12.92 | FM30: 11.93 | FN30: 11.09 | FO30: 10.41
B31: 20 | C31: 2.5 | D31: 591.47 | E31: 0.59147 | F31: 0.1562668428 | G31: 0.23 | H31: 17.3 | I31: 20 | AA31: 14 | AC31: 18 | AD31: 2.25 | AE31: 532.323 | AF31: 0.532323 | AG31: 0.1406401585 | AH31: 0.207 | AJ31: 76 | AK31: 9.5 | AL31: 2247.586 | AM31: 2.247586 | AN31: 0.5938140026 | AO31: 0.832 | AR31: 14 | CR31: 30 | CS31: 3.75 | CT31: 0.887205 | CU31: 0.2344002642 | CV31: 0.342 | CX31: 88 | CY31: 11 | CZ31: 2.602468 | DA31: 0.6875741083 | DB31: 0.953 | DO31: 30 | DP31: 3.75 | DQ31: 0.887205 | DR31: 0.2344002642 | DS31: 0.342 | DV31: 30 | DW31: 3.75 | DX31: 0.887205 | DY31: 0.2344002642 | DZ31: 0.34371 | EB31: 30.00945118 | ED31: 30.2821699 | EP31: 62 | EQ31: 7.75 | ER31: 1.833557 | ES31: 0.4844272127 | ET31: 0.693183 | EV31: 270 | EW31: 33.75 | EX31: 7.984845 | EY31: 2.109602378 | EZ31: 2.6082 | FD31: 50 | FE31: 36.68 | FF31: 30.58 | FG31: 25.55 | FH31: 22.02 | FI31: 19.41 | FJ31: 17.33 | FK31: 15.76 | FL31: 14.36 | FM31: 13.26 | FN31: 12.32 | FO31: 11.57
B32: 22 | C32: 2.75 | D32: 650.617 | E32: 0.650617 | F32: 0.1718935271 | G32: 0.253 | H32: 15.7 | I32: 22 | AA32: 15 | AC32: 20 | AD32: 2.5 | AE32: 591.47 | AF32: 0.59147 | AG32: 0.1562668428 | AH32: 0.23 | AJ32: 80 | AK32: 10 | AL32: 2365.88 | AM32: 2.36588 | AN32: 0.6250673712 | AO32: 0.872 | AR32: 15 | CR32: 31 | CS32: 3.875 | CT32: 0.9167785 | CU32: 0.2422136063 | CV32: 0.353 | CX32: 90 | CY32: 11.25 | CZ32: 2.661615 | DA32: 0.7032007926 | DB32: 0.973 | DO32: 31 | DP32: 3.875 | DQ32: 0.9167785 | DR32: 0.2422136063 | DS32: 0.353 | DV32: 31 | DW32: 3.875 | DX32: 0.9167785 | DY32: 0.2422136063 | DZ32: 0.354765 | EB32: 30.9988622 | ED32: 31.29580285 | EP32: 66 | EQ32: 8.25 | ER32: 1.951851 | ES32: 0.5156805812 | ET32: 0.73528 | EV32: 276 | EW32: 34.5 | EX32: 8.162286 | EY32: 2.156482431 | EZ32: 2.65995 | FD32: 55 | FE32: 40.35 | FF32: 33.64 | FG32: 28.11 | FH32: 24.22 | FI32: 21.35 | FJ32: 19.06 | FK32: 17.34 | FL32: 15.79 | FM32: 14.58 | FN32: 13.55 | FO32: 12.72
B33: 24 | C33: 3 | D33: 709.764 | E33: 0.709764 | F33: 0.1875202114 | G33: 0.275 | H33: 14.5 | I33: 24 | AA33: 16 | AC33: 22 | AD33: 2.75 | AE33: 650.617 | AF33: 0.650617 | AG33: 0.1718935271 | AH33: 0.253 | AJ33: 84 | AK33: 10.5 | AL33: 2484.174 | AM33: 2.484174 | AN33: 0.6563207398 | AO33: 0.913 | AR33: 16 | CR33: 32 | CS33: 4 | CT33: 0.946352 | CU33: 0.2500269485 | CV33: 0.364 | CX33: 92 | CY33: 11.5 | CZ33: 2.720762 | DA33: 0.7188274769 | DB33: 0.993 | DO33: 32 | DP33: 4 | DQ33: 0.946352 | DR33: 0.2500269485 | DS33: 0.364 | DV33: 32 | DW33: 4 | DX33: 0.946352 | DY33: 0.2500269485 | DZ33: 0.36582 | EB33: 31.98978112 | ED33: 32.3094358 | EN33: 1 | EP33: 70 | EQ33: 8.75 | ER33: 2.070145 | ES33: 0.5469339498 | ET33: 0.7777 | EV33: 282 | EW33: 35.25 | EX33: 8.339727 | EY33: 2.203362483 | EZ33: 2.70396 | FB33: 1 | FD33: 60 | FE33: 44.01 | FF33: 36.7 | FG33: 30.66 | FH33: 26.42 | FI33: 23.29 | FJ33: 20.79 | FK33: 18.91 | FL33: 17.23 | FM33: 15.91 | FN33: 14.78 | FO33: 13.88
B34: 26 | C34: 3.25 | D34: 768.911 | E34: 0.768911 | F34: 0.2031468956 | G34: 0.297 | H34: 13.4 | I34: 26 | AA34: 17 | AC34: 24 | AD34: =AC34/8 -> 3 | AE34: =AC34*29.5735 -> 709.764 | AF34: =AE34/1000 -> 0.709764 | AG34: =AF34/3.785 -> 0.1875202114 | AH34: 0.275 | AJ34: 88 | AK34: 11 | AL34: 2602.468 | AM34: 2.602468 | AN34: 0.6875741083 | AO34: 0.953 | AR34: 17 | CP34: 15 | CR34: 33 | CS34: 4.125 | CT34: 0.9759255 | CU34: 0.2578402906 | CV34: 0.375 | CX34: 93 | CY34: 11.625 | CZ34: 2.7503355 | DA34: 0.726640819 | DB34: 1 | DO34: 33 | DP34: 4.125 | DQ34: 0.9759255 | DR34: 0.2578402906 | DS34: 0.375 | DV34: 33 | DW34: 4.125 | DX34: 0.9759255 | DY34: 0.2578402906 | DZ34: 0.376875 | EB34: 32.98220792 | ED34: 33.32306875 | EP34: 74 | EQ34: 9.25 | ER34: 2.188439 | ES34: 0.5781873184 | ET34: 0.819921 | EV34: 288 | EW34: 36 | EX34: 8.517168 | EY34: 2.250242536 | EZ34: 2.75842
B35: 28 | C35: 3.5 | D35: 828.058 | E35: 0.828058 | F35: 0.2187735799 | G35: 0.32 | H35: 12.4 | I35: 28 | AA35: 18 | AC35: 26 | AD35: =AC35/8 -> 3.25 | AE35: =AC35*29.5735 -> 768.911 | AF35: =AE35/1000 -> 0.768911 | AG35: =AF35/3.785 -> 0.2031468956 | AH35: 0.297 | AJ35: 92 | AK35: 11.5 | AL35: 2720.762 | AM35: 2.720762 | AN35: 0.7188274769 | AO35: 0.993 | AR35: 18 | CR35: 34 | CS35: 4.25 | CT35: 1.005499 | CU35: 0.2656536328 | CV35: 0.386 | CX35: 96 | CY35: 12 | CZ35: 2.839056 | DA35: 0.7500808454 | DB35: 1.03 | DO35: 34 | DP35: 4.25 | DQ35: 1.005499 | DR35: 0.2656536328 | DS35: 0.386 | DV35: 34 | DW35: 4.25 | DX35: 1.005499 | DY35: 0.2656536328 | DZ35: 0.38793 | EB35: 33.97614262 | ED35: 34.3367017 | EP35: 78 | EQ35: 9.75 | ER35: 2.306733 | ES35: 0.6094406869 | ET35: 0.861372 | EV35: 294 | EW35: 36.75 | EX35: 8.694609 | EY35: 2.297122589 | EZ35: 2.7999
B36: 30 | C36: 3.75 | D36: 887.205 | E36: 0.887205 | F36: 0.2344002642 | G36: 0.342 | H36: 11.6 | I36: 30 | AA36: 19 | AC36: 28 | AD36: =AC36/8 -> 3.5 | AE36: =AC36*29.5735 -> 828.058 | AF36: =AE36/1000 -> 0.828058 | AG36: =AF36/3.785 -> 0.2187735799 | AH36: 0.32 | AJ36: 96 | AK36: 12 | AL36: 2839.056 | AM36: 2.839056 | AN36: 0.7500808454 | AO36: 1.03 | AR36: 19 | CR36: 35 | CS36: 4.375 | CT36: 1.0350725 | CU36: 0.2734669749 | CV36: 0.397 | CX36: 98 | CY36: 12.25 | CZ36: 2.898203 | DA36: 0.7657075297 | DB36: 1.05 | DO36: 35 | DP36: 4.375 | DQ36: 1.0350725 | DR36: 0.2734669749 | DS36: 0.397 | DV36: 35 | DW36: 4.375 | DX36: 1.0350725 | DY36: 0.2734669749 | DZ36: 0.398985 | EB36: 34.9715852 | ED36: 35.35033465 | EN36: 1 | EP36: 82 | EQ36: 10.25 | ER36: 2.425027 | ES36: 0.6406940555 | ET36: 0.902704 | EV36: 300 | EW36: 37.5 | EX36: 8.87205 | EY36: 2.344002642 | EZ36: 2.84412 | FE36: Chemical Feed Rate (mL/min) for a Target Dose of 1 mg/L as Cl2
B37: 32 | C37: 4 | D37: 946.352 | E37: 0.946352 | F37: 0.2500269485 | G37: 0.364 | H37: 10.9 | I37: 32 | AA37: 20 | AC37: 30 | AD37: =AC37/8 -> 3.75 | AE37: =AC37*29.5735 -> 887.205 | AF37: =AE37/1000 -> 0.887205 | AG37: =AF37/3.785 -> 0.2344002642 | AH37: 0.342 | AJ37: 100 | AK37: 12.5 | AL37: 2957.35 | AM37: 2.95735 | AN37: 0.781334214 | AO37: 1.07 | AR37: 20 | CR37: 36 | CS37: 4.5 | CT37: 1.064646 | CU37: 0.281280317 | CV37: 0.408 | CX37: 100 | CY37: 12.5 | CZ37: 2.95735 | DA37: 0.781334214 | DB37: 1.07 | DO37: 36 | DP37: 4.5 | DQ37: 1.064646 | DR37: 0.281280317 | DS37: 0.408 | DV37: 36 | DW37: 4.5 | DX37: 1.064646 | DY37: 0.281280317 | DZ37: 0.41004 | EB37: 35.96853567 | ED37: 36.3639676 | EP37: 86 | EQ37: 10.75 | ER37: 2.543321 | ES37: 0.671947424 | ET37: 0.944116 | EV37: 306 | EW37: 38.25 | EX37: 9.049491 | EY37: 2.390882695 | EZ37: 2.89881 | FB37: 1 | FD37: Flow | FE37: Based on %NaOCl Solution Strength (w/v)
B38: 48 | C38: 6 | D38: 1419.528 | E38: 1.419528 | F38: 0.3750404227 | G38: 0.538 | H38: 7.34 | I38: 48 | CR38: 37 | CS38: 4.625 | CT38: 1.0942195 | CU38: 0.2890936592 | CV38: 0.419 | CX38: 102 | CY38: 12.75 | CZ38: 3.016497 | DA38: 0.7969608983 | DB38: 1.09 | DO38: 37 | DP38: 4.625 | DQ38: 1.0942195 | DR38: 0.2890936592 | DS38: 0.419 | DV38: 37 | DW38: 4.625 | DX38: 1.0942195 | DY38: 0.2890936592 | DZ38: 0.421514 | EB38: 37.00486666 | ED38: 37.41601866 | EP38: 90 | EQ38: 11.25 | ER38: 2.661615 | ES38: 0.7032007926 | ET38: 0.985649 | EV38: 312 | EW38: 39 | EX38: 9.226932 | EY38: 2.437762748 | EZ38: 2.94037 | FD38: gpm | FE38: 1.833% 178 oz | FF38: 1.939% 190 oz | FG38: 2.064% 204 oz | FH38: 2.215% 222 oz | FI38: 2.363% 240 oz | FJ38: 2.533% 260 oz | FK38: 2.704% 282 oz | FL38: 2.899% 306 oz | FM38: 3.071% 330 oz | FN38: 3.254% 354 oz | FO38: 3.462% 384 oz
B39: 64 | C39: 8 | D39: 1892.704 | E39: 1.892704 | F39: 0.500053897 | G39: 0.707 | H39: 5.57 | I39: 64 | CR39: 38 | CS39: 4.75 | CT39: 1.123793 | CU39: 0.2969070013 | CV39: 0.43 | CX39: 104 | CY39: 13 | CZ39: 3.075644 | DA39: 0.8125875826 | DB39: 1.11 | DO39: 38 | DP39: 4.75 | DQ39: 1.123793 | DR39: 0.2969070013 | DS39: 0.43 | DV39: 38 | DW39: 4.75 | DX39: 1.123793 | DY39: 0.2969070013 | DZ39: 0.43258 | EB39: 38.00588585 | ED39: 38.4306602 | EN39: 1 | EP39: 94 | EQ39: 11.75 | ER39: 2.779909 | ES39: 0.7344541612 | ET39: 1.02414 | EV39: 318 | EW39: 39.75 | EX39: 9.404373 | EY39: 2.484642801 | EZ39: 2.9848 | FD39: 10 | FE39: 2.17 | FF39: 2.05 | FG39: 1.93 | FH39: 1.8 | FI39: 1.69 | FJ39: 1.57 | FK39: 1.47 | FL39: 1.38 | FM39: 1.3 | FN39: 1.23 | FO39: 1.15
B40: 68 | C40: 8.5 | D40: 2010.998 | E40: 2.010998 | F40: 0.5313072655 | G40: 0.749 | CR40: 39 | CS40: 4.875 | CT40: 1.1533665 | CU40: 0.3047203435 | CV40: 0.441 | CX40: 106 | CY40: 13.25 | CZ40: 3.134791 | DA40: 0.8282142668 | DB40: 1.13 | DO40: 39 | DP40: 4.875 | DQ40: 1.1533665 | DR40: 0.3047203435 | DS40: 0.441 | DV40: 39 | DW40: 4.875 | DX40: 1.1533665 | DY40: 0.3047203435 | DZ40: 0.443646 | EB40: 39.00841594 | ED40: 39.44530174 | EP40: 98 | EQ40: 12.25 | ER40: 2.898203 | ES40: 0.7657075297 | ET40: 1.0647 | EV40: 324 | EW40: 40.5 | EX40: 9.581814 | EY40: 2.531522853 | EZ40: 3.0264 | FD40: 15 | FE40: 3.26 | FF40: 3.08 | FG40: 2.89 | FH40: 2.7 | FI40: 2.53 | FJ40: 2.36 | FK40: 2.21 | FL40: 2.06 | FM40: 1.95 | FN40: 1.84 | FO40: 1.73
B41: 72 | C41: =B41/8 -> 9 | D41: =B41*29.5735 -> 2129.292 | E41: =D41/1000 -> 2.129292 | F41: =E41/3.785 -> 0.5625606341 | G41: 0.79 | CR41: 40 | CS41: 5 | CT41: 1.18294 | CU41: 0.3125336856 | CV41: 0.452 | CX41: 108 | CY41: 13.5 | CZ41: 3.193938 | DA41: 0.8438409511 | DB41: 1.15 | DO41: 40 | DP41: 5 | DQ41: 1.18294 | DR41: 0.3125336856 | DS41: 0.452 | DV41: 40 | DW41: 5 | DX41: 1.18294 | DY41: 0.3125336856 | DZ41: 0.454712 | EB41: 40.01245692 | ED41: 40.45994328 | EP41: 102 | EQ41: 12.75 | ER41: 3.016497 | ES41: 0.7969608983 | ET41: 1.10635 | EV41: 330 | EW41: 41.25 | EX41: 9.759255 | EY41: 2.578402906 | EZ41: 3.07095 | FB41: 1 | FD41: 20 | FE41: 4.34 | FF41: 4.1 | FG41: 3.86 | FH41: 3.59 | FI41: 3.37 | FJ41: 3.14 | FK41: 2.94 | FL41: 2.75 | FM41: 2.59 | FN41: 2.45 | FO41: 2.3
B42: 76 | C42: 9.5 | D42: 2247.586 | E42: 2.247586 | F42: 0.5938140026 | G42: 0.832 | CR42: 41 | CS42: 5.125 | CT42: 1.2125135 | CU42: 0.3203470277 | CV42: 0.463 | CX42: 110 | CY42: 13.75 | CZ42: 3.253085 | DA42: 0.8594676354 | DB42: 1.17 | DO42: 41 | DP42: 5.125 | DQ42: 1.2125135 | DR42: 0.3203470277 | DS42: 0.463 | DV42: 41 | DW42: 5.125 | DX42: 1.2125135 | DY42: 0.3203470277 | DZ42: 0.465778 | EB42: 41.01800879 | ED42: 41.47458482 | EN42: 1 | EP42: 106 | EQ42: 13.25 | ER42: 3.134791 | ES42: 0.8282142668 | ET42: 1.14695 | EV42: 336 | EW42: 42 | EX42: 9.936696 | EY42: 2.625282959 | EZ42: 3.11558 | FD42: 25 | FE42: 5.42 | FF42: 5.13 | FG42: 4.82 | FH42: 4.49 | FI42: 4.21 | FJ42: 3.93 | FK42: 3.68 | FL42: 3.43 | FM42: 3.24 | FN42: 3.06 | FO42: 2.87
B43: 80 | C43: 10 | D43: 2365.88 | E43: 2.36588 | F43: 0.6250673712 | G43: 0.872 | CR43: 42 | CS43: 5.25 | CT43: 1.242087 | CU43: 0.3281603699 | CV43: 0.474 | CX43: 112 | CY43: 14 | CZ43: 3.312232 | DA43: 0.8750943197 | DB43: 1.19 | DO43: 42 | DP43: 5.25 | DQ43: 1.242087 | DR43: 0.3281603699 | DS43: 0.474 | DV43: 42 | DW43: 5.25 | DX43: 1.242087 | DY43: 0.3281603699 | DZ43: 0.476844 | EB43: 42.02507155 | ED43: 42.48922636 | EP43: 110 | EQ43: 13.75 | ER43: 3.253085 | ES43: 0.8594676354 | ET43: 1.18872 | EV43: 342 | EW43: 42.75 | EX43: 10.114137 | EY43: 2.672163012 | EZ43: 3.16768 | FD43: 30 | FE43: 6.51 | FF43: 6.15 | FG43: 5.78 | FH43: 5.39 | FI43: 5.05 | FJ43: 4.71 | FK43: 4.41 | FL43: 4.12 | FM43: 3.89 | FN43: 3.67 | FO43: 3.45
B44: 84 | C44: 10.5 | D44: 2484.174 | E44: 2.484174 | F44: 0.6563207398 | G44: 0.913 | CR44: 43 | CS44: 5.375 | CT44: 1.2716605 | CU44: 0.335973712 | CV44: 0.484 | CX44: 114 | CY44: 14.25 | CZ44: 3.371379 | DA44: 0.890721004 | DB44: 1.21 | DO44: 43 | DP44: 5.375 | DQ44: 1.2716605 | DR44: 0.335973712 | DS44: 0.484 | DV44: 43 | DW44: 5.375 | DX44: 1.2716605 | DY44: 0.335973712 | DZ44: 0.487388 | EB44: 42.9860353 | ED44: 43.45600572 | EP44: 114 | EQ44: 14.25 | ER44: 3.371379 | ES44: 0.890721004 | ET44: 1.22936 | EV44: 348 | EW44: 43.5 | EX44: 10.291578 | EY44: 2.719043065 | EZ44: 3.20201 | FD44: 35 | FE44: 7.59 | FF44: 7.18 | FG44: 6.74 | FH44: 6.29 | FI44: 5.89 | FJ44: 5.5 | FK44: 5.15 | FL44: 4.8 | FM44: 4.53 | FN44: 4.28 | FO44: 4.02
B45: 88 | C45: 11 | D45: 2602.468 | E45: 2.602468 | F45: 0.6875741083 | G45: 0.953 | CR45: 44 | CS45: 5.5 | CT45: 1.301234 | CU45: 0.3437870542 | CV45: 0.495 | CX45: 116 | CY45: 14.5 | CZ45: 3.430526 | DA45: 0.9063476882 | DB45: 1.23 | DO45: 44 | DP45: 5.5 | DQ45: 1.301234 | DR45: 0.3437870542 | DS45: 0.495 | DV45: 44 | DW45: 5.5 | DX45: 1.301234 | DY45: 0.3437870542 | DZ45: 0.498465 | EB45: 43.99705332 | ED45: 44.47165585 | EN45: 1 | EP45: 118 | EQ45: 14.75 | ER45: 3.489673 | ES45: 0.9219743725 | ET45: 1.26108 | EV45: 354 | EW45: 44.25 | EX45: 10.469019 | EY45: 2.765923118 | EZ45: 3.25416 | FB45: 1 | FD45: 40 | FE45: 8.68 | FF45: 8.2 | FG45: 7.71 | FH45: 7.18 | FI45: 6.73 | FJ45: 6.28 | FK45: 5.88 | FL45: 5.49 | FM45: 5.18 | FN45: 4.89 | FO45: 4.6
B46: 92 | C46: 11.5 | D46: 2720.762 | E46: 2.720762 | F46: 0.7188274769 | G46: 0.993 | CR46: 45 | CS46: 5.625 | CT46: 1.3308075 | CU46: 0.3516003963 | CV46: 0.506 | CX46: 118 | CY46: 14.75 | CZ46: 3.489673 | DA46: 0.9219743725 | DB46: 1.24 | DO46: 45 | DP46: 5.625 | DQ46: 1.3308075 | DR46: 0.3516003963 | DS46: 0.506 | DV46: 45 | DW46: 5.625 | DX46: 1.3308075 | DY46: 0.3516003963 | DZ46: 0.509542 | EB46: 45.00958523 | ED46: 45.48730598 | EP46: 122 | EQ46: 15.25 | ER46: 3.607967 | ES46: 0.9532277411 | ET46: 1.30176 | EV46: 360 | EW46: 45 | EX46: 10.64646 | EY46: 2.81280317 | EZ46: 3.2886 | FD46: 45 | FE46: 9.76 | FF46: 9.23 | FG46: 8.67 | FH46: 8.08 | FI46: 7.57 | FJ46: 7.06 | FK46: 6.62 | FL46: 6.17 | FM46: 5.83 | FN46: 5.5 | FO46: 5.17
B47: 96 | C47: 12 | D47: 2839.056 | E47: 2.839056 | F47: 0.7500808454 | G47: 1.03 | CR47: 46 | CS47: 5.75 | CT47: 1.360381 | CU47: 0.3594137384 | CV47: 0.517 | CX47: 120 | CY47: 15 | CZ47: 3.54882 | DA47: 0.9376010568 | DB47: 1.26 | DO47: 46 | DP47: 5.75 | DQ47: 1.360381 | DR47: 0.3594137384 | DS47: 0.517 | DV47: 46 | DW47: 5.75 | DX47: 1.360381 | DY47: 0.3594137384 | DZ47: 0.520619 | EB47: 46.02363103 | ED47: 46.50295611 | EP47: 126 | EQ47: 15.75 | ER47: 3.726261 | ES47: 0.9844811096 | ET47: 1.34376 | EV47: 366 | EW47: 45.75 | EX47: 10.823901 | EY47: 2.859683223 | EZ47: 3.33036 | FD47: 50 | FE47: 10.84 | FF47: 10.25 | FG47: 9.63 | FH47: 8.98 | FI47: 8.41 | FJ47: 7.85 | FK47: 7.35 | FL47: 6.86 | FM47: 6.47 | FN47: 6.11 | FO47: 5.74
B48: 100 | C48: =B48/8 -> 12.5 | D48: =B48*29.5735 -> 2957.35 | E48: =D48/1000 -> 2.95735 | F48: =E48/3.785 -> 0.781334214 | G48: 1.07 | H48: 3.5 | I48: 100 | CR48: 47 | CS48: 5.875 | CT48: 1.3899545 | CU48: 0.3672270806 | CV48: 0.528 | CX48: 122 | CY48: 15.25 | CZ48: 3.607967 | DA48: 0.9532277411 | DB48: 1.28 | DO48: 47 | DP48: 5.875 | DQ48: 1.3899545 | DR48: 0.3672270806 | DS48: 0.528 | DV48: 47 | DW48: 5.875 | DX48: 1.3899545 | DY48: 0.3672270806 | DZ48: 0.531696 | EB48: 47.03919074 | ED48: 47.51860624 | EN48: 1 | EP48: 130 | EQ48: 16.25 | ER48: 3.844555 | ES48: 1.015734478 | ET48: 1.38448 | EV48: 372 | EW48: 46.5 | EX48: 11.001342 | EY48: 2.906563276 | EZ48: 3.37535 | FD48: 55 | FE48: 11.93 | FF48: 11.28 | FG48: 10.59 | FH48: 9.87 | FI48: 9.25 | FJ48: 8.63 | FK48: 8.09 | FL48: 7.54 | FM48: 7.12 | FN48: 6.72 | FO48: 6.32
CR49: 48 | CS49: 6 | CT49: 1.419528 | CU49: 0.3750404227 | CV49: 0.538 | CX49: 124 | CY49: 15.5 | CZ49: 3.667114 | DA49: 0.9688544254 | DB49: 1.3 | DO49: 48 | DP49: 6 | DQ49: 1.419528 | DR49: 0.3750404227 | DS49: 0.538 | DV49: 48 | DW49: 6 | DX49: 1.419528 | DY49: 0.3750404227 | DZ49: 0.541766 | EB49: 47.96374054 | ED49: 48.44192454 | EP49: 134 | EQ49: 16.75 | ER49: 3.962849 | ES49: 1.046987847 | ET49: 1.41641 | EV49: 378 | EW49: 47.25 | EX49: 11.178783 | EY49: 2.953443329 | EZ49: 3.42042 | FD49: 60 | FE49: 13.01 | FF49: 12.3 | FG49: 11.56 | FH49: 10.77 | FI49: 10.09 | FJ49: 9.42 | FK49: 8.82 | FL49: 8.23 | FM49: 7.77 | FN49: 7.33 | FO49: 6.89
CR50: 49 | CS50: 6.125 | CT50: 1.4491015 | CU50: 0.3828537649 | CV50: 0.549 | CX50: 126 | CY50: 15.75 | CZ50: 3.726261 | DA50: 0.9844811096 | DB50: 1.32 | DO50: 49 | DP50: 6.125 | DQ50: 1.4491015 | DR50: 0.3828537649 | DS50: 0.549 | DV50: 49 | DW50: 6.125 | DX50: 1.4491015 | DY50: 0.3828537649 | DZ50: 0.552843 | EB50: 48.98219041 | ED50: 49.45757467 | EP50: 138 | EQ50: 17.25 | ER50: 4.081143 | ES50: 1.078241215 | ET50: 1.45717 | EV50: 384 | EW50: 48 | EX50: 11.356224 | EY50: 3.000323382 | EZ50: 3.46226 | FB50: 1
C51: 1.0 mg/L dosage measured as Cl2 | AD51: =15/0.25 -> 60 | AK51: =14/0.5 -> 28 | AR51: =14 -> 14 | BF51: =19/3 -> 6.333333333 | BM51: =14.5/3 -> 4.833333333 | BT51: =15/4 -> 3.75 | CA51: =12/4 -> 3 | CR51: 50 | CS51: 6.25 | CT51: 1.478675 | CU51: 0.390667107 | CV51: 0.559 | CX51: 128 | CY51: 16 | CZ51: 3.785408 | DA51: 1.000107794 | DB51: 1.34 | DO51: 50 | DP51: 6.25 | DQ51: 1.478675 | DR51: 0.390667107 | DS51: 0.559 | DV51: 50 | DW51: 6.25 | DX51: 1.478675 | DY51: 0.390667107 | DZ51: 0.563472 | EB51: 49.96087322 | ED51: 50.43214768
Y52: 0.245% Strength NaOCl Solution | AG52: 0.514% Strength NaOCl Solution | AN52: 0.987% Strength NaOCl Solution | AU52: 1.47% Strength NaOCl Solution | BA52: ` | BB52: 1.99% Strength NaOCl Solution | BH52: ` | BI52: 2.49% Strength NaOCl Solution | BO52: ` | BP52: 3% Strength NaOCl Solution | BV52: ` | BW52: 3.57% Strength NaOCl Solution | CR52: 51 | CS52: =CR52/8 -> 6.375 | CT52: 1.5082485 | CU52: 0.3984804491 | CV52: 0.57 | DO52: 51 | DP52: 6.375 | DQ52: 1.5082485 | DR52: 0.3984804491 | DS52: 0.57 | DV52: 51 | DW52: 6.375 | DX52: 1.5082485 | DY52: 0.3984804491 | DZ52: 0.57456 | EB52: 50.98330472 | ED52: 51.4488064
C53: 15 H2O to 0.10 NaOCl | F53: 15 H2O to 0.25 NaOCl | I53: 14 H2O to 0.5 NaOCl | L53: 14 H2O to1 NaOCl | Q53: 9 H2O to1 NaOCl | Y53: 1.0 mg/L NaOCl dosage measured as Cl2 | AE53: 0.514 | AG53: 1.0 mg/L NaOCl dosage measured as Cl2 | AL53: 1 | AN53: 1.0 mg/L NaOCl dosage measured as Cl2 | AU53: 1.0 mg/L NaOCl dosage measured as Cl2 | BB53: 1.0 mg/L NaOCl dosage measured as Cl2 | BI53: 1.0 mg/L NaOCl dosage measured as Cl2 | BN53: 3.03 | BP53: 1.0 mg/L NaOCl dosage measured as Cl2 | BW53: 1.0 mg/L NaOCl dosage measured as Cl2 | CR53: 52 | CS53: 6.5 | CT53: =CR53*29.5735/1000 -> 1.537822 | CU53: =CT53/3.785 -> 0.4062937913 | CV53: 0.581 | DO53: 52 | DP53: 6.5 | DQ53: 1.537822 | DR53: 0.4062937913 | DS53: 0.581 | DV53: 52 | DW53: 6.5 | DX53: 1.537822 | DY53: 0.4062937913 | DZ53: 0.585648 | EB53: 52.00725312 | ED53: 52.46546512
C54: 0.1% NaOCl Solution | F54: 0.25% NaOCl Solution | I54: 0.5% NaOCl Solution | L54: 1.0% NaOCl Solution | Q54: 1.47% NaOCl Solution | U54: 10 hr/day | V54: 10 Days | AB54: 10 hr/day | AC54: 10 Days | AJ54: 10 hr/day | AK54: 10 Days | AQ54: 10 hr/day | AR54: 10 Days | AX54: 10 hr/day | AY54: 10 Days | BB54: 1.99% NaOCl Solution | BE54: 10 hr/day | BF54: 10 Days | BI54: 2.49% NaOCl Solution | BL54: 10 hr/day | BM54: 10 Days | BP54: 3% NaOCl Solution | BS54: 10 hr/day | BT54: 10 Days | BW54: 3.57% NaOCl Solution | BZ54: 10 hr/day | CA54: 10 Days | CR54: 53 | CS54: 6.625 | CT54: 1.5673955 | CU54: 0.4141071334 | CV54: 0.592 | DO54: 53 | DP54: 6.625 | DQ54: 1.5673955 | DR54: 0.4141071334 | DS54: 0.592 | DV54: 53 | DW54: 6.625 | DX54: 1.5673955 | DY54: 0.4141071334 | DZ54: 0.596736 | EB54: 53.03271843 | ED54: 53.48212384
B55: Flow | C55: Chemical Feed Rate | F55: Chemical Feed Rate | I55: Chemical Feed Rate | L55: Chemical Feed Rate | Q55: Chemical Feed Rate | U55: Usage | V55: 10 hr/day | X55: Flow | AB55: Usage | AC55: 10 hr/day | AF55: Flow | AJ55: Usage | AK55: 10 hr/day | AM55: Flow | AQ55: Usage | AR55: 10 hr/day | AT55: Flow | AX55: Usage | AY55: 10 hr/day | BA55: Flow | BB55: Chemical Feed Rate | BE55: Usage | BF55: 10 hr/day | BH55: Flow | BI55: Chemical Feed Rate | BL55: Usage | BM55: 10 hr/day | BO55: Flow | BP55: Chemical Feed Rate | BS55: Usage | BT55: 10 hr/day | BV55: Flow | BW55: Chemical Feed Rate | BZ55: Usage | CA55: 10 hr/day | CR55: 54 | CS55: 6.75 | CT55: 1.596969 | CU55: 0.4219204756 | CV55: 0.602 | DO55: 54 | DP55: 6.75 | DQ55: 1.596969 | DR55: 0.4219204756 | DS55: 0.602 | DV55: 54 | DW55: 6.75 | DX55: 1.596969 | DY55: 0.4219204756 | DZ55: 0.606816 | EB55: 53.96627595 | ED55: 54.40635904
B56: gpm | C56: mL/min | D56: L/hr | E56: Gal/hr | F56: mL/min | G56: L/hr | H56: Gal/hr | I56: mL/min | J56: L/hr | K56: Gal/hr | L56: mL/min | M56: L/hr | N56: Gal/hr | Q56: mL/min | R56: L/hr | S56: Gal/hr | U56: gallons | V56: Usage, gal | X56: gpm | AB56: gallons | AC56: Usage, gal | AF56: gpm | AJ56: gallons | AK56: Usage, gal | AM56: gpm | AQ56: gallons | AR56: Usage, gal | AT56: gpm | AX56: gallons | AY56: Usage, gal | BA56: gpm | BB56: mL/min | BC56: L/hr | BD56: Gal/hr | BE56: gallons | BF56: Usage, gal | BH56: gpm | BI56: mL/min | BJ56: L/hr | BK56: Gal/hr | BL56: gallons | BM56: Usage, gal | BO56: gpm | BP56: mL/min | BQ56: L/hr | BR56: Gal/hr | BS56: gallons | BT56: Usage, gal | BV56: gpm | BW56: mL/min | BX56: L/hr | BY56: Gal/hr | BZ56: gallons | CA56: Usage, gal | CR56: 55 | CS56: 6.875 | CT56: 1.6265425 | CU56: 0.4297338177 | CV56: 0.613 | DO56: 55 | DP56: 6.875 | DQ56: 1.6265425 | DR56: 0.4297338177 | DS56: 0.613 | DV56: 55 | DW56: 6.875 | DX56: 1.6265425 | DY56: 0.4297338177 | DZ56: 0.617904 | EB56: 54.99463716 | ED56: 55.42301776
B57: 10 | C57: =1*B57*3.785/1000/0.00099*1.049871/1.001 -> 40.09890852 | D57: =C57/1000*60 -> 2.405934511 | E57: =D57/3.785 -> 0.6356498047 | F57: =1*B57*3.785/1000/0.00245*1.049871/1.003 -> 16.17092288 | G57: =F57/1000*60 -> 0.9702553731 | H57: =G57/3.785 -> 0.2563422386 | I57: =1*B57*3.785/1000/0.00514*1.049871/1.007 -> 7.67731277 | J57: =I57/1000*60 -> 0.4606387662 | K57: =J57/3.785 -> 0.1217011271 | L57: =1*B57*3.785/1000/0.00987*1.049871/1.013 -> 3.974433414 | M57: =L57/1000*60 -> 0.2384660049 | N57: =M57/3.785 -> 0.06300290749 | Q57: =1*AT57*3.785/1000/0.0147*1.049871/1.02 -> 2.650234584 | R57: =Q57/1000*60 -> 0.159014075 | S57: =R57/3.785 -> 0.04201164466 | U57: =E57*10 -> 6.356498047 | V57: =U57*10 -> 63.56498047 | X57: 10 | AB57: =H57*10 -> 2.563422386 | AC57: =AB57*10 -> 25.63422386 | AD57: =I57/AE57 -> 1.012609383 | AE57: =0.3897/$AE$53*AF57 -> 7.581712062 | AF57: 10 | AJ57: =K57*10 -> 1.217011271 | AK57: =AJ57*10 -> 12.17011271 | AM57: 10 | AQ57: =N57*10 -> 0.6300290749 | AR57: =AQ57*10 -> 6.300290749 | AT57: 10 | AX57: =S57*10 -> 0.4201164466 | AY57: =AX57*10 -> 4.201164466 | BA57: 10 | BB57: =1*BA57*3.785/1000/0.0199*1.049871/1.027 -> 1.944367277 | BC57: =BB57/1000*60 -> 0.1166620366 | BD57: =BC57/3.785 -> 0.03082220254 | BE57: =BD57*10 -> 0.3082220254 | BF57: =BE57*10 -> 3.082220254 | BH57: 10 | BI57: =1*BH57*3.785/1000/0.0249*1.049871/1.034 -> 1.543412231 | BJ57: =BI57/1000*60 -> 0.09260473387 | BK57: =BJ57/3.785 -> 0.02446624409 | BL57: =BK57*10 -> 0.2446624409 | BM57: =BL57*10 -> 2.446624409 | BN57: =0.4048/$BN$53*BO57 -> 1.335973597 | BO57: 10 | BP57: =1*BO57*3.785/1000/0.0303*1.049871/1.042 -> 1.258610864 | BQ57: =BP57/1000*60 -> 0.07551665181 | BR57: =BQ57/3.785 -> 0.01995155926 | BS57: =BR57*10 -> 0.1995155926 | BT57: =BS57*10 -> 1.995155926 | BV57: 10 | BW57: =1*BV57*3.785/1000/0.0357*1.049871/1.05 -> 1.060093834 | BX57: =BW57/1000*60 -> 0.06360563001 | BY57: =BX57/3.785 -> 0.01680465786 | BZ57: =BY57*10 -> 0.1680465786 | CA57: =BZ57*10 -> 1.680465786 | CF57: 22.98977 | CG57: 15.9994 | CH57: 35.453 | CR57: 56 | CS57: 7 | CT57: 1.656116 | CU57: 0.4375471598 | CV57: 0.624 | DO57: 56 | DP57: 7 | DQ57: 1.656116 | DR57: 0.4375471598 | DS57: 0.624 | DV57: 56 | DW57: 7 | DX57: 1.656116 | DY57: 0.4375471598 | DZ57: 0.628992 | EB57: 56.02451529 | ED57: 56.43967648
B58: 15 | C58: =1*B58*3.785/1000/0.00099*1.049871/1.001 -> 60.14836277 | D58: =C58/1000*60 -> 3.608901766 | E58: =D58/3.785 -> 0.9534747071 | F58: =1*B58*3.785/1000/0.00245*1.049871/1.003 -> 24.25638433 | G58: =F58/1000*60 -> 1.45538306 | H58: =G58/3.785 -> 0.3845133579 | I58: =1*B58*3.785/1000/0.00514*1.049871/1.007 -> 11.51596915 | J58: =I58/1000*60 -> 0.6909581493 | K58: =J58/3.785 -> 0.1825516907 | L58: =1*B58*3.785/1000/0.00987*1.049871/1.013 -> 5.961650121 | M58: =L58/1000*60 -> 0.3576990073 | N58: =M58/3.785 -> 0.09450436124 | Q58: 3.975351876 | R58: =Q58/1000*60 -> 0.2385211125 | S58: =R58/3.785 -> 0.06301746699 | U58: =E58*10 -> 9.534747071 | V58: =U58*10 -> 95.34747071 | X58: 15 | AB58: 3.845133579 | AC58: =AB58*10 -> 38.45133579 | AD58: 1.012609383 | AE58: =0.3897/$AE$53*AF58 -> 11.37256809 | AF58: 15 | AJ58: 1.825516907 | AK58: =AJ58*10 -> 18.25516907 | AM58: 15 | AQ58: 0.9450436124 | AR58: =AQ58*10 -> 9.450436124 | AT58: 15 | AX58: 0.6301746699 | AY58: =AX58*10 -> 6.301746699 | BA58: 15 | BB58: =1*BA58*3.785/1000/0.0199*1.049871/1.027 -> 2.916550915 | BC58: =BB58/1000*60 -> 0.1749930549 | BD58: =BC58/3.785 -> 0.04623330381 | BE58: =BD58*10 -> 0.4623330381 | BF58: =BE58*10 -> 4.623330381 | BH58: 15 | BI58: =1*BH58*3.785/1000/0.0249*1.049871/1.034 -> 2.315118347 | BJ58: =BI58/1000*60 -> 0.1389071008 | BK58: =BJ58/3.785 -> 0.03669936613 | BL58: =BK58*10 -> 0.3669936613 | BM58: =BL58*10 -> 3.669936613 | BN58: =0.4048/$BN$53*BO58 -> 2.003960396 | BO58: 15 | BP58: =1*BO58*3.785/1000/0.0303*1.049871/1.042 -> 1.887916295 | BQ58: =BP58/1000*60 -> 0.1132749777 | BR58: =BQ58/3.785 -> 0.0299273389 | BS58: =BR58*10 -> 0.299273389 | BT58: =BS58*10 -> 2.99273389 | BV58: 15 | BW58: =1*BV58*3.785/1000/0.0357*1.049871/1.05 -> 1.59014075 | BX58: =BW58/1000*60 -> 0.09540844502 | BY58: =BX58/3.785 -> 0.02520698679 | BZ58: =BY58*10 -> 0.2520698679 | CA58: =BZ58*10 -> 2.520698679 | CR58: 57 | CS58: 7.125 | CT58: 1.6856895 | CU58: 0.445360502 | CV58: 0.634 | DO58: 57 | DP58: 7.125 | DQ58: 1.6856895 | DR58: 0.445360502 | DS58: 0.634 | DV58: 57 | DW58: 7.125 | DX58: 1.6856895 | DY58: 0.445360502 | DZ58: 0.639706 | EB58: 57.02109648 | ED58: 57.42204314
B59: 20 | C59: 80.19781703 | D59: =C59/1000*60 -> 4.811869022 | E59: 1.271299609 | F59: 32.34184577 | G59: =F59/1000*60 -> 1.940510746 | H59: 0.5126844772 | I59: 15.35462554 | J59: =I59/1000*60 -> 0.9212775324 | K59: 0.2434022543 | L59: 7.948866828 | M59: =L59/1000*60 -> 0.4769320097 | N59: 0.126005815 | Q59: 5.300469168 | R59: =Q59/1000*60 -> 0.3180281501 | S59: 0.08402328932 | U59: 12.71299609 | V59: 127.1299609 | X59: 20 | AB59: 5.126844772 | AC59: 51.26844772 | AD59: 1.012609383 | AE59: 15.16342412 | AF59: 20 | AJ59: 2.434022543 | AK59: 24.34022543 | AM59: 20 | AQ59: 1.26005815 | AR59: 12.6005815 | AT59: 20 | AX59: 0.8402328932 | AY59: 8.402328932 | BA59: 20 | BB59: 3.888734554 | BC59: =BB59/1000*60 -> 0.2333240732 | BD59: 0.06164440508 | BE59: 0.6164440508 | BF59: 6.164440508 | BH59: 20 | BI59: 3.086824462 | BJ59: =BI59/1000*60 -> 0.1852094677 | BK59: 0.04893248817 | BL59: 0.4893248817 | BM59: 4.893248817 | BN59: 2.671947195 | BO59: 20 | BP59: 2.517221727 | BQ59: =BP59/1000*60 -> 0.1510333036 | BR59: 0.03990311853 | BS59: 0.3990311853 | BT59: 3.990311853 | BV59: 20 | BW59: 2.120187667 | BX59: =BW59/1000*60 -> 0.12721126 | BY59: 0.03360931573 | BZ59: 0.3360931573 | CA59: 3.360931573 | CF59: =CF57+CG57+CH57 -> 74.44217 | CG59: =CH57*2 -> 70.906 | CI59: =CG59/CF59 -> 0.9524977577 | CJ59: =CF59/CG59 -> 1.049871238 | CR59: 58 | CS59: 7.25 | CT59: 1.715263 | CU59: 0.4531738441 | CV59: 0.644 | DO59: 58 | DP59: 7.25 | DQ59: 1.715263 | DR59: 0.4531738441 | DS59: 0.644 | DV59: 58 | DW59: 7.25 | DX59: 1.715263 | DY59: 0.4531738441 | DZ59: 0.649796 | EB59: 57.9609302 | ED59: 58.34719524
B60: 25 | C60: 100.2472713 | D60: 6.014836277 | E60: 1.589124512 | F60: 40.42730721 | G60: 2.425638433 | H60: 0.6408555965 | I60: 19.19328192 | J60: 1.151596915 | K60: 0.3042528178 | L60: 9.936083536 | M60: 0.5961650121 | N60: 0.1575072687 | Q60: 6.62558646 | R60: 0.3975351876 | S60: 0.1050291116 | U60: 15.89124512 | V60: 158.9124512 | X60: 25 | AB60: 6.408555965 | AC60: 64.08555965 | AD60: 1.012609383 | AE60: 18.95428016 | AF60: 25 | AJ60: 3.042528178 | AK60: 30.42528178 | AM60: 25 | AQ60: 1.575072687 | AR60: 15.75072687 | AT60: 25 | AX60: 1.050291116 | AY60: 10.50291116 | BA60: 25 | BB60: 4.860918192 | BC60: 0.2916550915 | BD60: 0.07705550635 | BE60: 0.7705550635 | BF60: 7.705550635 | BH60: 25 | BI60: 3.858530578 | BJ60: 0.2315118347 | BK60: 0.06116561022 | BL60: 0.6116561022 | BM60: 6.116561022 | BN60: 3.339933993 | BO60: 25 | BP60: 3.146527159 | BQ60: 0.1887916295 | BR60: 0.04987889816 | BS60: 0.4987889816 | BT60: 4.987889816 | BV60: 25 | BW60: 2.650234584 | BX60: 0.159014075 | BY60: 0.04201164466 | BZ60: 0.4201164466 | CA60: 4.201164466 | CR60: 59 | CS60: 7.375 | CT60: 1.7448365 | CU60: 0.4609871863 | CV60: 0.655 | DO60: 59 | DP60: 7.375 | DQ60: 1.7448365 | DR60: 0.4609871863 | DS60: 0.655 | DV60: 59 | DW60: 7.375 | DX60: 1.7448365 | DY60: 0.4609871863 | DZ60: 0.660895 | EB60: 58.99619813 | ED60: 59.36486255
B61: 30 | C61: 120.2967255 | D61: 7.217803533 | E61: 1.906949414 | F61: 48.51276865 | G61: 2.910766119 | H61: 0.7690267158 | I61: 23.03193831 | J61: 1.381916299 | K61: 0.3651033814 | L61: 11.92330024 | M61: 0.7153980146 | N61: 0.1890087225 | Q61: 7.950703752 | R61: 0.4770422251 | S61: 0.126034934 | U61: 19.06949414 | V61: 190.6949414 | X61: 30 | AB61: 7.690267158 | AC61: 76.90267158 | AD61: 1.012609383 | AE61: 22.74513619 | AF61: 30 | AJ61: 3.651033814 | AK61: 36.51033814 | AM61: 30 | AQ61: 1.890087225 | AR61: 18.90087225 | AT61: 30 | AX61: 1.26034934 | AY61: 12.6034934 | BA61: 30 | BB61: 5.833101831 | BC61: 0.3499861099 | BD61: 0.09246660762 | BE61: 0.9246660762 | BF61: 9.246660762 | BH61: 30 | BI61: 4.630236693 | BJ61: 0.2778142016 | BK61: 0.07339873226 | BL61: 0.7339873226 | BM61: 7.339873226 | BN61: 4.007920792 | BO61: 30 | BP61: 3.775832591 | BQ61: 0.2265499554 | BR61: 0.05985467779 | BS61: 0.5985467779 | BT61: 5.985467779 | BV61: 30 | BW61: 3.180281501 | BX61: 0.19081689 | BY61: 0.05041397359 | BZ61: 0.5041397359 | CA61: 5.041397359 | CR61: 60 | CS61: 7.5 | CT61: 1.77441 | CU61: 0.4688005284 | CV61: 0.666 | DO61: 60 | DP61: 7.5 | DQ61: 1.77441 | DR61: 0.4688005284 | DS61: 0.666 | DV61: 60 | DW61: 7.5 | DX61: 1.77441 | DY61: 0.4688005284 | DZ61: 0.671994 | EB61: 60.03298597 | ED61: 60.38252986
B62: 35 | C62: 140.3461798 | D62: 8.420770788 | E62: 2.224774317 | F62: 56.5982301 | G62: 3.395893806 | H62: 0.8971978351 | I62: 26.87059469 | J62: 1.612235682 | K62: 0.425953945 | L62: 13.91051695 | M62: 0.834631017 | N62: 0.2205101762 | Q62: 9.275821043 | R62: 0.5565492626 | S62: 0.1470407563 | U62: 22.24774317 | V62: 222.4774317 | X62: 35 | AB62: 8.971978351 | AC62: 89.71978351 | AD62: 1.012609383 | AE62: 26.53599222 | AF62: 35 | AJ62: 4.25953945 | AK62: 42.5953945 | AM62: 35 | AQ62: 2.205101762 | AR62: 22.05101762 | AT62: 35 | AX62: 1.470407563 | AY62: 14.70407563 | BA62: 35 | BB62: 6.805285469 | BC62: 0.4083171282 | BD62: 0.1078777089 | BE62: 1.078777089 | BF62: 10.78777089 | BH62: 35 | BI62: 5.401942809 | BJ62: 0.3241165685 | BK62: 0.0856318543 | BL62: 0.856318543 | BM62: 8.56318543 | BN62: 4.675907591 | BO62: 35 | BP62: 4.405138022 | BQ62: 0.2643082813 | BR62: 0.06983045742 | BS62: 0.6983045742 | BT62: 6.983045742 | BV62: 35 | BW62: 3.710328417 | BX62: 0.222619705 | BY62: 0.05881630252 | BZ62: 0.5881630252 | CA62: 5.881630252 | CR62: 61 | CS62: 7.625 | CT62: 1.8039835 | CU62: 0.4766138705 | CV62: 0.676 | DO62: 61 | DP62: 7.625 | DQ62: 1.8039835 | DR62: 0.4766138705 | DS62: 0.676 | DV62: 61 | DW62: 7.625 | DX62: 1.8039835 | DY62: 0.4766138705 | DZ62: 0.682084 | EB62: 60.9768393 | ED62: 61.30768196
B63: 40 | C63: 160.3956341 | D63: 9.623738044 | E63: 2.542599219 | F63: 64.68369154 | G63: 3.881021492 | H63: 1.025368954 | I63: 30.70925108 | J63: 1.842555065 | K63: 0.4868045085 | L63: 15.89773366 | M63: 0.9538640194 | N63: 0.25201163 | Q63: 10.60093834 | R63: 0.6360563001 | S63: 0.1680465786 | U63: 25.42599219 | V63: 254.2599219 | X63: 40 | AB63: 10.25368954 | AC63: 102.5368954 | AD63: 1.012609383 | AE63: 30.32684825 | AF63: 40 | AJ63: 4.868045085 | AK63: 48.68045085 | AM63: 40 | AQ63: 2.5201163 | AR63: 25.201163 | AT63: 40 | AX63: 1.680465786 | AY63: 16.80465786 | BA63: 40 | BB63: 7.777469108 | BC63: 0.4666481465 | BD63: 0.1232888102 | BE63: 1.232888102 | BF63: 12.32888102 | BH63: 40 | BI63: 6.173648925 | BJ63: 0.3704189355 | BK63: 0.09786497635 | BL63: 0.9786497635 | BM63: 9.786497635 | BN63: 5.343894389 | BO63: 40 | BP63: 5.034443454 | BQ63: 0.3020666072 | BR63: 0.07980623705 | BS63: 0.7980623705 | BT63: 7.980623705 | BV63: 40 | BW63: 4.240375334 | BX63: 0.25442252 | BY63: 0.06721863145 | BZ63: 0.6721863145 | CA63: 6.721863145 | CR63: 62 | CS63: 7.75 | CT63: 1.833557 | CU63: 0.4844272127 | CV63: 0.687 | DO63: 62 | DP63: 7.75 | DQ63: 1.833557 | DR63: 0.4844272127 | DS63: 0.687 | DV63: 62 | DW63: 7.75 | DX63: 1.833557 | DY63: 0.4844272127 | DZ63: 0.693183 | EB63: 62.0165288 | ED63: 62.32534927
B64: 45 | C64: 180.4450883 | D64: 10.8267053 | E64: 2.860424121 | F64: 72.76915298 | G64: 4.366149179 | H64: 1.153540074 | I64: 34.54790746 | J64: 2.072874448 | K64: 0.5476550721 | L64: 17.88495036 | M64: 1.073097022 | N64: 0.2835130837 | Q64: 11.92605563 | R64: 0.7155633376 | S64: 0.189052401 | U64: 28.60424121 | V64: 286.0424121 | X64: 45 | AB64: 11.53540074 | AC64: 115.3540074 | AD64: 1.012609383 | AE64: 34.11770428 | AF64: 45 | AJ64: 5.476550721 | AK64: 54.76550721 | AM64: 45 | AQ64: 2.835130837 | AR64: 28.35130837 | AT64: 45 | AX64: 1.89052401 | AY64: 18.9052401 | BA64: 45 | BB64: 8.749652746 | BC64: 0.5249791648 | BD64: 0.1386999114 | BE64: 1.386999114 | BF64: 13.86999114 | BH64: 45 | BI64: 6.94535504 | BJ64: 0.4167213024 | BK64: 0.1100980984 | BL64: 1.100980984 | BM64: 11.00980984 | BN64: 6.011881188 | BO64: 45 | BP64: 5.663748886 | BQ64: 0.3398249332 | BR64: 0.08978201669 | BS64: 0.8978201669 | BT64: 8.978201669 | BV64: 45 | BW64: 4.770422251 | BX64: 0.2862253351 | BY64: 0.07562096038 | BZ64: 0.7562096038 | CA64: 7.562096038 | CR64: 63 | CS64: =CR64/8 -> 7.875 | CT64: 1.8631305 | CU64: 0.4922405548 | CV64: 0.697 | DO64: 63 | DP64: 7.875 | DQ64: 1.8631305 | DR64: 0.4922405548 | DS64: 0.697 | DV64: 63 | DW64: 7.875 | DX64: 1.8631305 | DY64: 0.4922405548 | DZ64: 0.703273 | EB64: 62.96302001 | ED64: 63.25050137
B65: 50 | C65: 200.4945426 | D65: 12.02967255 | E65: 3.178249024 | F65: 80.85461442 | G65: 4.851276865 | H65: 1.281711193 | I65: 38.38656385 | J65: 2.303193831 | K65: 0.6085056356 | L65: 19.87216707 | M65: 1.192330024 | N65: 0.3150145375 | Q65: 13.25117292 | R65: 0.7950703752 | S65: 0.2100582233 | U65: 31.78249024 | V65: 317.8249024 | X65: 50 | AB65: 12.81711193 | AC65: 128.1711193 | AD65: 1.012609383 | AE65: 37.90856031 | AF65: 50 | AJ65: 6.085056356 | AK65: 60.85056356 | AM65: 50 | AQ65: 3.150145375 | AR65: 31.50145375 | AT65: 50 | AX65: 2.100582233 | AY65: 21.00582233 | BA65: 50 | BB65: 9.721836385 | BC65: 0.5833101831 | BD65: 0.1541110127 | BE65: 1.541110127 | BF65: 15.41110127 | BH65: 50 | BI65: 7.717061156 | BJ65: 0.4630236693 | BK65: 0.1223312204 | BL65: 1.223312204 | BM65: 12.23312204 | BN65: 6.679867987 | BO65: 50 | BP65: 6.293054318 | BQ65: 0.3775832591 | BR65: 0.09975779632 | BS65: 0.9975779632 | BT65: 9.975779632 | BV65: 50 | BW65: 5.300469168 | BX65: 0.3180281501 | BY65: 0.08402328932 | BZ65: 0.8402328932 | CA65: 8.402328932 | CP65: 94 | CR65: 64 | CS65: 8 | CT65: 1.892704 | CU65: 0.500053897 | CV65: 0.707 | DO65: 64 | DP65: 8 | DQ65: 1.892704 | DR65: 0.500053897 | DS65: 0.707 | DV65: 64 | DW65: 8 | DX65: 1.892704 | DY65: 0.500053897 | DZ65: 0.71407 | EB65: 63.9772225 | ED65: 64.2404783
B66: 55 | C66: 220.5439968 | D66: 13.23263981 | E66: 3.496073926 | F66: 88.94007586 | G66: 5.336404552 | H66: 1.409882312 | I66: 42.22522023 | J66: 2.533513214 | K66: 0.6693561992 | L66: 21.85938378 | M66: 1.311563027 | N66: 0.3465159912 | Q66: 14.57629021 | R66: 0.8745774127 | S66: 0.2310640456 | U66: 34.96073926 | V66: 349.6073926 | X66: 55 | AB66: 14.09882312 | AC66: 140.9882312 | AD66: 1.012609383 | AE66: 41.69941634 | AF66: 55 | AJ66: 6.693561992 | AK66: 66.93561992 | AM66: 55 | AQ66: 3.465159912 | AR66: 34.65159912 | AT66: 55 | AX66: 2.310640456 | AY66: 23.10640456 | BA66: 55 | BB66: 10.69402002 | BC66: 0.6416412014 | BD66: 0.169522114 | BE66: 1.69522114 | BF66: 16.9522114 | BH66: 55 | BI66: 8.488767271 | BJ66: 0.5093260363 | BK66: 0.1345643425 | BL66: 1.345643425 | BM66: 13.45643425 | BN66: 7.347854785 | BO66: 55 | BP66: 6.922359749 | BQ66: 0.415341585 | BR66: 0.1097335759 | BS66: 1.097335759 | BT66: 10.97335759 | BV66: 55 | BW66: 5.830516084 | BX66: 0.3498309651 | BY66: 0.09242561825 | BZ66: 0.9242561825 | CA66: 9.242561825 | CR66: 65 | CS66: 8.125 | CT66: =CR66*29.5735/1000 -> 1.9222775 | CU66: =CT66/3.785 -> 0.5078672391 | CV66: 0.718 | DO66: 65 | DP66: 8.125 | DQ66: 1.9222775 | DR66: 0.5078672391 | DS66: 0.718 | DV66: 65 | DW66: 8.125 | DX66: 1.9222775 | DY66: 0.5078672391 | DZ66: 0.72518 | EB66: 65.02232772 | ED66: 65.2591542
B67: 60 | C67: 240.5934511 | D67: 14.43560707 | E67: 3.813898828 | F67: 97.02553731 | G67: 5.821532238 | H67: 1.538053432 | I67: 46.06387662 | J67: 2.763832597 | K67: 0.7302067628 | L67: 23.84660049 | M67: 1.430796029 | N67: 0.3780174449 | Q67: 15.9014075 | R67: 0.9540844502 | S67: 0.2520698679 | U67: 38.13898828 | V67: 381.3898828 | X67: 60 | AB67: 15.38053432 | AC67: 153.8053432 | AD67: 1.012609383 | AE67: 45.49027237 | AF67: 60 | AJ67: 7.302067628 | AK67: 73.02067628 | AM67: 60 | AQ67: 3.780174449 | AR67: 37.80174449 | AT67: 60 | AX67: 2.520698679 | AY67: 25.20698679 | BA67: 60 | BB67: 11.66620366 | BC67: 0.6999722197 | BD67: 0.1849332152 | BE67: 1.849332152 | BF67: 18.49332152 | BH67: 60 | BI67: 9.260473387 | BJ67: 0.5556284032 | BK67: 0.1467974645 | BL67: 1.467974645 | BM67: 14.67974645 | BN67: 8.015841584 | BO67: 60 | BP67: 7.551665181 | BQ67: 0.4530999109 | BR67: 0.1197093556 | BS67: 1.197093556 | BT67: 11.97093556 | BV67: 60 | BW67: 6.360563001 | BX67: 0.3816337801 | BY67: 0.1008279472 | BZ67: 1.008279472 | CA67: 10.08279472 | CR67: 66 | CS67: 8.25 | CT67: 1.951851 | CU67: 0.5156805812 | CV67: 0.728 | DO67: 66 | DP67: 8.25 | DQ67: 1.951851 | DR67: 0.5156805812 | DS67: 0.728 | DV67: 66 | DW67: 8.25 | DX67: 1.951851 | DY67: 0.5156805812 | DZ67: 0.73528 | EB67: 65.97374493 | ED67: 66.1852232
B68: 65 | C68: 260.6429054 | D68: 15.63857432 | E68: 4.131723731 | F68: 105.1109987 | G68: 6.306659925 | H68: 1.666224551 | I68: 49.902533 | J68: 2.99415198 | K68: 0.7910573263 | L68: 25.83381719 | M68: 1.550029032 | N68: 0.4095188987 | Q68: 17.22652479 | R68: 1.033591488 | S68: 0.2730756903 | U68: 41.31723731 | V68: 413.1723731 | X68: 65 | AB68: 16.66224551 | AC68: 166.6224551 | AD68: 1.012609383 | AE68: 49.2811284 | AF68: 65 | AJ68: 7.910573263 | AK68: 79.10573263 | AM68: 65 | AQ68: 4.095188987 | AR68: 40.95188987 | AT68: 65 | AX68: 2.730756903 | AY68: 27.30756903 | BA68: 65 | BB68: 12.6383873 | BC68: 0.758303238 | BD68: 0.2003443165 | BE68: 2.003443165 | BF68: 20.03443165 | BH68: 65 | BI68: 10.0321795 | BJ68: 0.6019307701 | BK68: 0.1590305866 | BL68: 1.590305866 | BM68: 15.90305866 | BN68: 8.683828383 | BO68: 65 | BP68: 8.180970613 | BQ68: 0.4908582368 | BR68: 0.1296851352 | BS68: 1.296851352 | BT68: 12.96851352 | BV68: 65 | BW68: 6.890609918 | BX68: 0.4134365951 | BY68: 0.1092302761 | BZ68: 1.092302761 | CA68: 10.92302761 | CO68: 36 | CP68: =CO68*3 -> 108 | CR68: 68 | CS68: 8.5 | CT68: 2.010998 | CU68: 0.5313072655 | CV68: 0.749 | DO68: 68 | DP68: 8.5 | DQ68: 2.010998 | DR68: 0.5313072655 | DS68: 0.749 | DV68: 67 | DW68: 8.375 | DX68: 1.9814245 | DY68: 0.5234939234 | DZ68: 0.74639 | EB68: 67.02175757 | ED68: 67.2038991
B69: 70 | C69: 280.6923596 | D69: 16.84154158 | E69: 4.449548633 | F69: 113.1964602 | G69: 6.791787611 | H69: 1.79439567 | I69: 53.74118939 | J69: 3.224471363 | K69: 0.8519078899 | L69: 27.8210339 | M69: 1.669262034 | N69: 0.4410203524 | Q69: 18.55164209 | R69: 1.113098525 | S69: 0.2940815126 | U69: 44.49548633 | V69: 444.9548633 | X69: 70 | AB69: 17.9439567 | AC69: 179.439567 | AD69: 1.012609383 | AE69: 53.07198444 | AF69: 70 | AJ69: 8.519078899 | AK69: 85.19078899 | AM69: 70 | AQ69: 4.410203524 | AR69: 44.10203524 | AT69: 70 | AX69: 2.940815126 | AY69: 29.40815126 | BA69: 70 | BB69: 13.61057094 | BC69: 0.8166342563 | BD69: 0.2157554178 | BE69: 2.157554178 | BF69: 21.57554178 | BH69: 70 | BI69: 10.80388562 | BJ69: 0.6482331371 | BK69: 0.1712637086 | BL69: 1.712637086 | BM69: 17.12637086 | BN69: 9.351815182 | BO69: 70 | BP69: 8.810276045 | BQ69: 0.5286165627 | BR69: 0.1396609148 | BS69: 1.396609148 | BT69: 13.96609148 | BV69: 70 | BW69: 7.420656835 | BX69: 0.4452394101 | BY69: 0.117632605 | BZ69: 1.17632605 | CA69: 11.7632605 | CR69: 70 | CS69: 8.75 | CT69: 2.070145 | CU69: 0.5469339498 | CV69: 0.77 | DO69: 70 | DP69: =DO69/8 -> 8.75 | DQ69: 2.070145 | DR69: 0.5469339498 | DS69: 0.77 | DV69: 68 | DW69: 8.5 | DX69: 2.010998 | DY69: 0.5313072655 | DZ69: 0.75649 | EB69: 67.97581788 | ED69: 68.1299681
B70: 75 | C70: 300.7418139 | D70: 18.04450883 | E70: 4.767373536 | F70: 121.2819216 | G70: 7.276915298 | H70: 1.922566789 | I70: 57.57984577 | J70: 3.454790746 | K70: 0.9127584535 | L70: 29.80825061 | M70: 1.788495036 | N70: 0.4725218062 | Q70: 19.87675938 | R70: 1.192605563 | S70: 0.3150873349 | U70: 47.67373536 | V70: 476.7373536 | X70: 75 | AB70: 19.22566789 | AC70: 192.2566789 | AD70: 1.012609383 | AE70: 56.86284047 | AF70: 75 | AJ70: 9.127584535 | AK70: 91.27584535 | AM70: 75 | AQ70: 4.725218062 | AR70: 47.25218062 | AT70: 75 | AX70: 3.150873349 | AY70: 31.50873349 | BA70: 75 | BB70: 14.58275458 | BC70: 0.8749652746 | BD70: 0.2311665191 | BE70: 2.311665191 | BF70: 23.11665191 | BH70: 75 | BI70: 11.57559173 | BJ70: 0.694535504 | BK70: 0.1834968306 | BL70: 1.834968306 | BM70: 18.34968306 | BN70: 10.01980198 | BO70: 75 | BP70: 9.439581477 | BQ70: 0.5663748886 | BR70: 0.1496366945 | BS70: 1.496366945 | BT70: 14.96366945 | BV70: 75 | BW70: 7.950703752 | BX70: 0.4770422251 | BY70: 0.126034934 | BZ70: 1.26034934 | CA70: 12.6034934 | CR70: 72 | CS70: 9 | CT70: 2.129292 | CU70: 0.5625606341 | CV70: 0.79 | DO70: 72 | DP70: 9 | DQ70: =DO70*29.5735/1000 -> 2.129292 | DR70: =DQ70/3.785 -> 0.5625606341 | DS70: 0.79 | DV70: 69 | DW70: =DV70/8 -> 8.625 | DX70: =DV70*29.5735/1000 -> 2.0405715 | DY70: =DX70/3.785 -> 0.5391206077 | DZ70: 0.7676 | EB70: =6.1691*DZ70^2+85.19*DZ70 -> 69.02673793 | ED70: 69.148644
B71: 80 | C71: 320.7912681 | D71: 19.24747609 | E71: 5.085198438 | F71: 129.3673831 | G71: 7.762042985 | H71: 2.050737909 | I71: 61.41850216 | J71: 3.685110129 | K71: 0.973609017 | L71: 31.79546731 | M71: 1.907728039 | N71: 0.5040232599 | Q71: 21.20187667 | R71: 1.2721126 | S71: 0.3360931573 | U71: 50.85198438 | V71: 508.5198438 | X71: 80 | AB71: 20.50737909 | AC71: 205.0737909 | AD71: 1.012609383 | AE71: 60.6536965 | AF71: 80 | AJ71: 9.73609017 | AK71: 97.3609017 | AM71: 80 | AQ71: 5.040232599 | AR71: 50.40232599 | AT71: 80 | AX71: 3.360931573 | AY71: 33.60931573 | BA71: 80 | BB71: 15.55493822 | BC71: 0.933296293 | BD71: 0.2465776203 | BE71: 2.465776203 | BF71: 24.65776203 | BH71: 80 | BI71: 12.34729785 | BJ71: 0.7408378709 | BK71: 0.1957299527 | BL71: 1.957299527 | BM71: 19.57299527 | BN71: 10.68778878 | BO71: 80 | BP71: 10.06888691 | BQ71: 0.6041332145 | BR71: 0.1596124741 | BS71: 1.596124741 | BT71: 15.96124741 | BV71: 80 | BW71: 8.480750668 | BX71: 0.5088450401 | BY71: 0.1344372629 | BZ71: 1.344372629 | CA71: 13.44372629 | CO71: =CP65/CO68 -> 2.611111111 | CR71: 74 | CS71: 9.25 | CT71: 2.188439 | CU71: 0.5781873184 | CV71: 0.811 | DO71: 74 | DP71: 9.25 | DQ71: 2.188439 | DR71: 0.5781873184 | DS71: 0.811 | DV71: 70 | DW71: 8.75 | DX71: 2.070145 | DY71: 0.5469339498 | DZ71: 0.7777 | EB71: 69.98344134 | ED71: 70.074713
B72: 85 | C72: 340.8407224 | D72: 20.45044334 | E72: 5.40302334 | F72: 137.4528445 | G72: 8.247170671 | H72: 2.178909028 | I72: 65.25715854 | J72: 3.915429513 | K72: 1.034459581 | L72: 33.78268402 | M72: 2.026961041 | N72: 0.5355247137 | Q72: 22.52699396 | R72: 1.351619638 | S72: 0.3570989796 | U72: 54.0302334 | V72: 540.302334 | X72: 85 | AB72: 21.78909028 | AC72: 217.8909028 | AD72: 1.012609383 | AE72: 64.44455253 | AF72: 85 | AJ72: 10.34459581 | AK72: 103.4459581 | AM72: 85 | AQ72: 5.355247137 | AR72: 53.55247137 | AT72: 85 | AX72: 3.570989796 | AY72: 35.70989796 | BA72: 85 | BB72: 16.52712185 | BC72: 0.9916273113 | BD72: 0.2619887216 | BE72: 2.619887216 | BF72: 26.19887216 | BH72: 85 | BI72: 13.11900396 | BJ72: 0.7871402379 | BK72: 0.2079630747 | BL72: 2.079630747 | BM72: 20.79630747 | BN72: 11.35577558 | BO72: 85 | BP72: 10.69819234 | BQ72: 0.6418915404 | BR72: 0.1695882537 | BS72: 1.695882537 | BT72: 16.95882537 | BV72: 85 | BW72: 9.010797585 | BX72: 0.5406478551 | BY72: 0.1428395918 | BZ72: 1.428395918 | CA72: 14.28395918 | CR72: 76 | CS72: 9.5 | CT72: 2.247586 | CU72: 0.5938140026 | CV72: 0.832 | DO72: 76 | DP72: 9.5 | DQ72: 2.247586 | DR72: 0.5938140026 | DS72: 0.832 | DV72: 71 | DW72: 8.875 | DX72: 2.0997185 | DY72: 0.5547472919 | DZ72: 0.78858 | EB72: 71.01543696 | ED72: 71.0723002
B73: 90 | C73: 360.8901766 | D73: 21.6534106 | E73: 5.720848243 | F73: 145.538306 | G73: 8.732298358 | H73: 2.307080147 | I73: 69.09581493 | J73: 4.145748896 | K73: 1.095310144 | L73: 35.76990073 | M73: 2.146194044 | N73: 0.5670261674 | Q73: 23.85211125 | R73: 1.431126675 | S73: 0.3781048019 | U73: 57.20848243 | V73: 572.0848243 | X73: 90 | AB73: 23.07080147 | AC73: 230.7080147 | AD73: 1.012609383 | AE73: 68.23540856 | AF73: 90 | AJ73: 10.95310144 | AK73: 109.5310144 | AM73: 90 | AQ73: 5.670261674 | AR73: 56.70261674 | AT73: 90 | AX73: 3.781048019 | AY73: 37.81048019 | BA73: 90 | BB73: 17.49930549 | BC73: 1.04995833 | BD73: 0.2773998229 | BE73: 2.773998229 | BF73: 27.73998229 | BH73: 90 | BI73: 13.89071008 | BJ73: 0.8334426048 | BK73: 0.2201961968 | BL73: 2.201961968 | BM73: 22.01961968 | BN73: 12.02376238 | BO73: 90 | BP73: 11.32749777 | BQ73: 0.6796498663 | BR73: 0.1795640334 | BS73: 1.795640334 | BT73: 17.95640334 | BV73: 90 | BW73: 9.540844502 | BX73: 0.5724506701 | BY73: 0.1512419208 | BZ73: 1.512419208 | CA73: 15.12419208 | CR73: 78 | CS73: 9.75 | CT73: 2.306733 | CU73: 0.6094406869 | CV73: 0.852 | DO73: 78 | DP73: 9.75 | DQ73: 2.306733 | DR73: 0.6094406869 | DS73: 0.852 | DV73: 72 | DW73: 9 | DX73: 2.129292 | DY73: 0.5625606341 | DZ73: 0.79869 | EB73: 71.97570525 | ED73: 71.9992861
B74: 95 | C74: 380.9396309 | D74: 22.85637785 | E74: 6.038673145 | F74: 153.6237674 | G74: 9.217426044 | H74: 2.435251267 | I74: 72.93447131 | J74: 4.376068279 | K74: 1.156160708 | L74: 37.75711744 | M74: 2.265427046 | N74: 0.5985276212 | Q74: 25.17722855 | R74: 1.510633713 | S74: 0.3991106242 | U74: 60.38673145 | V74: 603.8673145 | X74: 95 | AB74: 24.35251267 | AC74: 243.5251267 | AD74: 1.012609383 | AE74: 72.02626459 | AF74: 95 | AJ74: 11.56160708 | AK74: 115.6160708 | AM74: 95 | AQ74: 5.985276212 | AR74: 59.85276212 | AT74: 95 | AX74: 3.991106242 | AY74: 39.91106242 | BA74: 95 | BB74: 18.47148913 | BC74: 1.108289348 | BD74: 0.2928109241 | BE74: 2.928109241 | BF74: 29.28109241 | BH74: 95 | BI74: 14.6624162 | BJ74: 0.8797449717 | BK74: 0.2324293188 | BL74: 2.324293188 | BM74: 23.24293188 | BN74: 12.69174917 | BO74: 95 | BP74: 11.9568032 | BQ74: 0.7174081922 | BR74: 0.189539813 | BS74: 1.89539813 | BT74: 18.9539813 | BV74: 95 | BW74: 10.07089142 | BX74: 0.6042534851 | BY74: 0.1596442497 | BZ74: 1.596442497 | CA74: 15.96442497 | CP74: 72 | CR74: 80 | CS74: 10 | CT74: 2.36588 | CU74: 0.6250673712 | CV74: 0.872 | DO74: 80 | DP74: 10 | DQ74: 2.36588 | DR74: 0.6250673712 | DS74: 0.872 | DV74: 73 | DW74: 9.125 | DX74: 2.1588655 | DY74: 0.5703739762 | DZ74: 0.809811 | EB74: 73.03345697 | ED74: 73.01897059
B75: 100 | C75: 400.9890852 | D75: 24.05934511 | E75: 6.356498047 | F75: 161.7092288 | G75: 9.702553731 | H75: 2.563422386 | I75: 76.7731277 | J75: 4.606387662 | K75: 1.217011271 | L75: 39.74433414 | M75: 2.384660049 | N75: 0.6300290749 | Q75: 26.50234584 | R75: 1.59014075 | S75: 0.4201164466 | U75: 63.56498047 | V75: 635.6498047 | X75: 100 | AB75: 25.63422386 | AC75: 256.3422386 | AD75: 1.012609383 | AE75: 75.81712062 | AF75: 100 | AJ75: 12.17011271 | AK75: 121.7011271 | AM75: 100 | AQ75: 6.300290749 | AR75: 63.00290749 | AT75: 100 | AX75: 4.201164466 | AY75: 42.01164466 | BA75: 100 | BB75: 19.44367277 | BC75: 1.166620366 | BD75: 0.3082220254 | BE75: 3.082220254 | BF75: 30.82220254 | BH75: 100 | BI75: 15.43412231 | BJ75: 0.9260473387 | BK75: 0.2446624409 | BL75: 2.446624409 | BM75: 24.46624409 | BN75: 13.35973597 | BO75: 100 | BP75: 12.58610864 | BQ75: 0.7551665181 | BR75: 0.1995155926 | BS75: 1.995155926 | BT75: 19.95155926 | BV75: 100 | BW75: 10.60093834 | BX75: 0.6360563001 | BY75: 0.1680465786 | BZ75: 1.680465786 | CA75: 16.80465786 | CP75: =CP74/CO68 -> 2 | CR75: 82 | CS75: 10.25 | CT75: 2.425027 | CU75: 0.6406940555 | CV75: 0.892 | DO75: 82 | DP75: 10.25 | DQ75: 2.425027 | DR75: 0.6406940555 | DS75: 0.892 | DV75: 74 | DW75: 9.25 | DX75: 2.188439 | DY75: 0.5781873184 | DZ75: 0.819921 | EB75: 73.9963736 | ED75: 73.94595649
B76: Note: Mixing ratios are based on using 12.5% NaOCl | CR76: 84 | CS76: 10.5 | CT76: 2.484174 | CU76: 0.6563207398 | CV76: 0.913 | DO76: 84 | DP76: 10.5 | DQ76: 2.484174 | DR76: 0.6563207398 | DS76: 0.913 | DV76: 75 | DW76: 9.375 | DX76: 2.2180125 | DY76: 0.5860006605 | DZ76: 0.830031 | EB76: 74.96055135 | ED76: 74.87294239
Z77: % | AA77: Ratio | AB77: Flow | AC77: mL/min | AF77: 0.514 | AM77: 0.987 | AT77: 1.47 | BA77: 1.99 | BH77: 2.49 | BO77: 3.03 | BV77: 1.05 | CR77: 86 | CS77: 10.75 | CT77: 2.543321 | CU77: 0.671947424 | CV77: 0.932 | DO77: 86 | DP77: 10.75 | DQ77: 2.543321 | DR77: 0.671947424 | DS77: 0.932 | DV77: 76 | DW77: 9.5 | DX77: 2.247586 | DY77: 0.5938140026 | DZ77: 0.841152 | EB77: 76.02260346 | ED77: 75.89262688
C78: 0.099% NaOCl Solution | F78: 0.245% NaOCl Solution | I78: 0.514% NaOCl Solution | L78: 0.987% NaOCl Solution | CR78: 88 | CS78: 11 | CT78: 2.602468 | CU78: 0.6875741083 | CV78: 0.953 | DO78: 88 | DP78: 11 | DQ78: 2.602468 | DR78: 0.6875741083 | DS78: 0.953 | DV78: 77 | DW78: 9.625 | DX78: 2.2771595 | DY78: 0.6016273448 | DZ78: 0.851262 | EB78: 76.98942954 | ED78: 76.81961278
X79: 0.245 | Z79: =10.5846/(AA79^0.91998) -> 0.1053692803 | AA79: 150 | AB79: 25 | AC79: =AB79*(AA79^0.92)*0.0367 -> 92.17433887 | CR79: 90 | CS79: 11.25 | CT79: 2.661615 | CU79: 0.7032007926 | CV79: 0.973 | DO79: 90 | DP79: 11.25 | DQ79: 2.661615 | DR79: 0.7032007926 | DS79: 0.973 | DV79: 78 | DW79: 9.75 | DX79: 2.306733 | DY79: 0.6094406869 | DZ79: 0.861372 | EB79: 77.95751674 | ED79: 77.74659868
AB80: 0 | CR80: 92 | CS80: 11.5 | CT80: 2.720762 | CU80: 0.7188274769 | CV80: 0.993 | DO80: 92 | DP80: 11.5 | DQ80: 2.720762 | DR80: 0.7188274769 | DS80: 0.993 | DV80: 79 | DW80: 9.875 | DX80: 2.3363065 | DY80: 0.6172540291 | DZ80: 0.872344 | EB80: 79.00957209 | ED80: 78.75262136
CR81: 93 | CS81: 11.625 | CT81: 2.7503355 | CU81: 0.726640819 | CV81: 1 | DO81: 93 | DP81: 11.625 | DQ81: 2.7503355 | DR81: 0.726640819 | DS81: 1 | DV81: 80 | DW81: 10 | DX81: 2.36588 | DY81: 0.6250673712 | DZ81: 0.882464 | EB81: 79.98124982 | ED81: 79.68052416
CR82: 96 | CS82: 12 | CT82: 2.839056 | CU82: 0.7500808454 | CV82: 1.03 | DO82: 96 | DP82: 12 | DQ82: 2.839056 | DR82: 0.7500808454 | DS82: 1.03 | DV82: 81 | DW82: 10.125 | DX82: 2.3954535 | DY82: 0.6328807133 | DZ82: 0.892584 | EB82: 80.95419116 | ED82: 80.60842696
CR83: 98 | CS83: 12.25 | CT83: 2.898203 | CU83: 0.7657075297 | CV83: 1.05 | DO83: 98 | DP83: 12.25 | DQ83: 2.898203 | DR83: 0.7657075297 | DS83: 1.05 | DV83: 82 | DW83: 10.25 | DX83: 2.425027 | DY83: 0.6406940555 | DZ83: 0.902704 | EB83: 81.92839611 | ED83: 81.53632976
CR84: 100 | CS84: 12.5 | CT84: 2.95735 | CU84: 0.781334214 | CV84: 1.07 | DO84: 100 | DP84: 12.5 | DQ84: 2.95735 | DR84: 0.781334214 | DS84: 1.07 | DV84: 83 | DW84: 10.375 | DX84: 2.4546005 | DY84: 0.6485073976 | DZ84: 0.913836 | EB84: 83.00148102 | ED84: =91.69*DZ84-1.2326 -> 82.55702284
CR85: 102 | CS85: 12.75 | CT85: 3.016497 | CU85: 0.7969608983 | CV85: 1.09 | DO85: 102 | DP85: 12.75 | DQ85: 3.016497 | DR85: 0.7969608983 | DS85: 1.09 | DV85: 84 | DW85: 10.5 | DX85: 2.484174 | DY85: 0.6563207398 | DZ85: 0.923956 | EB85: 83.97833955 | ED85: 83.48492564
CR86: 104 | CS86: 13 | CT86: 3.075644 | CU86: 0.8125875826 | CV86: 1.11 | DO86: 104 | DP86: 13 | DQ86: 3.075644 | DR86: 0.8125875826 | DS86: 1.11 | DV86: 85 | DW86: 10.625 | DX86: 2.5137475 | DY86: 0.6641340819 | DZ86: 0.934076 | EB86: 84.95646169 | ED86: 84.41282844
CR87: 106 | CS87: 13.25 | CT87: 3.134791 | CU87: 0.8282142668 | CV87: 1.13 | DO87: 106 | DP87: 13.25 | DQ87: 3.134791 | DR87: 0.8282142668 | DS87: 1.13 | DV87: 86 | DW87: 10.75 | DX87: 2.543321 | DY87: 0.671947424 | DZ87: 0.944116 | EB87: 85.9281003 | ED87: 85.33339604
CR88: 108 | CS88: 13.5 | CT88: 3.193938 | CU88: 0.8438409511 | CV88: 1.15 | DO88: 108 | DP88: 13.5 | DQ88: 3.193938 | DR88: 0.8438409511 | DS88: 1.15 | DV88: 87 | DW88: 10.875 | DX88: 2.5728945 | DY88: 0.6797607662 | DZ88: 0.954246 | EB88: 86.90970931 | ED88: 86.26221574
CR89: 110 | CS89: 13.75 | CT89: 3.253085 | CU89: 0.8594676354 | CV89: 1.17 | DO89: 110 | DP89: 13.75 | DQ89: 3.253085 | DR89: 0.8594676354 | DS89: 1.17 | DV89: 88 | DW89: 11 | DX89: 2.602468 | DY89: 0.6875741083 | DZ89: 0.965389 | EB89: 87.99094157 | ED89: 87.28391741
CR90: 112 | CS90: 14 | CT90: 3.312232 | CU90: 0.8750943197 | CV90: 1.19 | DO90: 112 | DP90: 14 | DQ90: 3.312232 | DR90: 0.8750943197 | DS90: 1.19 | DV90: 89 | DW90: 11.125 | DX90: 2.6320415 | DY90: 0.6953874505 | DZ90: 0.975519 | EB90: 88.9752094 | ED90: 88.21273711
CR91: 114 | CS91: 14.25 | CT91: 3.371379 | CU91: 0.890721004 | CV91: 1.21 | DO91: 114 | DP91: 14.25 | DQ91: 3.371379 | DR91: 0.890721004 | DS91: 1.21 | DV91: 90 | DW91: 11.25 | DX91: 2.661615 | DY91: 0.7032007926 | DZ91: 0.985649 | EB91: 89.96074334 | ED91: 89.14155681
CR92: 116 | CS92: 14.5 | CT92: 3.430526 | CU92: 0.9063476882 | CV92: 1.23 | DO92: 116 | DP92: 14.5 | DQ92: 3.430526 | DR92: 0.9063476882 | DS92: 1.23 | DV92: 91 | DW92: 11.375 | DX92: 2.6911885 | DY92: 0.7110141347 | DZ92: 0.995779 | EB92: 90.94754338 | ED92: 90.07037651
CR93: 118 | CS93: 14.75 | CT93: 3.489673 | CU93: 0.9219743725 | CV93: 1.24 | DO93: 118 | DP93: 14.75 | DQ93: 3.489673 | DR93: 0.9219743725 | DS93: 1.24 | DV93: 92 | DW93: 11.5 | DX93: 2.720762 | DY93: 0.7188274769 | DZ93: 1.005909 | EB93: 91.93560954 | ED93: 90.99919621
CR94: 120 | CS94: 15 | CT94: 3.54882 | CU94: 0.9376010568 | CV94: 1.26 | DO94: 120 | DP94: 15 | DQ94: 3.54882 | DR94: 0.9376010568 | DS94: 1.26 | DV94: 93 | DW94: 11.625 | DX94: 2.7503355 | DY94: 0.726640819 | DZ94: 1.014 | EC94: =9.2551*DZ94^2+77.091*DZ94+5.6136 -> 93.2999308
CR95: 122 | CS95: 15.25 | CT95: 3.607967 | CU95: 0.9532277411 | CV95: 1.28 | DO95: 122 | DP95: 15.25 | DQ95: 3.607967 | DR95: 0.9532277411 | DS95: 1.28 | DV95: 94 | DW95: 11.75 | DX95: 2.779909 | DY95: 0.7344541612 | DZ95: 1.02414 | EC95: =9.2551*DZ95^2+77.091*DZ95+5.6136 -> 94.27290628
CR96: 124 | CS96: 15.5 | CT96: 3.667114 | CU96: 0.9688544254 | CV96: 1.3 | DO96: 124 | DP96: 15.5 | DQ96: 3.667114 | DR96: 0.9688544254 | DS96: 1.3 | DV96: 95 | DW96: 11.875 | DX96: 2.8094825 | DY96: 0.7422675033 | DZ96: 1.03428 | EC96: =9.2551*DZ96^2+77.091*DZ96+5.6136 -> 95.24778497
CR97: 126 | CS97: 15.75 | CT97: 3.726261 | CU97: 0.9844811096 | CV97: 1.32 | DO97: 126 | DP97: 15.75 | DQ97: 3.726261 | DR97: 0.9844811096 | DS97: 1.32 | DV97: 96 | DW97: 12 | DX97: 2.839056 | DY97: 0.7500808454 | DZ97: 1.04442 | EC97: 96.22456688
CR98: 128 | CS98: 16 | CT98: 3.785408 | CU98: 1.000107794 | CV98: 1.34 | DO98: 128 | DP98: 16 | DQ98: 3.785408 | DR98: 1.000107794 | DS98: 1.34 | DV98: 97 | DW98: 12.125 | DX98: 2.8686295 | DY98: 0.7578941876 | DZ98: 1.05456 | EC98: 97.20325199
DV99: 98 | DW99: 12.25 | DX99: 2.898203 | DY99: 0.7657075297 | DZ99: 1.0647 | EC99: 98.18384032
DV100: 99 | DW100: 12.375 | DX100: 2.9277765 | DY100: 0.7735208719 | DZ100: 1.07484 | EC100: 99.16633186
DV101: 100 | DW101: 12.5 | DX101: 2.95735 | DY101: 0.781334214 | DZ101: 1.08498 | EC101: 100.1507266
E102: 0.093 | F102: 0.151 | AF102: % | DV102: 101 | DW102: 12.625 | DX102: 2.9869235 | DY102: 0.7891475561 | DZ102: 1.0962 | EC102: 101.2421862
E103: 1.001 | F103: 1.002 | AF103: 0.099 | AG103: 4.0099 | AI103: =AF103^1.013 -> 0.09606793424 | DV103: 102 | DW103: 12.75 | DX103: 3.016497 | DY103: 0.7969608983 | DZ103: 1.10635 | EC103: 102.2315658
AF104: 0.245 | AG104: 1.6171 | AI104: =AF104^1.013 -> 0.2405610128 | DV104: 103 | DW104: 12.875 | DX104: 3.0460705 | DY104: 0.8047742404 | DZ104: 1.1165 | EC104: 103.2228523
D105: Chemical Feed Rate (mL/min) for a Target Dose of 1 mg/L as Cl2 | AF105: 0.514 | AG105: 0.7677 | AI105: 0.5095720976 | DV105: 104 | DW105: 13 | DX105: 3.075644 | DY105: 0.8125875826 | DZ105: 1.12665 | EC105: 104.2160458
C106: Flow | D106: Based on %NaOCl Solution Strength | AF106: 0.987 | AG106: 0.3974 | AI106: 0.9868321176 | DV106: 105 | DW106: 13.125 | DX106: 3.1052175 | DY106: 0.8204009247 | DZ106: 1.1368 | EC106: 105.2111463
C107: gpm | D107: 0.00047 | E107: 0.00093 | F107: 0.00151 | G107: 0.00207 | H107: 0.00253 | I107: 0.00297 | J107: 0.00364 | K107: 0.00452 | L107: 0.00549 | M107: 0.00666 | N107: 0.00872 | O107: 0.01 | R107: 0.0079 | AF107: 1.47 | AG107: 0.265 | AI107: 1.477380832 | AR107: % | DV107: 106 | DW107: 13.25 | DX107: 3.134791 | DY107: 0.8282142668 | DZ107: 1.14695 | EC107: 106.2081538
C108: 10 | D108: =1*$C108*3.785/1000/0.00047*1.049871/1.001 -> 84.46365836 | E108: =1*$C108*3.785/1000/0.00093*1.049871/1.001 -> 42.68593487 | F108: =1*$C108*3.785/1000/0.00151*1.049871/1.002 -> 26.26377533 | G108: =1*$C108*3.785/1000/0.00207*1.049871/1.003 -> 19.1394981 | H108: =1*$C108*3.785/1000/0.00253*1.049871/1.003 -> 15.65958935 | I108: =1*$C108*3.785/1000/0.00297*1.049871/1.004 -> 13.32636369 | J108: =1*$C108*3.785/1000/0.00364*1.049871/1.005 -> 10.86261477 | K108: =1*$C108*3.785/1000/0.00452*1.049871/1.006 -> 8.73907382 | L108: =1*$C108*3.785/1000/0.00549*1.049871/1.007 -> 7.1878666 | M108: =1*$C108*3.785/1000/0.00666*1.049871/1.009 -> 5.913388713 | N108: =1*$C108*3.785/1000/0.00872*1.049871/1.012 -> 4.503029852 | O108: =1*$C108*3.785/1000/0.01*1.049871/1.014 -> 3.918897175 | R108: =1*$C108*3.785/1000/0.0079*1.049871/1.011 -> 4.975349303 | AF108: 1.99 | AG108: 0.1944 | AI108: 2.007881907 | AR108: 0.25 | AT108: =(0.4048*AR108^(-0.985))*AR111 -> 39.64693365 | AV108: =1/AR108 -> 4 | AW108: =1/(AR108^0.985) -> 3.91768119 | DV108: 107 | DW108: 13.375 | DX108: 3.1643645 | DY108: 0.836027609 | DZ108: 1.1571 | EC108: 107.2070682
C109: 15 | D109: =1*$C109*3.785/1000/0.00047*1.049871/1.001 -> 126.6954875 | E109: =1*$C109*3.785/1000/0.00093*1.049871/1.001 -> 64.02890231 | F109: =1*$C109*3.785/1000/0.00151*1.049871/1.002 -> 39.395663 | G109: =1*$C109*3.785/1000/0.00207*1.049871/1.003 -> 28.70924715 | H109: =1*$C109*3.785/1000/0.00253*1.049871/1.003 -> 23.48938403 | I109: =1*$C109*3.785/1000/0.00297*1.049871/1.004 -> 19.98954553 | J109: =1*$C109*3.785/1000/0.00364*1.049871/1.005 -> 16.29392215 | K109: =1*$C109*3.785/1000/0.00452*1.049871/1.006 -> 13.10861073 | L109: =1*$C109*3.785/1000/0.00549*1.049871/1.007 -> 10.7817999 | M109: =1*$C109*3.785/1000/0.00666*1.049871/1.009 -> 8.87008307 | N109: =1*$C109*3.785/1000/0.00872*1.049871/1.012 -> 6.754544777 | O109: =1*$C109*3.785/1000/0.01*1.049871/1.014 -> 5.878345762 | R109: 7.463023955 | AF109: 2.49 | AG109: 0.1543 | AI109: 2.519706397 | DV109: 108 | DW109: 13.5 | DX109: 3.193938 | DY109: 0.8438409511 | DZ109: 1.1684 | EC109: 108.3214034
C110: 20 | D110: 168.9273167 | E110: 85.37186974 | F110: 52.52755066 | G110: 38.2789962 | H110: 31.31917871 | I110: 26.65272737 | J110: 21.72522954 | K110: 17.47814764 | L110: 14.3757332 | M110: 11.82677743 | N110: 9.006059703 | O110: 7.837794349 | R110: 9.950698606 | AF110: 3.03 | AG110: 0.1259 | AI110: 3.073982443 | AR110: Flow | DV110: 109 | DW110: 13.625 | DX110: 3.2235115 | DY110: 0.8516542933 | DZ110: 1.17856 | EC110: 109.3253369
C111: 25 | D111: 211.1591459 | E111: 106.7148372 | F111: 65.65943833 | G111: 47.84874525 | H111: 39.14897339 | I111: 33.31590922 | J111: 27.15653692 | K111: 21.84768455 | L111: 17.9696665 | M111: 14.78347178 | N111: 11.25757463 | O111: 9.797242936 | R111: 12.43837326 | AF111: 3.57 | AG111: 0.106 | AI111: 3.629550998 | AR111: 25 | DV111: 110 | DW111: 13.75 | DX111: 3.253085 | DY111: 0.8594676354 | DZ111: 1.18872 | EC111: 110.3311811
C112: 30 | D112: 253.3909751 | E112: 128.0578046 | F112: 78.79132599 | G112: 57.4184943 | H112: 46.97876806 | I112: 39.97909106 | J112: 32.58784431 | K112: 26.21722146 | L112: 21.5635998 | M112: 17.74016614 | N112: 13.50908955 | O112: 11.75669152 | R112: 14.92604791 | DV112: 111 | DW112: 13.875 | DX112: 3.2826585 | DY112: 0.8672809775 | DZ112: 1.19888 | EC112: 111.338936
C113: 35 | D113: 295.6228043 | E113: 149.4007721 | F113: 91.92321366 | G113: 66.98824335 | H113: 54.80856274 | I113: 46.6422729 | J113: 38.01915169 | K113: 30.58675837 | L113: 25.1575331 | M113: 20.6968605 | N113: 15.76060448 | O113: 13.71614011 | R113: 17.41372256 | DV113: 112 | DW113: 14 | DX113: 3.312232 | DY113: 0.8750943197 | DZ113: 1.20904 | EC113: 112.3486016
C114: 40 | D114: 337.8546335 | E114: 170.7437395 | F114: 105.0551013 | G114: 76.5579924 | H114: 62.63835742 | I114: 53.30545475 | J114: 43.45045908 | K114: 34.95629528 | L114: 28.7514664 | M114: 23.65355485 | N114: 18.01211941 | O114: 15.6755887 | R114: 19.90139721 | DV114: 113 | DW114: 14.125 | DX114: 3.3418055 | DY114: 0.8829076618 | DZ114: 1.2192 | EC114: 113.360178
C115: 45 | D115: 380.0864626 | E115: 192.0867069 | F115: 118.186989 | G115: 86.12774145 | H115: 70.4681521 | I115: 59.96863659 | J115: 48.88176646 | K115: 39.32583219 | L115: 32.3453997 | M115: 26.61024921 | N115: 20.26363433 | O115: 17.63503729 | R115: 22.38907186 | AT115: =1.07/1.05 -> 1.019047619 | DV115: 114 | DW115: 14.25 | DX115: 3.371379 | DY115: 0.890721004 | DZ115: 1.22936 | EC115: 114.3736651
C116: 50 | D116: 422.3182918 | E116: 213.4296744 | F116: 131.3188767 | G116: 95.6974905 | H116: 78.29794677 | I116: 66.63181843 | J116: 54.31307385 | K116: 43.6953691 | L116: 35.939333 | M116: 29.56694357 | N116: 22.51514926 | O116: 19.59448587 | R116: 24.87674652 | DV116: 115 | DW116: 14.375 | DX116: 3.4009525 | DY116: 0.8985343461 | DZ116: 1.23952 | EC116: 115.3890629
C117: 55 | D117: 464.550121 | E117: 234.7726418 | F117: 144.4507643 | G117: 105.2672395 | H117: 86.12774145 | I117: 73.29500028 | J117: 59.74438123 | K117: 48.06490601 | L117: 39.5332663 | M117: 32.52363792 | N117: 24.76666418 | O117: 21.55393446 | R117: 27.36442117 | DV117: 116 | DW117: 14.5 | DX117: 3.430526 | DY117: 0.9063476882 | DZ117: 1.25091 | EC117: 116.5296596
C118: 60 | D118: 506.7819502 | E118: 256.1156092 | F118: 157.582652 | G118: 114.8369886 | H118: 93.95753613 | I118: 79.95818212 | J118: 65.17568862 | K118: 52.43444292 | L118: 43.1271996 | M118: 35.48033228 | N118: 27.01817911 | O118: 23.51338305 | R118: 29.85209582 | AR118: =0.3889/10.5846 -> 0.03674205922 | DV118: 117 | DW118: 14.625 | DX118: 3.4600995 | DY118: 0.9141610304 | DZ118: 1.26108 | EC118: 117.5501145
DV119: 118 | DW119: 14.75 | DX119: 3.489673 | DY119: 0.9219743725 | DZ119: 1.26108 | EC119: 117.5501145
DV120: 119 | DW120: 14.875 | DX120: 3.5192465 | DY120: 0.9297877147 | DZ120: 1.27125 | EC120: 118.5724839
DV121: 120 | DW121: 15 | DX121: 3.54882 | DY121: 0.9376010568 | DZ121: 1.28142 | EC121: 119.5967679
DV122: 121 | DW122: 15.125 | DX122: 3.5783935 | DY122: 0.9454143989 | DZ122: 1.29159 | EC122: 120.6229663
AF123: % | DV123: 122 | DW123: 15.25 | DX123: 3.607967 | DY123: 0.9532277411 | DZ123: 1.30176 | EC123: 121.6510792
AE124: 150 | AF124: 0.099 | DV124: 123 | DW124: 15.375 | DX124: 3.6375405 | DY124: 0.9610410832 | DZ124: 1.31322 | EC124: 122.8118958
X125: Ratio | AE125: 60 | AF125: 0.245 | AG125: 60 | DV125: 124 | DW125: 15.5 | DX125: 3.667114 | DY125: 0.9688544254 | DZ125: 1.3234 | EC125: 123.8450964
X126: 6.33 | Y126: =10.53783*X126^(-0.91002) -> 1.965430919 | AB126: % | AE126: 28 | AF126: 0.514 | AG126: 28 | DV126: 125 | DW126: 15.625 | DX126: 3.6966875 | DY126: 0.9766677675 | DZ126: 1.33358 | EC126: 124.8802153
AB127: 0.987 | AC127: =13.298*AB127^(-1.098) -> 13.49043939 | AE127: 14 | AF127: 0.987 | AG127: 14 | DV127: 126 | DW127: 15.75 | DX127: 3.726261 | DY127: 0.9844811096 | DZ127: 1.34376 | EC127: 125.9172524
AE128: 9 | AF128: 1.47 | AG128: 9 | DV128: 127 | DW128: 15.875 | DX128: 3.7558345 | DY128: 0.9922944518 | DZ128: 1.35394 | EC128: 126.9562077
AE129: =19/3 -> 6.333333333 | AF129: 1.99 | AG129: =19/3 -> 6.333333333 | DV129: 128 | DW129: 16 | DX129: 3.785408 | DY129: 1.000107794 | DZ129: 1.36412 | EC129: 127.9970813
AE130: =14.5/3 -> 4.833333333 | AF130: 2.49 | AG130: =14.5/3 -> 4.833333333 | DV130: 129 | DW130: 16.125 | DX130: 3.8149815 | DY130: 1.007921136 | DZ130: 1.3743 | EC130: 129.0398732
AE131: =15/4 -> 3.75 | AF131: 3.03 | AG131: 3.75 | DV131: 130 | DW131: 16.25 | DX131: 3.844555 | DY131: 1.015734478 | DZ131: 1.38448 | EC131: 130.0845833
AE132: 3 | AF132: 3.57 | AG132: 3 | DV132: 131 | DW132: 16.375 | DX132: 3.8741285 | DY132: 1.02354782 | DZ132: 1.39603 | EC132: 131.2722109
DV133: 132 | DW133: 16.5 | DX133: 3.903702 | DY133: 1.031361162 | DZ133: 1.40622 | EC133: 132.3220469
DV134: 133 | DW134: =DV134/8 -> 16.625 | DX134: =DV134*29.5735/1000 -> 3.9332755 | DY134: =DX134/3.785 -> 1.039174505 | DZ134: 1.41641 | EC134: 133.3738049
DV135: 134 | DW135: 16.75 | DX135: 3.962849 | DY135: 1.046987847 | DZ135: 1.41641 | EC135: 133.3738049
DV136: 135 | DW136: 16.875 | DX136: 3.9924225 | DY136: 1.054801189 | DZ136: 1.4266 | EC136: 134.427485
DV137: 136 | DW137: 17 | DX137: 4.021996 | DY137: 1.062614531 | DZ137: 1.43679 | EC137: 135.4830871
DV138: 137 | DW138: 17.125 | DX138: 4.0515695 | DY138: 1.070427873 | DZ138: 1.44698 | EC138: 136.5406112
DV139: 138 | DW139: 17.25 | DX139: 4.081143 | DY139: 1.078241215 | DZ139: 1.45717 | EC139: 137.6000573
DV140: 139 | DW140: 17.375 | DX140: 4.1107165 | DY140: 1.086054557 | DZ140: 1.4688 | EC140: 138.8115677
DV141: 140 | DW141: 17.5 | DX141: 4.14029 | DY141: 1.0938679 | DZ141: 1.479 | EC141: 139.8761742
DV142: 141 | DW142: 17.625 | DX142: 4.1698635 | DY142: 1.101681242 | DZ142: 1.4892 | EC142: 140.9427065
DV143: 142 | DW143: 17.75 | DX143: 4.199437 | DY143: 1.109494584 | DZ143: 1.4994 | EC143: 142.0111646
DV144: 143 | DW144: 17.875 | DX144: 4.2290105 | DY144: 1.117307926 | DZ144: 1.5096 | EC144: 143.0815484
DV145: 144 | DW145: 18 | DX145: 4.258584 | DY145: 1.125121268 | DZ145: 1.5198 | EC145: 144.1538581
DV146: 145 | DW146: 18.125 | DX146: 4.2881575 | DY146: 1.13293461 | DZ146: 1.53 | EC146: 145.2280936
DV147: 146 | DW147: 18.25 | DX147: 4.317731 | DY147: 1.140747952 | DZ147: 1.5402 | EC147: 146.3042549
DV148: 147 | DW148: 18.375 | DX148: 4.3473045 | DY148: 1.148561295 | DZ148: 1.54171 | EC148: 146.4637326
DV149: 148 | DW149: 18.5 | DX149: 4.376878 | DY149: 1.156374637 | DZ149: 1.55192 | EC149: 147.5431629
AK150: =0.3889/10.5846 -> 0.03674205922 | AL150: =0.3928/10.5846 -> 0.03711051906 | DV150: 149 | DW150: 18.625 | DX150: 4.4064515 | DY150: 1.164187979 | DZ150: 1.56213 | EC150: 148.6245229
DV151: 150 | DW151: 18.75 | DX151: 4.436025 | DY151: 1.172001321 | DZ151: 1.57234 | EC151: 149.7078124
DV152: 151 | DW152: 18.875 | DX152: 4.4655985 | DY152: 1.179814663 | DZ152: 1.58255 | EC152: 150.7930315
DV153: 152 | DW153: 19 | DX153: 4.495172 | DY153: 1.187628005 | DZ153: 1.59276 | EC153: 151.8801801
DV154: 153 | DW154: 19.125 | DX154: 4.5247455 | DY154: 1.195441347 | DZ154: 1.60297 | EC154: 152.9692584
DV155: 154 | DW155: 19.25 | DX155: 4.554319 | DY155: 1.20325469 | DZ155: 1.61318 | EC155: 154.0602662
DV156: 155 | DW156: 19.375 | DX156: 4.5838925 | DY156: 1.211068032 | DZ156: 1.62498 | EC156: 155.32358
DV157: 156 | DW157: 19.5 | DX157: 4.613466 | DY157: 1.218881374 | DZ157: 1.62498 | EC157: 155.32358
DV158: 157 | DW158: 19.625 | DX158: 4.6430395 | DY158: 1.226694716 | DZ158: 1.6352 | EC158: 156.4198211
DV159: 158 | DW159: 19.75 | DX159: 4.672613 | DY159: 1.234508058 | DZ159: 1.64542 | EC159: 157.5179955
DV160: 159 | DW160: 19.875 | DX160: 4.7021865 | DY160: 1.2423214 | DZ160: 1.65564 | EC160: =9.2551*DZ160^2+77.091*DZ160+5.6136 -> 158.6181033
DV161: 160 | DW161: 20 | DX161: 4.73176 | DY161: 1.250134742 | DZ161: 1.66586 | EC161: 159.7201445
DV162: 161 | DW162: 20.125 | DX162: 4.7613335 | DY162: 1.257948085 | DZ162: 1.67608 | EC162: 160.824119
DV163: 162 | DW163: 20.25 | DX163: 4.790907 | DY163: 1.265761427 | DZ163: 1.6863 | EC163: 161.9300268
DV164: 163 | DW164: 20.375 | DX164: 4.8204805 | DY164: 1.273574769 | DZ164: 1.69818 | EC164: 163.2179935
DV165: 164 | DW165: 20.5 | DX165: 4.850054 | DY165: 1.281388111 | DZ165: 1.70841 | EC165: 164.3291692
DV166: 165 | DW166: 20.625 | DX166: 4.8796275 | DY166: 1.289201453 | DZ166: 1.70841 | EC166: 164.3291692
DV167: 166 | DW167: 20.75 | DX167: 4.909201 | DY167: 1.297014795 | DZ167: 1.71864 | EC167: 165.4422821
DV168: 167 | DW168: 20.875 | DX168: 4.9387745 | DY168: 1.304828137 | DZ168: 1.72887 | EC168: 166.5573322
DV169: 168 | DW169: 21 | DX169: 4.968348 | DY169: 1.31264148 | DZ169: 1.7391 | EC169: 167.6743194
DV170: 169 | DW170: 21.125 | DX170: 4.9979215 | DY170: 1.320454822 | DZ170: 1.74933 | EC170: 168.7932437
DV171: 170 | DW171: 21.25 | DX171: 5.027495 | DY171: 1.328268164 | DZ171: 1.75956 | EC171: 169.9141052
DV172: 171 | DW172: 21.375 | DX172: 5.0570685 | DY172: 1.336081506 | DZ172: 1.77152 | EC172: 171.2269723
DV173: 172 | DW173: 21.5 | DX173: 5.086642 | DY173: 1.343894848 | DZ173: 1.78176 | EC173: 172.3531364
DV174: 173 | DW174: 21.625 | DX174: 5.1162155 | DY174: 1.35170819 | DZ174: 1.78176 | EC174: 172.3531364
DV175: 174 | DW175: 21.75 | DX175: 5.145789 | DY175: 1.359521532 | DZ175: 1.792 | EC175: 173.4812414
DV176: 175 | DW176: 21.875 | DX176: 5.1753625 | DY176: 1.367334875 | DZ176: 1.80224 | EC176: 174.6112874
DV177: 176 | DW177: 22 | DX177: 5.204936 | DY177: 1.375148217 | DZ177: 1.81248 | EC177: 175.7432743
DV178: 177 | DW178: 22.125 | DX178: 5.2345095 | DY178: 1.382961559 | DZ178: 1.82272 | EC178: 176.8772021
DV179: 178 | DW179: 22.25 | DX179: 5.264083 | DY179: 1.390774901 | DZ179: 1.83296 | EC179: 178.0130709
DV180: 179 | DW180: 22.375 | DX180: 5.2936565 | DY180: 1.398588243 | DZ180: 1.845 | EC180: 179.3510868
DV181: 180 | DW181: 22.5 | DX181: 5.32323 | DY181: 1.406401585 | DZ181: 1.845 | EC181: 179.3510868
DV182: 181 | DW182: 22.625 | DX182: 5.3528035 | DY182: 1.414214927 | DZ182: 1.85525 | EC182: 180.4922929
DV183: 182 | DW183: 22.75 | DX183: 5.382377 | DY183: 1.422028269 | DZ183: 1.8655 | EC183: 181.6354438
DV184: 183 | DW184: 22.875 | DX184: 5.4119505 | DY184: 1.429841612 | DZ184: 1.87575 | EC184: 182.7805394
DV185: 184 | DW185: 23 | DX185: 5.441524 | DY185: 1.437654954 | DZ185: 1.886 | EC185: 183.9275797
DV186: 185 | DW186: 23.125 | DX186: 5.4710975 | DY186: 1.445468296 | DZ186: 1.89625 | EC186: 185.0765647
DV187: 186 | DW187: 23.25 | DX187: 5.500671 | DY187: 1.453281638 | DZ187: 1.9065 | EC187: 186.2274945
DV188: 187 | DW188: 23.375 | DX188: 5.5302445 | DY188: 1.46109498 | DZ188: 1.91675 | EC188: 187.380369
DV189: 188 | DW189: 23.5 | DX189: 5.559818 | DY189: 1.468908322 | DZ189: 1.91862 | EC189: 187.5909081
DV190: 189 | DW190: 23.625 | DX190: 5.5893915 | DY190: 1.476721664 | DZ190: 1.92888 | EC190: 188.74721
DV191: 190 | DW191: 23.75 | DX191: 5.618965 | DY191: 1.484535007 | DZ191: 1.93914 | EC191: 189.9054605
DV192: 191 | DW192: 23.875 | DX192: 5.6485385 | DY192: 1.492348349 | DZ192: 1.9494 | EC192: 191.0656595
DV193: 192 | DW193: 24 | DX193: 5.678112 | DY193: 1.500161691 | DZ193: 1.95966 | EC193: 192.2278071
DV194: 193 | DW194: 24.125 | DX194: 5.7076855 | DY194: 1.507975033 | DZ194: 1.96992 | EC194: 193.3919032
DV195: 194 | DW195: 24.25 | DX195: 5.737259 | DY195: 1.515788375 | DZ195: 1.96992 | EC195: 193.3919032
DV196: 195 | DW196: 24.375 | DX196: 5.7668325 | DY196: 1.523601717 | DZ196: 1.98018 | EC196: 194.5579478
DV197: 196 | DW197: 24.5 | DX197: 5.796406 | DY197: 1.531415059 | DZ197: 1.99238 | EC197: 195.9470085
DV198: 197 | DW198: =DV198/8 -> 24.625 | DX198: =DV198*29.5735/1000 -> 5.8259795 | DY198: =DX198/3.785 -> 1.539228402 | DZ198: 2.00265 | EC198: 197.1184602
DV199: 198 | DW199: 24.75 | DX199: 5.855553 | DY199: 1.547041744 | DZ199: 2.01292 | EC199: 198.2918642
DV200: 199 | DW200: 24.875 | DX200: 5.8851265 | DY200: 1.554855086 | DZ200: 2.02319 | EC200: 199.4672205
DV201: 200 | DW201: 25 | DX201: 5.9147 | DY201: 1.562668428 | DZ201: 2.02319 | EC201: 199.4672205
... 142 more rows

Sheet Stock_Solution
B1: ='Main Menu'!B1 -> Copyright © 1999-2023, Schott, all rights reserved. (707/576-2732)
B2: Stock Solution Preparation for Jar Testing
C4: 1 Liter Jar Testing | K4: 1.5 Liter Jar Testing | S4: 2 Liter Jar Testing
C6: 1 mL = 1 mg/L dose | G6: 1 mL = 10 mg/L dose | K6: 1 mL = 1 mg/L dose | O6: 1 mL = 10 mg/L dose | S6: 1 mL = 1 mg/L dose | W6: 1 mL = 10 mg/L dose
C7: as product (100%) | G7: as product (100%) | K7: as product (100%) | O7: as product (100%) | S7: as product (100%) | W7: as product (100%)
C8: 0.1% Stock Solution | G8: 1% Stock Solution | K8: 0.15% Stock Solution | O8: 1.5% Stock Solution | S8: 0.2% Stock Solution | W8: 2% Stock Solution
C9: 200 mL | D9: 250 mL | E9: 500 mL | G9: 200 mL | H9: 250 mL | I9: 500 mL | K9: 200 mL | L9: 250 mL | M9: 500 mL | O9: 200 mL | P9: 250 mL | Q9: 500 mL | S9: 200 mL | T9: 250 mL | U9: 500 mL | W9: 200 mL | X9: 250 mL | Y9: 500 mL
B10: SG | C10: mL | D10: mL | E10: mL | F10: SG | G10: mL | H10: mL | I10: mL | J10: SG | K10: mL | L10: mL | M10: mL | N10: SG | O10: mL | P10: mL | Q10: mL | R10: SG | S10: mL | T10: mL | U10: mL | V10: SG | W10: mL | X10: mL | Y10: mL
B11: 1.1 | C11: 0.182 | D11: =H11/10 -> 0.2275 | E11: 0.455 | F11: 1.1 | G11: 1.82 | H11: =I11/2 -> 2.275 | I11: 4.55 | J11: 1.1 | K11: 0.273 | L11: =D11*1.5 -> 0.34125 | M11: 0.6825 | N11: 1.1 | O11: 2.73 | P11: =H11*1.5 -> 3.4125 | Q11: 6.825 | R11: 1.1 | S11: 0.364 | T11: =H11*2/10 -> 0.455 | U11: 0.91 | V11: 1.1 | W11: 3.64 | X11: =T11*10 -> 4.55 | Y11: 9.1
B12: 1.11 | C12: 0.18 | D12: =H12/10 -> 0.225 | E12: 0.45 | F12: 1.11 | G12: 1.8 | H12: =I12/2 -> 2.25 | I12: 4.5 | J12: 1.11 | K12: 0.27 | L12: =D12*1.5 -> 0.3375 | M12: 0.675 | N12: 1.11 | O12: 2.7 | P12: =H12*1.5 -> 3.375 | Q12: 6.75 | R12: 1.11 | S12: 0.36 | T12: =H12*2/10 -> 0.45 | U12: 0.9 | V12: 1.11 | W12: 3.6 | X12: =T12*10 -> 4.5 | Y12: 9
B13: 1.12 | C13: 0.179 | D13: =H13/10 -> 0.22375 | E13: 0.4475 | F13: 1.12 | G13: 1.79 | H13: =I13/2 -> 2.2375 | I13: 4.475 | J13: 1.12 | K13: 0.2685 | L13: =D13*1.5 -> 0.335625 | M13: 0.67125 | N13: 1.12 | O13: 2.685 | P13: =H13*1.5 -> 3.35625 | Q13: 6.7125 | R13: 1.12 | S13: 0.358 | T13: =H13*2/10 -> 0.4475 | U13: 0.895 | V13: 1.12 | W13: 3.58 | X13: =T13*10 -> 4.475 | Y13: 8.95
B14: 1.13 | C14: 0.177 | D14: 0.22125 | E14: 0.4425 | F14: 1.13 | G14: 1.77 | H14: 2.2125 | I14: 4.425 | J14: 1.13 | K14: 0.2655 | L14: 0.331875 | M14: 0.66375 | N14: 1.13 | O14: 2.655 | P14: 3.31875 | Q14: 6.6375 | R14: 1.13 | S14: 0.354 | T14: 0.4425 | U14: 0.885 | V14: 1.13 | W14: 3.54 | X14: 4.425 | Y14: 8.85
B15: 1.14 | C15: 0.176 | D15: 0.22 | E15: 0.44 | F15: 1.14 | G15: 1.76 | H15: 2.2 | I15: 4.4 | J15: 1.14 | K15: 0.264 | L15: 0.33 | M15: 0.66 | N15: 1.14 | O15: 2.64 | P15: 3.3 | Q15: 6.6 | R15: 1.14 | S15: 0.352 | T15: 0.44 | U15: 0.88 | V15: 1.14 | W15: 3.52 | X15: 4.4 | Y15: 8.8
B16: 1.15 | C16: 0.174 | D16: 0.2175 | E16: 0.435 | F16: 1.15 | G16: 1.74 | H16: 2.175 | I16: 4.35 | J16: 1.15 | K16: 0.261 | L16: 0.32625 | M16: 0.6525 | N16: 1.15 | O16: 2.61 | P16: 3.2625 | Q16: 6.525 | R16: 1.15 | S16: 0.348 | T16: 0.435 | U16: 0.87 | V16: 1.15 | W16: 3.48 | X16: 4.35 | Y16: 8.7
B17: 1.16 | C17: 0.173 | D17: 0.21625 | E17: 0.4325 | F17: 1.16 | G17: 1.73 | H17: 2.1625 | I17: 4.325 | J17: 1.16 | K17: 0.2595 | L17: 0.324375 | M17: 0.64875 | N17: 1.16 | O17: 2.595 | P17: 3.24375 | Q17: 6.4875 | R17: 1.16 | S17: 0.346 | T17: 0.4325 | U17: 0.865 | V17: 1.16 | W17: 3.46 | X17: 4.325 | Y17: 8.65
B18: 1.17 | C18: 0.171 | D18: 0.21375 | E18: 0.4275 | F18: 1.17 | G18: 1.71 | H18: 2.1375 | I18: 4.275 | J18: 1.17 | K18: 0.2565 | L18: 0.320625 | M18: 0.64125 | N18: 1.17 | O18: 2.565 | P18: 3.20625 | Q18: 6.4125 | R18: 1.17 | S18: 0.342 | T18: 0.4275 | U18: 0.855 | V18: 1.17 | W18: 3.42 | X18: 4.275 | Y18: 8.55
B19: 1.18 | C19: 0.17 | D19: 0.2125 | E19: 0.425 | F19: 1.18 | G19: 1.7 | H19: 2.125 | I19: 4.25 | J19: 1.18 | K19: 0.255 | L19: 0.31875 | M19: 0.6375 | N19: 1.18 | O19: 2.55 | P19: 3.1875 | Q19: 6.375 | R19: 1.18 | S19: 0.34 | T19: 0.425 | U19: 0.85 | V19: 1.18 | W19: 3.4 | X19: 4.25 | Y19: 8.5
B20: 1.19 | C20: 0.168 | D20: 0.21 | E20: 0.42 | F20: 1.19 | G20: 1.68 | H20: 2.1 | I20: 4.2 | J20: 1.19 | K20: 0.252 | L20: 0.315 | M20: 0.63 | N20: 1.19 | O20: 2.52 | P20: 3.15 | Q20: 6.3 | R20: 1.19 | S20: 0.336 | T20: 0.42 | U20: 0.84 | V20: 1.19 | W20: 3.36 | X20: 4.2 | Y20: 8.4
B21: 1.2 | C21: 0.167 | D21: 0.20875 | E21: 0.4175 | F21: 1.2 | G21: 1.67 | H21: 2.0875 | I21: 4.175 | J21: 1.2 | K21: 0.2505 | L21: 0.313125 | M21: 0.62625 | N21: 1.2 | O21: 2.505 | P21: 3.13125 | Q21: 6.2625 | R21: 1.2 | S21: 0.334 | T21: 0.4175 | U21: 0.835 | V21: 1.2 | W21: 3.34 | X21: 4.175 | Y21: 8.35
B22: 1.21 | C22: 0.166 | D22: =H22/10 -> 0.2075 | E22: 0.415 | F22: 1.21 | G22: 1.66 | H22: =I22/2 -> 2.075 | I22: 4.15 | J22: 1.21 | K22: 0.249 | L22: =D22*1.5 -> 0.31125 | M22: 0.6225 | N22: 1.21 | O22: 2.49 | P22: =H22*1.5 -> 3.1125 | Q22: 6.225 | R22: 1.21 | S22: 0.332 | T22: =H22*2/10 -> 0.415 | U22: 0.83 | V22: 1.21 | W22: 3.32 | X22: =T22*10 -> 4.15 | Y22: 8.3
B23: 1.22 | C23: 0.164 | D23: 0.205 | E23: 0.41 | F23: 1.22 | G23: 1.64 | H23: 2.05 | I23: 4.1 | J23: 1.22 | K23: 0.246 | L23: 0.3075 | M23: 0.615 | N23: 1.22 | O23: 2.46 | P23: 3.075 | Q23: 6.15 | R23: 1.22 | S23: 0.328 | T23: 0.41 | U23: 0.82 | V23: 1.22 | W23: 3.28 | X23: 4.1 | Y23: 8.2
B24: 1.23 | C24: 0.163 | D24: 0.20375 | E24: 0.4075 | F24: 1.23 | G24: 1.63 | H24: 2.0375 | I24: 4.075 | J24: 1.23 | K24: 0.2445 | L24: 0.305625 | M24: 0.61125 | N24: 1.23 | O24: 2.445 | P24: 3.05625 | Q24: 6.1125 | R24: 1.23 | S24: 0.326 | T24: 0.4075 | U24: 0.815 | V24: 1.23 | W24: 3.26 | X24: 4.075 | Y24: 8.15
B25: 1.24 | C25: 0.162 | D25: 0.2025 | E25: 0.405 | F25: 1.24 | G25: 1.62 | H25: 2.025 | I25: 4.05 | J25: 1.24 | K25: 0.243 | L25: 0.30375 | M25: 0.6075 | N25: 1.24 | O25: 2.43 | P25: 3.0375 | Q25: 6.075 | R25: 1.24 | S25: 0.324 | T25: 0.405 | U25: 0.81 | V25: 1.24 | W25: 3.24 | X25: 4.05 | Y25: 8.1
B26: 1.25 | C26: 0.16 | D26: 0.2 | E26: 0.4 | F26: 1.25 | G26: 1.6 | H26: 2 | I26: 4 | J26: 1.25 | K26: 0.24 | L26: 0.3 | M26: 0.6 | N26: 1.25 | O26: 2.4 | P26: 3 | Q26: 6 | R26: 1.25 | S26: 0.32 | T26: 0.4 | U26: 0.8 | V26: 1.25 | W26: 3.2 | X26: 4 | Y26: 8
B27: 1.26 | C27: 0.159 | D27: 0.19875 | E27: 0.3975 | F27: 1.26 | G27: 1.59 | H27: 1.9875 | I27: 3.975 | J27: 1.26 | K27: 0.2385 | L27: 0.298125 | M27: 0.59625 | N27: 1.26 | O27: 2.385 | P27: 2.98125 | Q27: 5.9625 | R27: 1.26 | S27: 0.318 | T27: 0.3975 | U27: 0.795 | V27: 1.26 | W27: 3.18 | X27: 3.975 | Y27: 7.95
B28: 1.27 | C28: 0.158 | D28: 0.1975 | E28: 0.395 | F28: 1.27 | G28: 1.58 | H28: 1.975 | I28: 3.95 | J28: 1.27 | K28: 0.237 | L28: 0.29625 | M28: 0.5925 | N28: 1.27 | O28: 2.37 | P28: 2.9625 | Q28: 5.925 | R28: 1.27 | S28: 0.316 | T28: 0.395 | U28: 0.79 | V28: 1.27 | W28: 3.16 | X28: 3.95 | Y28: 7.9
B29: 1.28 | C29: 0.157 | D29: 0.19625 | E29: 0.3925 | F29: 1.28 | G29: 1.57 | H29: 1.9625 | I29: 3.925 | J29: 1.28 | K29: 0.2355 | L29: 0.294375 | M29: 0.58875 | N29: 1.28 | O29: 2.355 | P29: 2.94375 | Q29: 5.8875 | R29: 1.28 | S29: 0.314 | T29: 0.3925 | U29: 0.785 | V29: 1.28 | W29: 3.14 | X29: 3.925 | Y29: 7.85
B30: 1.29 | C30: 0.155 | D30: 0.19375 | E30: 0.3875 | F30: 1.29 | G30: 1.55 | H30: 1.9375 | I30: 3.875 | J30: 1.29 | K30: 0.2325 | L30: 0.290625 | M30: 0.58125 | N30: 1.29 | O30: 2.325 | P30: 2.90625 | Q30: 5.8125 | R30: 1.29 | S30: 0.31 | T30: 0.3875 | U30: 0.775 | V30: 1.29 | W30: 3.1 | X30: 3.875 | Y30: 7.75
B31: 1.3 | C31: 0.154 | D31: 0.1925 | E31: 0.385 | F31: 1.3 | G31: 1.54 | H31: 1.925 | I31: 3.85 | J31: 1.3 | K31: 0.231 | L31: 0.28875 | M31: 0.5775 | N31: 1.3 | O31: 2.31 | P31: 2.8875 | Q31: 5.775 | R31: 1.3 | S31: 0.308 | T31: 0.385 | U31: 0.77 | V31: 1.3 | W31: 3.08 | X31: 3.85 | Y31: 7.7
B32: 1.31 | C32: 0.153 | D32: =H32/10 -> 0.19125 | E32: 0.3825 | F32: 1.31 | G32: 1.53 | H32: =I32/2 -> 1.9125 | I32: 3.825 | J32: 1.31 | K32: 0.2295 | L32: =D32*1.5 -> 0.286875 | M32: 0.57375 | N32: 1.31 | O32: 2.295 | P32: =H32*1.5 -> 2.86875 | Q32: 5.7375 | R32: 1.31 | S32: 0.306 | T32: =H32*2/10 -> 0.3825 | U32: 0.765 | V32: 1.31 | W32: 3.06 | X32: =T32*10 -> 3.825 | Y32: 7.65
B33: 1.32 | C33: 0.152 | D33: 0.19 | E33: 0.38 | F33: 1.32 | G33: 1.52 | H33: 1.9 | I33: 3.8 | J33: 1.32 | K33: 0.228 | L33: 0.285 | M33: 0.57 | N33: 1.32 | O33: 2.28 | P33: 2.85 | Q33: 5.7 | R33: 1.32 | S33: 0.304 | T33: 0.38 | U33: 0.76 | V33: 1.32 | W33: 3.04 | X33: 3.8 | Y33: 7.6
B34: 1.33 | C34: 0.151 | D34: 0.18875 | E34: 0.3775 | F34: 1.33 | G34: 1.51 | H34: 1.8875 | I34: 3.775 | J34: 1.33 | K34: 0.2265 | L34: 0.283125 | M34: 0.56625 | N34: 1.33 | O34: 2.265 | P34: 2.83125 | Q34: 5.6625 | R34: 1.33 | S34: 0.302 | T34: 0.3775 | U34: 0.755 | V34: 1.33 | W34: 3.02 | X34: 3.775 | Y34: 7.55
B35: 1.34 | C35: 0.15 | D35: 0.1875 | E35: 0.375 | F35: 1.34 | G35: 1.5 | H35: 1.875 | I35: 3.75 | J35: 1.34 | K35: 0.225 | L35: 0.28125 | M35: 0.5625 | N35: 1.34 | O35: 2.25 | P35: 2.8125 | Q35: 5.625 | R35: 1.34 | S35: 0.3 | T35: 0.375 | U35: 0.75 | V35: 1.34 | W35: 3 | X35: 3.75 | Y35: 7.5
B36: 1.35 | C36: 0.149 | D36: 0.18625 | E36: 0.3725 | F36: 1.35 | G36: 1.49 | H36: 1.8625 | I36: 3.725 | J36: 1.35 | K36: 0.2235 | L36: 0.279375 | M36: 0.55875 | N36: 1.35 | O36: 2.235 | P36: 2.79375 | Q36: 5.5875 | R36: 1.35 | S36: 0.298 | T36: 0.3725 | U36: 0.745 | V36: 1.35 | W36: 2.98 | X36: 3.725 | Y36: 7.45
B37: 1.36 | C37: 0.147 | D37: 0.18375 | E37: 0.3675 | F37: 1.36 | G37: 1.47 | H37: 1.8375 | I37: 3.675 | J37: 1.36 | K37: 0.2205 | L37: 0.275625 | M37: 0.55125 | N37: 1.36 | O37: 2.205 | P37: 2.75625 | Q37: 5.5125 | R37: 1.36 | S37: 0.294 | T37: 0.3675 | U37: 0.735 | V37: 1.36 | W37: 2.94 | X37: 3.675 | Y37: 7.35
B38: 1.37 | C38: 0.146 | D38: 0.1825 | E38: 0.365 | F38: 1.37 | G38: 1.46 | H38: 1.825 | I38: 3.65 | J38: 1.37 | K38: 0.219 | L38: 0.27375 | M38: 0.5475 | N38: 1.37 | O38: 2.19 | P38: 2.7375 | Q38: 5.475 | R38: 1.37 | S38: 0.292 | T38: 0.365 | U38: 0.73 | V38: 1.37 | W38: 2.92 | X38: 3.65 | Y38: 7.3
B39: 1.38 | C39: 0.145 | D39: 0.18125 | E39: 0.3625 | F39: 1.38 | G39: 1.45 | H39: 1.8125 | I39: 3.625 | J39: 1.38 | K39: 0.2175 | L39: 0.271875 | M39: 0.54375 | N39: 1.38 | O39: 2.175 | P39: 2.71875 | Q39: 5.4375 | R39: 1.38 | S39: 0.29 | T39: 0.3625 | U39: 0.725 | V39: 1.38 | W39: 2.9 | X39: 3.625 | Y39: 7.25
B40: 1.39 | C40: 0.144 | D40: 0.18 | E40: 0.36 | F40: 1.39 | G40: 1.44 | H40: 1.8 | I40: 3.6 | J40: 1.39 | K40: 0.216 | L40: 0.27 | M40: 0.54 | N40: 1.39 | O40: 2.16 | P40: 2.7 | Q40: 5.4 | R40: 1.39 | S40: 0.288 | T40: 0.36 | U40: 0.72 | V40: 1.39 | W40: 2.88 | X40: 3.6 | Y40: 7.2
B41: 1.4 | C41: 0.143 | D41: 0.17875 | E41: 0.3575 | F41: 1.4 | G41: 1.43 | H41: 1.7875 | I41: 3.575 | J41: 1.4 | K41: 0.2145 | L41: 0.268125 | M41: 0.53625 | N41: 1.4 | O41: 2.145 | P41: 2.68125 | Q41: 5.3625 | R41: 1.4 | S41: 0.286 | T41: 0.3575 | U41: 0.715 | V41: 1.4 | W41: 2.86 | X41: 3.575 | Y41: 7.15
B42: 1.41 | C42: 0.142 | D42: =H42/10 -> 0.1775 | E42: 0.355 | F42: 1.41 | G42: 1.42 | H42: =I42/2 -> 1.775 | I42: 3.55 | J42: 1.41 | K42: 0.213 | L42: =D42*1.5 -> 0.26625 | M42: 0.5325 | N42: 1.41 | O42: 2.13 | P42: =H42*1.5 -> 2.6625 | Q42: 5.325 | R42: 1.41 | S42: 0.284 | T42: =H42*2/10 -> 0.355 | U42: 0.71 | V42: 1.41 | W42: 2.84 | X42: =T42*10 -> 3.55 | Y42: 7.1
B43: 1.42 | C43: 0.141 | D43: 0.17625 | E43: 0.3525 | F43: 1.42 | G43: 1.41 | H43: 1.7625 | I43: 3.525 | J43: 1.42 | K43: 0.2115 | L43: 0.264375 | M43: 0.52875 | N43: 1.42 | O43: 2.115 | P43: 2.64375 | Q43: 5.2875 | R43: 1.42 | S43: 0.282 | T43: 0.3525 | U43: 0.705 | V43: 1.42 | W43: 2.82 | X43: 3.525 | Y43: 7.05
B44: 1.43 | C44: 0.14 | D44: 0.175 | E44: 0.35 | F44: 1.43 | G44: 1.4 | H44: 1.75 | I44: 3.5 | J44: 1.43 | K44: 0.21 | L44: 0.2625 | M44: 0.525 | N44: 1.43 | O44: 2.1 | P44: 2.625 | Q44: 5.25 | R44: 1.43 | S44: 0.28 | T44: 0.35 | U44: 0.7 | V44: 1.43 | W44: 2.8 | X44: 3.5 | Y44: 7
B45: 1.44 | C45: 0.139 | D45: 0.17375 | E45: 0.3475 | F45: 1.44 | G45: 1.39 | H45: 1.7375 | I45: 3.475 | J45: 1.44 | K45: 0.2085 | L45: 0.260625 | M45: 0.52125 | N45: 1.44 | O45: 2.085 | P45: 2.60625 | Q45: 5.2125 | R45: 1.44 | S45: 0.278 | T45: 0.3475 | U45: 0.695 | V45: 1.44 | W45: 2.78 | X45: 3.475 | Y45: 6.95
B46: 1.45 | C46: 0.138 | D46: 0.1725 | E46: 0.345 | F46: 1.45 | G46: 1.38 | H46: 1.725 | I46: 3.45 | J46: 1.45 | K46: 0.207 | L46: 0.25875 | M46: 0.5175 | N46: 1.45 | O46: 2.07 | P46: 2.5875 | Q46: 5.175 | R46: 1.45 | S46: 0.276 | T46: 0.345 | U46: 0.69 | V46: 1.45 | W46: 2.76 | X46: 3.45 | Y46: 6.9
B47: 1.46 | C47: 0.137 | D47: 0.17125 | E47: 0.3425 | F47: 1.46 | G47: 1.37 | H47: 1.7125 | I47: 3.425 | J47: 1.46 | K47: 0.2055 | L47: 0.256875 | M47: 0.51375 | N47: 1.46 | O47: 2.055 | P47: 2.56875 | Q47: 5.1375 | R47: 1.46 | S47: 0.274 | T47: 0.3425 | U47: 0.685 | V47: 1.46 | W47: 2.74 | X47: 3.425 | Y47: 6.85
B48: 1.47 | C48: 0.137 | D48: 0.17125 | E48: 0.3425 | F48: 1.47 | G48: 1.37 | H48: 1.7125 | I48: 3.425 | J48: 1.47 | K48: 0.2055 | L48: 0.256875 | M48: 0.51375 | N48: 1.47 | O48: 2.055 | P48: 2.56875 | Q48: 5.1375 | R48: 1.47 | S48: 0.274 | T48: 0.3425 | U48: 0.685 | V48: 1.47 | W48: 2.74 | X48: 3.425 | Y48: 6.85
B49: 1.48 | C49: 0.136 | D49: 0.17 | E49: 0.34 | F49: 1.48 | G49: 1.36 | H49: 1.7 | I49: 3.4 | J49: 1.48 | K49: 0.204 | L49: 0.255 | M49: 0.51 | N49: 1.48 | O49: 2.04 | P49: 2.55 | Q49: 5.1 | R49: 1.48 | S49: 0.272 | T49: 0.34 | U49: 0.68 | V49: 1.48 | W49: 2.72 | X49: 3.4 | Y49: 6.8
B50: 1.49 | C50: 0.135 | D50: 0.16875 | E50: 0.3375 | F50: 1.49 | G50: 1.35 | H50: 1.6875 | I50: 3.375 | J50: 1.49 | K50: 0.2025 | L50: 0.253125 | M50: 0.50625 | N50: 1.49 | O50: 2.025 | P50: 2.53125 | Q50: 5.0625 | R50: 1.49 | S50: 0.27 | T50: 0.3375 | U50: 0.675 | V50: 1.49 | W50: 2.7 | X50: 3.375 | Y50: 6.75
B51: 1.5 | C51: 0.134 | D51: 0.1675 | E51: 0.335 | F51: 1.5 | G51: 1.34 | H51: 1.675 | I51: 3.35 | J51: 1.5 | K51: 0.201 | L51: 0.25125 | M51: 0.5025 | N51: 1.5 | O51: 2.01 | P51: 2.5125 | Q51: 5.025 | R51: 1.5 | S51: 0.268 | T51: 0.335 | U51: 0.67 | V51: 1.5 | W51: 2.68 | X51: 3.35 | Y51: 6.7
C53: 1 Liter Jar Testing | K53: 1.5 Liter Jar Testing | S53: 2 Liter Jar Testing
C54: 48.24% Aluminum Sulfate | K54: 48.24% Aluminum Sulfate | S54: 48.24% Aluminum Sulfate
C55: 1 mL = 1 mg/L dose | G55: 1 mL = 10 mg/L dose | K55: 1 mL = 1 mg/L dose | O55: 1 mL = 10 mg/L dose | S55: 1 mL = 1 mg/L dose | W55: 1 mL = 10 mg/L dose
C56: as Aluminum Sulfate | G56: as Aluminum Sulfate | K56: as Aluminum Sulfate | O56: as Aluminum Sulfate | S56: as Aluminum Sulfate | W56: as Aluminum Sulfate
C57: 0.1% Stock Solution | G57: 1% Stock Solution | K57: 0.15% Stock Solution | O57: 1.5% Stock Solution | S57: 0.2% Stock Solution | W57: 2% Stock Solution
C58: 200 mL | D58: 250 mL | E58: 500 mL | G58: 200 mL | H58: 250 mL | I58: 500 mL | K58: 200 mL | L58: 250 mL | M58: 500 mL | O58: 200 mL | P58: 250 mL | Q58: 500 mL | S58: 200 mL | T58: 250 mL | U58: 500 mL | W58: 200 mL | X58: 250 mL | Y58: 500 mL
B59: SG | C59: mL | D59: mL | E59: mL | F59: SG | G59: mL | H59: mL | I59: mL | J59: SG | K59: mL | L59: mL | M59: mL | N59: SG | O59: mL | P59: mL | Q59: mL | R59: SG | S59: mL | T59: mL | U59: mL | V59: SG | W59: mL | X59: mL | Y59: mL
B60: 1.335 | C60: 0.31 | D60: =E60/2 -> 0.39 | E60: 0.78 | F60: 1.335 | G60: 3.12 | H60: =I60/2 -> 3.9 | I60: 7.8 | J60: 1.335 | K60: 0.47 | L60: =M60/2 -> 0.585 | M60: 1.17 | N60: 1.335 | O60: 4.69 | P60: =Q60/2 -> 5.87 | Q60: 11.74 | R60: 1.335 | S60: 0.62 | T60: =U60/2 -> 0.775 | U60: 1.55 | V60: 1.335 | W60: 6.28 | X60: =Y60/2 -> 7.845 | Y60: 15.69
C63: 1 Liter Jar Testing | K63: 1.5 Liter Jar Testing | S63: 2 Liter Jar Testing
C64: 12.5% Sodium Hypochloride | K64: 12.5% Sodium Hypochloride | S64: 12.5% Sodium Hypochloride
C65: 1 mL = 1 mg/L dose | G65: 1 mL = 10 mg/L dose | K65: 1 mL = 1 mg/L dose | O65: 1 mL = 10 mg/L dose | S65: 1 mL = 1 mg/L dose | W65: 1 mL = 10 mg/L dose
C66: as Cl2 | G66: as Cl2 | K66: as Cl2 | O66: as Cl2 | S66: as Cl2 | W66: as Cl2
C67: 0.1% Stock Solution | G67: 1% Stock Solution | K67: 0.15% Stock Solution | O67: 1.5% Stock Solution | S67: 0.2% Stock Solution | W67: 2% Stock Solution
C68: 200 mL | D68: 250 mL | E68: 500 mL | G68: 200 mL | H68: 250 mL | I68: 500 mL | K68: 200 mL | L68: 250 mL | M68: 500 mL | O68: 200 mL | P68: 250 mL | Q68: 500 mL | S68: 200 mL | T68: 250 mL | U68: 500 mL | W68: 200 mL | X68: 250 mL | Y68: 500 mL
B69: SG | C69: mL | D69: mL | E69: mL | F69: SG | G69: mL | H69: mL | I69: mL | J69: SG | K69: mL | L69: mL | M69: mL | N69: SG | O69: mL | P69: mL | Q69: mL | R69: SG | S69: mL | T69: mL | U69: mL | V69: SG | W69: mL | X69: mL | Y69: mL
B70: 1.2 | C70: =1.34*1/0.952498 -> 1.406827101 | D70: =1.67*1/0.952498 -> 1.753284521 | E70: =3.34*1/0.952498 -> 3.506569043 | F70: 1.2 | G70: =13.52*1/0.952498 -> 14.19425553 | H70: =16.9*1/0.952498 -> 17.74281941 | I70: =33.79*1/0.952498 -> 35.47514011 | J70: 1.2 | K70: =2*1/0.952498 -> 2.099741942 | L70: =2.51*1/0.952498 -> 2.635176137 | M70: =5.01*1/0.952498 -> 5.259853564 | N70: 1.2 | O70: 21.45 | P70: 26.81 | Q70: =51.02*1/0.952498 -> 53.56441693 | R70: 1.2 | S70: =2.67*1/0.952498 -> 2.803155492 | T70: =3.34*1/0.952498 -> 3.506569043 | U70: =6.68*1/0.952498 -> 7.013138085 | V70: 1.2 | W70: =27.4*1/0.952498 -> 28.7664646 | X70: =34.25*1/0.952498 -> 35.95808075 | Y70: 72

Sheet Jar_Testing
B1: ='ChemDose(FR)'!B1 -> Copyright © 1999-2023, Schott, all rights reserved. (707/576-2732)
B3: Jar Testing Stock Solution Preparation Program
B5: Jar Test Stock Solution Preparation (1) | F5: Jar Test Dose Results (1)
B6: 1. Enter Product Characteristics | F6: 1. Stock Solution Characteristics
B7: Name of Liquid Chemical: | C7: AdvFloc | F7: Specific Gravity of Stock Solution: | I7: =((TVol1*_SG1)+1*(1000*_StockSol_L1-TVol1))/(_StockSol_L1*1000) -> 1.0067116 | J7: ="1 mL = "&ROUND(JarT1Perc/100*1000*JarT1SG,2)&" mg/L" -> 1 mL = 40.27 mg/L
B8: Specific gravity of liquid chemical: | C8: 1.2 | F8: % Strength of Stock Solution: | I8: =(_PercentSol1*TVol1*_SG1)/(_StockSol_L1*1000*JarT1SG) -> 4.000112843 | J8: =JarT1Perc*1000000/100 -> 40001.12843 | K8: ="mg/L, "&C7 -> mg/L, AdvFloc
B9: Chemical solution strength: | C9: 100 | D9: % | F9: 2. Enter in blue the Jar volume and desired dose for each jar
B10: 2. Preparation of Stock Solution | F10: Jar Vol (mL) | G10: 1000 | H10: =JarT1JarVol/1000&" Liter" -> 1 Liter | AA10: =IF(AB10="L",C11,C11/1000) -> 0.1 | AB10: =D11 -> mL
B11: Enter Volume of stock solution: | C11: 100 | D11: mL | G11: Jar 1 | H11: Jar 2 | I11: Jar 3 | J11: Jar 4 | K11: Jar 5 | L11: Jar 6 | AA11: =Aliquot1(_SG1,_PercentSol1,_StockSol1,TargetPer1,D11) -> 3.3558
B12: Enter Targeted % Stength of stock solution: | C12: 4 | D12: % | G12: Dose | H12: Dose | I12: Dose | J12: Dose | K12: Dose | L12: Dose | AA12: =AA11 -> 3.3558
B13: 3. Stock Solution Results | F13: Dose, mg/L | G13: 10 | H13: 12 | I13: 15 | J13: 18 | K13: 25 | L13: 30
B14: =IF(TVol1>0.1,"Add "&ROUND(TVol1,2)&" mL of product solution (Step 1) to "&ROUND((_StockSol_L1*1000-TVol1),2)&" "&D11&" of water (Step 2) to make a "&TargetPer1&" %, "&_StockSol1&" "&D11&" stock solution", "Add "&ROUND(TVol1,3)&" mL of product solution (Step 1) to "&ROUND((_StockSol_L1*1000-TVol1),2)&" "&D11&" of water (Step 2) to make a "&TargetPer1&" %, "&_StockSol1&" "&D11&" stock solution") -> Add 3.36 mL of product solution (Step 1) to 96.64 mL of water (Step 2) to make a 4 %, 100 mL stock solution | F14: Delivered Vol (mL) | G14: =jar1ml($I$7,$I$8,$G$10,G13) -> 0.25 | H14: =jar2ml($I$7,$I$8,$G$10,H13) -> 0.3 | I14: =jar3ml($I$7,$I$8,$G$10,I13) -> 0.38 | J14: =jar4ml($I$7,$I$8,$G$10,J13) -> 0.45 | K14: =jar5ml($I$7,$I$8,$G$10,K13) -> 0.63 | L14: =jar6ml($I$7,$I$8,$G$10,L13) -> 0.75
B17: Jar Test Stock Solution Preparation (2) | F17: Jar Test Dose Results (2)
B18: 1. Enter Product Characteristics | F18: 1. Stock Solution Characteristics
B19: Name of Liquid Chemical: | C19: PA 50 | F19: Specific Gravity of Stock Solution: | I19: =((AA24*C20)+1*(1000*AA22-AA24))/(AA22*1000) -> 1.000246583 | J19: ="1 mL = "&ROUND(JarT2Perc/100*1000*JarT2SG,2)&" mg/L" -> 1 mL = 1.89 mg/L
B20: Specific gravity of liquid chemical: | C20: 1.15 | F20: % Strength of Stock Solution: | I20: =($C$21*$AA$24*$C$20)/($AA$22*1000*$I$19) -> 0.1890000273 | J20: =JarT2Perc*1000000/100 -> 1890.000273 | K20: ="mg/L, "&C19 -> mg/L, PA 50
B21: Chemical solution strength: | C21: 100 | D21: % | F21: 2. Enter in blue the Jar volume and desired dose for each jar
B22: 2. Preparation of Stock Solution | F22: Jar Vol (mL) | G22: 1000 | H22: =JarT2JarVol/1000&" Liter" -> 1 Liter | AA22: =IF(AB22="L",C23,C23/1000) -> 3.785 | AB22: =D23 -> L
B23: Enter Volume of stock solution: | C23: 3.785 | D23: L | G23: Jar 1 | H23: Jar 2 | I23: Jar 3 | J23: Jar 4 | K23: Jar 5 | L23: Jar 6 | AA23: =Aliquot2(_SG2,_PercentSol2,_StockSol2,TargetPer2,D23) -> 6.2221
B24: Enter Targeted % Stength of stock solution: | C24: 0.189 | D24: % | G24: Dose | H24: Dose | I24: Dose | J24: Dose | K24: Dose | L24: Dose | AA24: =AA23 -> 6.2221
B25: 3. Stock Solution Results | F25: Dose, mg/L | G25: 5 | H25: 10 | I25: 15 | J25: 20 | K25: 30 | L25: 40
B26: =IF(Tvol2>0.1,"Add "&ROUND(Tvol2,2)&" mL of product solution (Step 1) to "&ROUND((_StockSol_L2*1000-Tvol2),2)&" "&D23&" of water (Step 2) to make a "&TargetPer2&" %, "&_StockSol2&" "&D23&" stock solution","Add "&ROUND(Tvol2,3)&" mL of product solution (Step 1) to "&ROUND((_StockSol_L2*1000-Tvol2),2)&" "&D23&" of water (Step 2) to make a "&TargetPer2&" %, "&_StockSol2&" "&D23&" stock solution") -> Add 6.22 mL of product solution (Step 1) to 3778.78 L of water (Step 2) to make a 0.189 %, 3.785 L stock solution | F26: Delivered Vol (mL) | G26: =jar1ml1($I$19,$I$20,$G$22,G25) -> 2.66 | H26: =jar1ml2($I$19,$I$20,$G$22,H25) -> 5.32 | I26: =jar1ml3($I$19,$I$20,$G$22,I25) -> 8 | J26: =jar1ml4($I$19,$I$20,$G$22,J25) -> 10.7 | K26: =jar1ml5($I$19,$I$20,$G$22,K25) -> 16.13 | L26: =jar1ml6($I$19,$I$20,$G$22,L25) -> 21.62

Sheet Contact (hidden)
B3: For questions and | E3: Guy Schott, P.E.
B4: comments, you may | E4: 707-322-2001 | G4: cell
B5: contact: | E5: 707-576-2732 | G5: work
E6: gschott@schotteng.com
E7: guy.schott@waterboards.ca.gov
